Department Family,Entity,Date,Expense Type,Expense Area,Supplier,Transaction Number,Amount,Description
Department for Education,Core,03/02/2023,Other Goods & Services,Operational Finance,MONTAGU EVANS LLP,CORE-PINV-051549,"290,000.00",Professional Services - Accountancy
Department for Education,Core,13/02/2023,Auditors Services,Operational Finance,NATIONAL AUDIT OFFICE,CORE-PINV-052249,"300,000.00",Assurance
Department for Education,Core,06/02/2023,Other Costs,Operational Finance,AGILE MANAGEMENT SOLUTIONS LTD,CORE-PINV-051664,"5,146.86",Software.Development
Department for Education,Core,06/02/2023,Other Costs,Operational Finance,AGILE MANAGEMENT SOLUTIONS LTD,CORE-PINV-051664,"5,146.86",Software.Development
Department for Education,Core,06/02/2023,Other Costs,Operational Finance,AGILE MANAGEMENT SOLUTIONS LTD,CORE-PINV-051664,"10,293.73",Software.Development
Department for Education,Core,06/02/2023,Other Costs,Operational Finance,AGILE MANAGEMENT SOLUTIONS LTD,CORE-PINV-051664,"20,587.45",Software.Development
Department for Education,Core,06/02/2023,Other Costs,Operational Finance,AGILE MANAGEMENT SOLUTIONS LTD,CORE-PINV-051664,"164,699.60",Software.Development
Department for Education,Core,07/02/2023,Accommodation & Estates - Maintenance,Operational Finance,Government Property Agency,CORE-PCR-001824,"-39,226.96",Maintenance & Repairs
Department for Education,Core,06/02/2023,Accommodation & Estates - Other,Operational Finance,Mace Ltd,CORE-PINV-051601,"62,132.80",Furniture & Fittings
Department for Education,Core,07/02/2023,Accommodation & Estates - Maintenance,Operational Finance,Government Property Agency,CORE-PINV-050865,"865,404.04",Maintenance & Repairs
Department for Education,Core,07/02/2023,Accommodation & Estates - Rent & Rates,Operational Finance,Government Property Agency,CORE-PINV-050865,"325,301.16",Rentals
Department for Education,Core,07/02/2023,Accommodation & Estates - Maintenance,Operational Finance,Government Property Agency,CORE-PCR-001851,"-408,092.96",Maintenance & Repairs
Department for Education,Core,16/02/2023,Learning & Development,Operational Finance,Cabinet Office,CORE-PINV-052528,"74,806.00",Talent Development
Department for Education,Core,02/02/2023,Accommodation & Estates - Other,Operational Finance,WAGSTAFF BROS,CORE-PINV-051163,"83,468.70",Furniture & Fittings
Department for Education,Core,28/02/2023,Other Costs,Operational Finance,Government Property Agency,CORE-PINV-053169,"158,852.32",Facilities Management
Department for Education,Core,28/02/2023,Other Costs,Operational Finance,Government Property Agency,CORE-PINV-053171,"282,910.66",Facilities Management
Department for Education,Core,28/02/2023,Other Costs,Operational Finance,Government Property Agency,CORE-PINV-053172,"1,498,547.66",Facilities Management
Department for Education,Core,03/02/2023,IS/IT,Funding,WELLDATA LTD,CORE-PINV-051566,"45,700.00",ICT Support & Services
Department for Education,Core,09/02/2023,Other Costs,Commercial,ENGINE GROUP LTD,CORE-PINV-052071,"33,628.80",Software.Development
Department for Education,Core,01/02/2023,Other Goods & Services,Commercial,GOVERNMENT ACTUARYS DEPT,CORE-PINV-051354,"106,066.10",Professional Services
Department for Education,Core,17/02/2023,Other Goods & Services,Commercial,WILLIS LIMITED,CORE-PINV-052587,"78,333.00",Professional Services
Department for Education,Core,27/02/2023,Other Goods & Services,Commercial,GOVERNMENT ACTUARYS DEPT,CORE-PINV-053058,"61,087.96",Professional Services
Department for Education,Core,28/02/2023,Grants Expenditure,Commercial,UNITED UTILITIES WATER LTD,CUPS0060152,"44,758.50",Capital grants - Private Sector - SUDS
Department for Education,Core,28/02/2023,Grants Expenditure,Commercial,GREATER LONDON AUTHORITY,CUPS0060153,"425,577.18",Capital grants - Private Sector - SUDS
Department for Education,Core,28/02/2023,Grants Expenditure,Commercial,ESSEX COUNTY COUNCIL,CUPS0060154,"119,134.39",Capital grants - Private Sector - SUDS
Department for Education,Core,28/02/2023,Grants Expenditure,Commercial,SOUTH WEST WATER LTD,CUPS0060273,"34,361.18",Capital grants - Private Sector - SUDS
Department for Education,Core,15/02/2023,Staff - Secondee,Commercial,Cabinet Office,CORE-PINV-052478,"1,530,594.16",Staff seconded
Department for Education,Core,15/02/2023,Staff - Secondee,Commercial,Cabinet Office,CORE-PINV-052502,"90,337.50",Staff seconded
Department for Education,Core,20/02/2023,Staff - Secondee,Commercial,Cabinet Office,CORE-PINV-052617,"73,688.00",Staff seconded
Department for Education,Core,06/02/2023,Staff - Other,Human Resources,Cabinet Office,CORE-PINV-047809,"32,400.00",Recruitment Advertising
Department for Education,Core,07/02/2023,IS/IT,Human Resources,Netpremacy Limited,CORE-PINV-051758,"97,182.72",Software licences
Department for Education,Core,14/02/2023,Staff - Other,Human Resources,DURADIAMOND HEALTHCARE LIMITED,CORE-PINV-052345,"22,677.37",Occupational Health
Department for Education,Core,14/02/2023,Staff - Bonuses,Human Resources,EDENRED (INCENTIVES & MOTIVATION) LIMITED,CORE-PINV-052213,"25,320.00",Rewards & Recognition
Department for Education,Core,06/02/2023,Learning & Development,Human Resources,CSL KPMG LLP,CORE-PINV-051685,"36,351.00",Talent Development
Department for Education,Core,10/02/2023,IS/IT,Technology,Insight Direct (UK) Ltd,CORE-PCR-001688,"-235,967.53",End User Software & Hardware
Department for Education,Core,10/02/2023,IS/IT,Technology,Insight Direct (UK) Ltd,CORE-PCR-001756,"-82,490.42",End User Software & Hardware
Department for Education,Core,10/02/2023,IS/IT,Technology,Insight Direct (UK) Ltd,CORE-PINV-047040,"235,967.53",End User Software & Hardware
Department for Education,Core,10/02/2023,IS/IT,Technology,Insight Direct (UK) Ltd,CORE-PINV-051672,"33,005.83",End User Software & Hardware
Department for Education,Core,10/02/2023,IS/IT,Technology,Insight Direct (UK) Ltd,CORE-PINV-045168,"235,967.53",End User Software & Hardware
Department for Education,Core,28/02/2023,Other goods & services,Customer Experience and Digital,CABINET OFFICE RM SHARED SERVICES,CORE-PINV-053024,"194,805.00",Staff (Fast Stream)
Department for Education,Core,20/02/2023,Staff,Customer Experience and Digital,ANDIGITAL LIMITED,CORE-PINV-051969,"44,478.00",Professional Services
Department for Education,Core,10/02/2023,Staff,Customer Experience and Digital,ANDIGITAL LIMITED,CORE-PINV-051962,"55,107.00",Professional Services
Department for Education,Core,10/02/2023,Staff,Customer Experience and Digital,ANDIGITAL LIMITED,CORE-PINV-051961,"75,591.00",Professional Services
Department for Education,Core,10/02/2023,Staff,Customer Experience and Digital,ANDIGITAL LIMITED,CORE-PINV-051963,"33,606.00",Professional Services
Department for Education,Core,15/02/2023,Staff,Customer Experience and Digital,ANDIGITAL LIMITED,CORE-PINV-051965,"41,472.00",Professional Services
Department for Education,Core,06/02/2023,IS/IT,Technology,COMPUTACENTER PLC,CORE-PINV-051643,"1,257,278.65",End User Software & Hardware
Department for Education,Core,22/02/2023,Other Goods & Services,Technology,NCC Group Security Services Ltd,CORE-PINV-052265,"56,880.00",Professional Services
Department for Education,Core,24/02/2023,Other Goods & Services,Technology,NCC Group Security Services Ltd,CORE-PINV-052683,"214,440.00",Professional Services
Department for Education,Core,08/02/2023,IS/IT,Technology,Computacenter UK Ltd,CORE-PINV-051213,"35,694.32",End User Hardware & Software
Department for Education,Core,08/02/2023,IS/IT,Technology,Computacenter UK Ltd,CORE-PINV-051213,"72,482.56",End User Hardware & Software
Department for Education,Core,06/02/2023,IS/IT,Technology,SOL-TEC LIMITED,CORE-PINV-051695,"55,284.70",Systems Operations
Department for Education,Core,06/02/2023,Staff - Temporary Staff,Technology,SOL-TEC LIMITED,CORE-PINV-051699,"28,351.03",Short term & agency staff
Department for Education,Core,06/02/2023,Staff - Temporary Staff,Technology,SOL-TEC LIMITED,CORE-PINV-051700,"69,973.20",Short term & agency staff
Department for Education,Core,15/02/2023,IS/IT,Technology,Bytes Software Services Ltd,CORE-PINV-052348,"1,327,875.59",Systems Development
Department for Education,Core,16/02/2023,IS/IT,Technology,Methods Business and Digital Technology Ltd,CORE-PINV-052327,"94,968.30",Systems Operations
Department for Education,Core,16/02/2023,IS/IT,Technology,Methods Business and Digital Technology Ltd,CORE-PINV-052351,"225,200.10",Systems Operations
Department for Education,Core,24/02/2023,Other Costs,Technology,Insight Direct (UK) Ltd,CORE-PINV-052931,"102,224.40",Software Licences
Department for Education,Core,03/02/2023,Other Goods & Services,SARDIS,ECORYS UK LTD,CORE-PINV-051270,"63,718.00",Research & Evaluation
Department for Education,Core,07/02/2023,Other Goods & Services,SARDIS,IFF RESEARCH LTD,CORE-PINV-051845,"540,710.27",Research & Evaluation
Department for Education,Core,10/02/2023,Other Goods & Services,SARDIS,IFF RESEARCH LTD,CORE-PINV-052032,"23,912.50",Research & Evaluation
Department for Education,Core,10/02/2023,Other Goods & Services,SARDIS,IFF RESEARCH LTD,CORE-PINV-052219,"22,496.25",Research & Evaluation
Department for Education,Core,17/02/2023,Other Goods & Services,SARDIS,IFF RESEARCH LTD,CORE-PINV-052489,"33,542.00",Research & Evaluation
Department for Education,Core,03/02/2023,Other Costs,SARDIS,NATIONAL FOUNDATION FOR EDUCATIONAL RESEARCH NFER,CORE-PINV-051523,"55,683.90",Research & development
Department for Education,Core,03/02/2023,Other Costs,SARDIS,LSE ENTERPRISE LTD,CORE-PINV-051164,"81,231.25",Research & development
Department for Education,Core,06/02/2023,Other Costs,SARDIS,IMPACTED LIMITED,CORE-PINV-051705,"51,300.00",Research & development
Department for Education,Core,09/02/2023,Other Costs,SARDIS,IPSOS (MARKET RESEARCH) LTD,CORE-PINV-052084,"80,971.00",Research & development
Department for Education,Core,10/02/2023,Other Costs,SARDIS,NATIONAL CENTRE FOR SOCIAL RESEARCH,CORE-PINV-052226,"80,000.00",Research & development
Department for Education,Core,24/02/2023,Office Costs,Data,Restore PLC,CORE-PINV-052945,"26,297.46",Records management
Department for Education,Core,24/02/2023,Office Costs,Data,IRON MOUNTAIN UK LTD,CORE-PINV-052883,"26,404.82",Records management
Department for Education,Core,16/02/2023,IS/IT,Data,Engine Partners UK LLP - Engine Transformation,CORE-PINV-052061,"31,000.00",ICT repair & maintenance
Department for Education,Core,16/02/2023,IS/IT,Data,Engine Partners UK LLP - Engine Transformation,CORE-PINV-052057,"41,490.00",ICT repair & maintenance
Department for Education,Core,16/02/2023,Other Costs,Data,Engine Partners UK LLP - Engine Transformation,CORE-PINV-052028,"38,121.60",Software.Development
Department for Education,Core,16/02/2023,IS/IT,Data,Engine Partners UK LLP - Engine Transformation,CORE-PINV-052026,"115,122.00",ICT repair & maintenance
Department for Education,Core,16/02/2023,IS/IT,Data,Engine Partners UK LLP - Engine Transformation,CORE-PINV-052025,"149,006.40",ICT repair & maintenance
Department for Education,Core,16/02/2023,Other Costs,Data,Engine Partners UK LLP - Engine Transformation,CORE-PINV-052013,"45,144.00",Software.Development
Department for Education,Core,21/02/2023,Other Costs,Data,Engine Partners UK LLP - Engine Transformation,CORE-PINV-052062,"384,271.00",Software.Development
Department for Education,Core,21/02/2023,Other Costs,Data,Engine Partners UK LLP - Engine Transformation,CORE-PINV-052058,"87,552.00",Software.Development
Department for Education,Core,21/02/2023,Other Costs,Data,Engine Partners UK LLP - Engine Transformation,CORE-PINV-052033,"36,060.00",Software.Development
Department for Education,Core,20/02/2023,IS/IT,Data,Engine Partners UK LLP - Engine Transformation,CORE-PINV-052023,"26,460.00",ICT repair & maintenance
Department for Education,Core,21/02/2023,Other Costs,Data,Engine Partners UK LLP - Engine Transformation,CORE-PINV-052016,"255,540.00",Software.Development
Department for Education,Core,28/02/2023,IS/IT,Data,Bramble Hub Limited,CORE-PINV-052547,"138,994.00",ICT repair & maintenance
Department for Education,Core,17/02/2023,Staff - Other,SARDIS,Cabinet Office,CORE-PINV-052546,"54,797.00",Recruitment Advertising
Department for Education,Core,07/02/2023,IS/IT,SARDIS,HIVE IT LIMITED,CORE-PINV-051818,"80,952.00",Systems Operations
Department for Education,Core,10/02/2023,IS/IT,Data,RM PLC,CORE-PINV-052224,"520,618.60",Systems Operations
Department for Education,Core,01/02/2023,IS/IT,Data,INFORMATICA SOFTWARE LTD,CORE-PINV-051105,"550,847.23",End User Software & Hardware
Department for Education,Core,01/02/2023,IS/IT,Data,Opencast Software Europe ltd,CORE-PINV-051355,"458,820.00",Systems Operations
Department for Education,Core,17/02/2023,IS/IT,"Disadvantage, International and Sustainability Directorate (DISD)",ESRI (UK) LIMITED,CORE-PINV-052297,"28,560.00",End User Software & Hardware
Department for Education,Core,27/02/2023,Other Goods & Services,"Disadvantage, International and Sustainability Directorate (DISD)",THE NATURAL HISTORY MUSEUM TRADING COMPANY LIMITED,CORE-PINV-053022,"79,844.40",Professional Services
Department for Education,Core,01/02/2023,Grants Expenditure,Capital Directorate,Kensington Aldridge Academy,DU00098906,"28,594.00",Current grants - Academy Trust
Department for Education,Core,09/02/2023,Grants Expenditure,Capital Directorate,Portakabin Ltd,D-PINV052142,"166,226.58",Current grants - Academy Trust
Department for Education,Core,13/02/2023,Grants Expenditure,Capital Directorate,Jisc Services Limited,D-PINV052331,"772,636.50",Current grants - Private Sector
Department for Education,Core,09/02/2023,Other Costs,Capital Directorate,Mott MacDonald Ltd,D-PINV052109,"232,303.20",Research & development
Department for Education,Core,02/02/2023,Other costs,Capital Directorate,REXEL UK LIMITED,D-PINV051974,"1,724,254.22",Air Filtration/Covid Ventilation for Education
Department for Education,Core,09/02/2023,Other costs,Capital Directorate,REXEL UK LIMITED,D-PINV052160,"303,862.94",Air Filtration/Covid Ventilation for Education
Department for Education,Core,28/02/2023,Other costs,Capital Directorate,REXEL UK LIMITED,D-PINV052538,"54,394.56",Air Filtration/Covid Ventilation for Education
Department for Education,Core,03/02/2023,Grants Expenditure,Capital Directorate,The Liverpool Joint Catholic CofE Academies Trust,DU00098951,"142,838.91",Capital grants - Academy Trust
Department for Education,Core,03/02/2023,Grants Expenditure,Capital Directorate,The Liverpool Joint Catholic CofE Academies Trust,DU00098952,"69,549.13",Capital grants - Academy Trust
Department for Education,Core,03/02/2023,Grants Expenditure,Capital Directorate,Waterton Academy Trust,DU00098953,"41,584.16",Capital grants - Academy Trust
Department for Education,Core,03/02/2023,Grants Expenditure,Capital Directorate,BLACKPOOL BOROUGH COUNCIL,DU00098958,"26,091.78",Capital grants - Local Government
Department for Education,Core,03/02/2023,Grants Expenditure,Capital Directorate,Diocese of Lancaster,DU00098964,"32,795.69",Capital grants - Local Government
Department for Education,Core,03/02/2023,Grants Expenditure,Capital Directorate,Sefton Metropolitan Borough Council,DU00098965,"27,776.00",Capital grants - Local Government
Department for Education,Core,03/02/2023,Grants Expenditure,Capital Directorate,DONCASTER METRO BOROUGH COUNCIL,DU00098970,"65,672.41",Capital grants - Local Government
Department for Education,Core,03/02/2023,Grants Expenditure,Capital Directorate,Keystone Academy Trust,DU00098975,"30,798.33",Capital grants - Academy Trust
Department for Education,Core,03/02/2023,Grants Expenditure,Capital Directorate,Nova Education Trust,DU00098980,"35,587.48",Capital grants - Academy Trust
Department for Education,Core,03/02/2023,Grants Expenditure,Capital Directorate,Nova Education Trust,DU00098981,"59,236.42",Capital grants - Academy Trust
Department for Education,Core,03/02/2023,Grants Expenditure,Capital Directorate,Nova Education Trust,DU00098984,"59,214.68",Capital grants - Academy Trust
Department for Education,Core,03/02/2023,Grants Expenditure,Capital Directorate,Nova Education Trust,DU00098985,"39,489.49",Capital grants - Academy Trust
Department for Education,Core,03/02/2023,Grants Expenditure,Capital Directorate,Nova Education Trust,DU00098987,"41,496.64",Capital grants - Academy Trust
Department for Education,Core,03/02/2023,Grants Expenditure,Capital Directorate,NOTTINGHAMSHIRE COUNTY COUNCIL,DU00098990,"87,745.66",Capital grants - Local Government
Department for Education,Core,03/02/2023,Grants Expenditure,Capital Directorate,Nova Education Trust,DU00098991,"45,883.12",Capital grants - Academy Trust
Department for Education,Core,10/02/2023,Grants Expenditure,Capital Directorate,Crofty Multi Academy Trust,DU00098994,"25,575.97",Capital grants - Academy Trust
Department for Education,Core,10/02/2023,Grants Expenditure,Capital Directorate,DONCASTER METRO BOROUGH COUNCIL,DU00098996,"67,798.61",Capital grants - Local Government
Department for Education,Core,10/02/2023,Grants Expenditure,Capital Directorate,The McAuley Catholic High School,DU00098999,"213,323.36",Capital grants - Academy Trust
Department for Education,Core,10/02/2023,Grants Expenditure,Capital Directorate,NOTTINGHAMSHIRE COUNTY COUNCIL,DU00099004,"51,158.78",Capital grants - Local Government
Department for Education,Core,10/02/2023,Grants Expenditure,Capital Directorate,NORTH YORKSHIRE COUNTY COUNCIL,DU00099005,"45,824.00",Capital grants - Local Government
Department for Education,Core,10/02/2023,Grants Expenditure,Capital Directorate,SOUTH GLOUCESTERSHIRE COUNCIL,DU00099009,"67,601.32",Capital grants - Local Government
Department for Education,Core,10/02/2023,Grants Expenditure,Capital Directorate,DONCASTER METRO BOROUGH COUNCIL,DU00099013,"39,568.58",Capital grants - Local Government
Department for Education,Core,10/02/2023,Grants Expenditure,Capital Directorate,Flying High Trust,DU00099015,"46,249.19",Capital grants - Academy Trust
Department for Education,Core,10/02/2023,Grants Expenditure,Capital Directorate,DONCASTER METRO BOROUGH COUNCIL,DU00099026,"71,763.14",Capital grants - Local Government
Department for Education,Core,10/02/2023,Grants Expenditure,Capital Directorate,NORTH YORKSHIRE COUNTY COUNCIL,DU00099029,"174,429.87",Capital grants - Local Government
Department for Education,Core,10/02/2023,Grants Expenditure,Capital Directorate,The Diocese of Canterbury Academies Trust,DU00099031,"25,189.29",Capital grants - Academy Trust
Department for Education,Core,10/02/2023,Grants Expenditure,Capital Directorate,Astrea Academy Trust,DU00099032,"30,803.63",Capital grants - Academy Trust
Department for Education,Core,10/02/2023,Grants Expenditure,Capital Directorate,NOTTINGHAMSHIRE COUNTY COUNCIL,DU00099035,"53,291.29",Capital grants - Local Government
Department for Education,Core,10/02/2023,Grants Expenditure,Capital Directorate,COURT FIELDS SCHOOL,DU00099036,"205,497.58",Capital grants - Academy Trust
Department for Education,Core,10/02/2023,Grants Expenditure,Capital Directorate,Archdiocese of Liverpool,DU00099038,"57,822.28",Capital grants - Local Government
Department for Education,Core,10/02/2023,Grants Expenditure,Capital Directorate,Sefton Metropolitan Borough Council,DU00099039,"44,126.67",Capital grants - Local Government
Department for Education,Core,10/02/2023,Grants Expenditure,Capital Directorate,The Liverpool Joint Catholic CofE Academies Trust,DU00099040,"37,907.66",Capital grants - Academy Trust
Department for Education,Core,10/02/2023,Grants Expenditure,Capital Directorate,Archdiocese of Liverpool,DU00099042,"-227,361.86",Capital grants - Local Government
Department for Education,Core,17/02/2023,Grants Expenditure,Capital Directorate,DONCASTER METRO BOROUGH COUNCIL,DU00099054,"77,216.65",Capital grants - Local Government
Department for Education,Core,17/02/2023,Grants Expenditure,Capital Directorate,BLACKPOOL BOROUGH COUNCIL,DU00099056,"40,753.66",Capital grants - Local Government
Department for Education,Core,17/02/2023,Grants Expenditure,Capital Directorate,DONCASTER METRO BOROUGH COUNCIL,DU00099057,"52,667.18",Capital grants - Local Government
Department for Education,Core,17/02/2023,Grants Expenditure,Capital Directorate,ESSEX COUNTY COUNCIL,DU00099060,"28,919.96",Capital grants - Local Government
Department for Education,Core,17/02/2023,Grants Expenditure,Capital Directorate,Archdiocese of Liverpool,DU00099061,"42,616.99",Capital grants - Local Government
Department for Education,Core,17/02/2023,Grants Expenditure,Capital Directorate,Diocese of Lancaster,DU00099064,"37,443.85",Capital grants - Local Government
Department for Education,Core,17/02/2023,Grants Expenditure,Capital Directorate,NOTTINGHAMSHIRE COUNTY COUNCIL,DU00099066,"46,506.08",Capital grants - Local Government
Department for Education,Core,17/02/2023,Grants Expenditure,Capital Directorate,Stanley Learning Partnership,DU00099074,"32,498.69",Capital grants - Academy Trust
Department for Education,Core,17/02/2023,Grants Expenditure,Capital Directorate,Delta Academies Trust,DU00099075,"313,168.28",Capital grants - Academy Trust
Department for Education,Core,17/02/2023,Grants Expenditure,Capital Directorate,NOTTINGHAMSHIRE COUNTY COUNCIL,DU00099078,"40,676.89",Capital grants - Local Government
Department for Education,Core,17/02/2023,Grants Expenditure,Capital Directorate,The Blue Coat School,DU00099082,"35,085.11",Capital grants - Academy Trust
Department for Education,Core,17/02/2023,Grants Expenditure,Capital Directorate,University of Chichester (Multi) Academy Trust,DU00099083,"40,921.08",Capital grants - Academy Trust
Department for Education,Core,17/02/2023,Grants Expenditure,Capital Directorate,University of Chichester (Multi) Academy Trust,DU00099084,"60,950.04",Capital grants - Academy Trust
Department for Education,Core,17/02/2023,Grants Expenditure,Capital Directorate,University of Chichester (Multi) Academy Trust,DU00099085,"52,478.64",Capital grants - Academy Trust
Department for Education,Core,17/02/2023,Grants Expenditure,Capital Directorate,University of Chichester (Multi) Academy Trust,DU00099086,"50,599.28",Capital grants - Academy Trust
Department for Education,Core,17/02/2023,Grants Expenditure,Capital Directorate,University of Chichester (Multi) Academy Trust,DU00099087,"73,902.94",Capital grants - Academy Trust
Department for Education,Core,17/02/2023,Grants Expenditure,Capital Directorate,Branton St Wilfrid's CE Primary School,DU00099091,"33,437.80",Capital grants - Local Government
Department for Education,Core,17/02/2023,Grants Expenditure,Capital Directorate,Dixons Academies Trust,DU00099093,"122,849.00",Capital grants - Academy Trust
Department for Education,Core,17/02/2023,Grants Expenditure,Capital Directorate,Dixons Academies Trust,DU00099094,"80,946.00",Capital grants - Academy Trust
Department for Education,Core,17/02/2023,Grants Expenditure,Capital Directorate,North East Learning Trust,DU00099099,"26,275.08",Capital grants - Academy Trust
Department for Education,Core,17/02/2023,Grants Expenditure,Capital Directorate,University of Chichester (Multi) Academy Trust,DU00099102,"49,959.32",Capital grants - Academy Trust
Department for Education,Core,17/02/2023,Grants Expenditure,Capital Directorate,University of Chichester (Multi) Academy Trust,DU00099103,"32,540.60",Capital grants - Academy Trust
Department for Education,Core,24/02/2023,Grants Expenditure,Capital Directorate,Hawthorn Primary,DU00099150,"53,574.28",Capital grants - Academy Trust
Department for Education,Core,24/02/2023,Grants Expenditure,Capital Directorate,LIVERPOOL CITY COUNCIL,DU00099152,"54,634.72",Capital grants - Local Government
Department for Education,Core,24/02/2023,Grants Expenditure,Capital Directorate,The Python Hill Academy,DU00099153,"47,734.61",Capital grants - Academy Trust
Department for Education,Core,24/02/2023,Grants Expenditure,Capital Directorate,Southfield Primary,DU00099154,"62,018.31",Capital grants - Academy Trust
Department for Education,Core,24/02/2023,Grants Expenditure,Capital Directorate,DONCASTER METRO BOROUGH COUNCIL,DU00099156,"46,496.36",Capital grants - Local Government
Department for Education,Core,24/02/2023,Grants Expenditure,Capital Directorate,DURHAM COUNTY COUNCIL,DU00099157,"123,113.60",Capital grants - Local Government
Department for Education,Core,24/02/2023,Grants Expenditure,Capital Directorate,Transform Trust,DU00099163,"77,117.08",Capital grants - Academy Trust
Department for Education,Core,24/02/2023,Grants Expenditure,Capital Directorate,Orwell Multi Academy Trust,DU00099167,"29,721.98",Capital grants - Academy Trust
Department for Education,Core,24/02/2023,Grants Expenditure,Capital Directorate,PLYMOUTH CITY COUNCIL,DU00099168,"39,785.55",Capital grants - Local Government
Department for Education,Core,24/02/2023,Grants Expenditure,Capital Directorate,University of Chichester (Multi) Academy Trust,DU00099169,"44,202.68",Capital grants - Academy Trust
Department for Education,Core,24/02/2023,Grants Expenditure,Capital Directorate,University of Chichester (Multi) Academy Trust,DU00099170,"34,498.04",Capital grants - Academy Trust
Department for Education,Core,24/02/2023,Grants Expenditure,Capital Directorate,THE THINKING SCHOOLS ACADEMY TRUST,DU00099178,"99,642.69",Capital grants - Academy Trust
Department for Education,Core,24/02/2023,Grants Expenditure,Capital Directorate,New College Durham Academies Trust,DU00099181,"133,132.54",Capital grants - Academy Trust
Department for Education,Core,24/02/2023,Grants Expenditure,Capital Directorate,Armthorpe Shaw Wood Academy ,DU00099184,"69,774.00",Capital grants - Academy Trust
Department for Education,Core,24/02/2023,Grants Expenditure,Capital Directorate,DONCASTER METRO BOROUGH COUNCIL,DU00099186,"31,442.60",Capital grants - Local Government
Department for Education,Core,24/02/2023,Grants Expenditure,Capital Directorate,DONCASTER METRO BOROUGH COUNCIL,DU00099189,"68,172.66",Capital grants - Local Government
Department for Education,Core,24/02/2023,Grants Expenditure,Capital Directorate,DONCASTER METRO BOROUGH COUNCIL,DU00099192,"51,758.86",Capital grants - Local Government
Department for Education,Core,24/02/2023,Grants Expenditure,Capital Directorate,Salford City Council,DU00099193,"80,926.37",Capital grants - Local Government
Department for Education,Core,24/02/2023,Grants Expenditure,Capital Directorate,DONCASTER METRO BOROUGH COUNCIL,DU00099194,"41,778.28",Capital grants - Local Government
Department for Education,Core,24/02/2023,Grants Expenditure,Capital Directorate,St Francis Catholic Multi Academy Trust,DU00099195,"25,331.15",Capital grants - Academy Trust
Department for Education,Core,24/02/2023,Grants Expenditure,Capital Directorate,Flying High Trust,DU00099198,"54,271.87",Capital grants - Academy Trust
Department for Education,Core,24/02/2023,Grants Expenditure,Capital Directorate,DONCASTER METRO BOROUGH COUNCIL,DU00099207,"36,478.21",Capital grants - Local Government
Department for Education,Core,24/02/2023,Grants Expenditure,Capital Directorate,Exceed Learning Partnership,DU00099208,"60,650.33",Capital grants - Academy Trust
Department for Education,Core,24/02/2023,Grants Expenditure,Capital Directorate,KENT COUNTY COUNCIL,DU00099215,"39,509.03",Capital grants - Local Government
Department for Education,Core,24/02/2023,Grants Expenditure,Capital Directorate,Archdiocese of Liverpool,DU00099222,"124,510.40",Capital grants - Local Government
Department for Education,Core,24/02/2023,Grants Expenditure,Capital Directorate,The Ted Wragg Multi Academy Trust,DU00099223,"82,139.95",Capital grants - Academy Trust
Department for Education,Core,09/02/2023,Other Goods & Services,Capital Directorate,COGNIZANT WORLDWIDE LIMITED,D-PINV052202,"46,544.40",Professional Services
Department for Education,Core,09/02/2023,Other Goods & Services,Capital Directorate,COGNIZANT WORLDWIDE LIMITED,D-PINV052203,"99,779.40",Professional Services
Department for Education,Core,09/02/2023,Other Goods & Services,Capital Directorate,COGNIZANT WORLDWIDE LIMITED,D-PINV052204,"39,507.00",Professional Services
Department for Education,Core,20/02/2023,Grants Expenditure,Capital Directorate,KINGSTON UPON HULL CITY COUNCIL,DU00099106,"6,666,618.00",Capital grants - Local Government
Department for Education,Core,01/02/2023,Grants Expenditure,Capital Directorate,King David High School,D-CINV003861,"31,700.56",Capital grants - Local Government
Department for Education,Core,08/02/2023,Grants Expenditure,Capital Directorate,Wohl Ilford Jewish Primary School,D-CINV003925,"45,284.40",Capital grants - Local Government
Department for Education,Core,17/02/2023,Grants Expenditure,Capital Directorate,The Camden School for Girls,D-CINV003974,"46,668.60",Capital grants - Local Government
Department for Education,Core,17/02/2023,Grants Expenditure,Capital Directorate,The Camden School for Girls,D-CINV003976,"27,226.90",Capital grants - Local Government
Department for Education,Core,22/02/2023,Grants Expenditure,Capital Directorate,Manchester Mesivta School,D-CINV004015,"43,668.76",Capital grants - Local Government
Department for Education,Core,08/02/2023,Grants Expenditure,Capital Directorate,NORTHUMBERLAND COUNTY COUNCIL,D-CINV003918,"43,162.86",Capital Grant - Local Government
Department for Education,Core,08/02/2023,Grants Expenditure,Capital Directorate,St Catherine's Secure Centre,D-CINV003927,"26,498.44",Capital Grants - Private Sector (Non Profit Institutions Serving Households)
Department for Education,Core,20/02/2023,Grants Expenditure,Capital Directorate,SOUTHWARK LONDON BOROUGH COUNCIL,CL058693,"3,000,000.00",Capital grants - Local Government
Department for Education,Core,20/02/2023,Grants Expenditure,Capital Directorate,HARINGEY LONDON BOROUGH COUNCIL,CL058694,"7,000,000.00",Capital grants - Local Government
Department for Education,Core,20/02/2023,Grants Expenditure,Capital Directorate,BOLTON METRO BOROUGH COUNCIL,CL058695,"9,903,319.00",Capital grants - Local Government
Department for Education,Core,20/02/2023,Grants Expenditure,Capital Directorate,MEDWAY COUNCIL,CL058696,"7,188,479.00",Capital grants - Local Government
Department for Education,Core,08/02/2023,Grants Expenditure,Capital Directorate,LINCOLNSHIRE COUNTY COUNCIL,D-CINV003911,"89,838.08",Capital Grant - Local Government
Department for Education,Core,08/02/2023,Grants Expenditure,Capital Directorate,SOUTHWARK LONDON BOROUGH COUNCIL,D-CINV003912,"35,568.52",Capital Grant - Local Government
Department for Education,Core,22/02/2023,Grants Expenditure,Capital Directorate,NORTHUMBERLAND COUNTY COUNCIL,D-CINV003917,"132,288.11",Capital Grant - Local Government
Department for Education,Core,08/02/2023,Grants Expenditure,Capital Directorate,NORTH LINCOLNSHIRE COUNCIL,D-CINV003919,"510,318.27",Capital Grant - Local Government
Department for Education,Core,08/02/2023,Grants Expenditure,Capital Directorate,SOUTHWARK LONDON BOROUGH COUNCIL,D-CINV003920,"29,954.00",Capital Grant - Local Government
Department for Education,Core,08/02/2023,Grants Expenditure,Capital Directorate,Newcastle upon Tyne City Council,D-CINV003922,"246,952.30",Capital Grant - Local Government
Department for Education,Core,08/02/2023,Grants Expenditure,Capital Directorate,Somerset County Council,D-CINV003928,"60,445.69",Capital Grant - Local Government
Department for Education,Core,22/02/2023,Grants Expenditure,Capital Directorate,SHROPSHIRE COUNCIL,D-CINV004000,"115,311.96",Capital Grant - Local Government
Department for Education,Core,06/02/2023,Grants Income,Capital Directorate,PSBP NW PROJECTCO LIMITED,D-PINV051367,"63,005.50",Capital Contribution
Department for Education,Core,24/02/2023,Grants Income,Capital Directorate,Yorkshire Learning Partnership (Project Co) Ltd,D-PINV051488,"41,607.92",Capital Contribution
Department for Education,Core,20/02/2023,Other Goods & Services,Capital Directorate,PSBP Midlands Limited,D-PINV052385,"-16,237.06",Service element of lease
Department for Education,Core,20/02/2023,Other Goods & Services,Capital Directorate,PSBP Midlands Limited,D-PINV052385,"-2,857.15",Service element of lease
Department for Education,Core,20/02/2023,Other Goods & Services,Capital Directorate,PSBP Midlands Limited,D-PINV052385,"3,596.81",Service element of lease
Department for Education,Core,20/02/2023,Other Goods & Services,Capital Directorate,PSBP Midlands Limited,D-PINV052385,"1,259,786.27",Service element of lease
Department for Education,Core,20/02/2023,Other Goods & Services,Capital Directorate,HLR Schools Limited,D-PINV052384,"-10,604.66",Service element of lease
Department for Education,Core,20/02/2023,Other Goods & Services,Capital Directorate,HLR Schools Limited,D-PINV052384,"2,206.91",Service element of lease
Department for Education,Core,20/02/2023,Other Goods & Services,Capital Directorate,HLR Schools Limited,D-PINV052384,"3,282.41",Service element of lease
Department for Education,Core,20/02/2023,Other Goods & Services,Capital Directorate,HLR Schools Limited,D-PINV052384,"1,238,079.87",Service element of lease
Department for Education,Core,20/02/2023,Other Goods & Services,Capital Directorate,PSBP NW PROJECTCO LIMITED,D-PINV052387,"-7,802.88",Service element of lease
Department for Education,Core,20/02/2023,Other Goods & Services,Capital Directorate,PSBP NW PROJECTCO LIMITED,D-PINV052387,"-6,072.44",Service element of lease
Department for Education,Core,20/02/2023,Other Goods & Services,Capital Directorate,PSBP NW PROJECTCO LIMITED,D-PINV052387,"1,627.68",Service element of lease
Department for Education,Core,20/02/2023,Other Goods & Services,Capital Directorate,PSBP NW PROJECTCO LIMITED,D-PINV052387,"4,754.30",Service element of lease
Department for Education,Core,20/02/2023,Other Goods & Services,Capital Directorate,PSBP NW PROJECTCO LIMITED,D-PINV052387,"5,686.67",Service element of lease
Department for Education,Core,20/02/2023,Other Goods & Services,Capital Directorate,PSBP NW PROJECTCO LIMITED,D-PINV052387,"1,038,784.32",Service element of lease
Department for Education,Core,20/02/2023,Other Goods & Services,Capital Directorate,GT Neps Limited,D-PINV052383,"-8,057.34",Service element of lease
Department for Education,Core,20/02/2023,Other Goods & Services,Capital Directorate,GT Neps Limited,D-PINV052383,-457.2,Service element of lease
Department for Education,Core,20/02/2023,Other Goods & Services,Capital Directorate,GT Neps Limited,D-PINV052383,580.97,Service element of lease
Department for Education,Core,20/02/2023,Other Goods & Services,Capital Directorate,GT Neps Limited,D-PINV052383,"3,700.85",Service element of lease
Department for Education,Core,20/02/2023,Other Goods & Services,Capital Directorate,GT Neps Limited,D-PINV052383,"1,132,724.83",Service element of lease
Department for Education,Core,20/02/2023,Other Goods & Services,Capital Directorate,Yorkshire Learning Partnership (Project Co) Ltd,D-PINV052388,"-14,653.42",Service element of lease
Department for Education,Core,20/02/2023,Other Goods & Services,Capital Directorate,Yorkshire Learning Partnership (Project Co) Ltd,D-PINV052388,201.9,Service element of lease
Department for Education,Core,20/02/2023,Other Goods & Services,Capital Directorate,Yorkshire Learning Partnership (Project Co) Ltd,D-PINV052388,"1,662.31",Service element of lease
Department for Education,Core,20/02/2023,Other Goods & Services,Capital Directorate,Yorkshire Learning Partnership (Project Co) Ltd,D-PINV052388,"13,117.71",Service element of lease
Department for Education,Core,20/02/2023,Other Goods & Services,Capital Directorate,Yorkshire Learning Partnership (Project Co) Ltd,D-PINV052388,"1,104,615.56",Service element of lease
Department for Education,Core,08/02/2023,Grants Expenditure,Capital Directorate,Stockton Borough Council - All Saints Academy,D-CINV003929,"91,204.77",Current grants - Local Government
Department for Education,Core,15/02/2023,Grants Expenditure,Capital Directorate,STMC BIRMINGHAM DIOCESE ACCOUNT,D-CINV003935,"100,532.36",Current grants - Local Government
Department for Education,Core,15/02/2023,Grants Expenditure,Capital Directorate,REDCAR PFI,D-CINV003937,"191,168.10",Current grants - Local Government
Department for Education,Core,24/02/2023,Other Goods & Services,Capital Directorate,Bloom Procurement Services Ltd,D-PINV052563,"28,939.58",Professional Services
Department for Education,Core,02/02/2023,Other Goods & Services,Capital Directorate,RIDER LEVETT BUCKNALL UK LTD,D-PINV052004,"206,416.16",Professional Services - Property Services
Department for Education,Core,09/02/2023,Consultancy,Capital Directorate,COGNIZANT WORLDWIDE LIMITED,D-PINV052205,"44,010.00",Consultancy - IT/IS
Department for Education,Core,17/02/2023,Other Goods & Services,Capital Directorate,Arcadis LLP,D-PINV052397,"56,272.54",Professional Services - Property Services
Department for Education,Core,03/02/2023,Grants Expenditure,Capital Directorate,Wates Construction Ltd,D-PINV052030,"528,884.87",Capital grants - Academy Trust
Department for Education,Core,07/02/2023,Grants Expenditure,Capital Directorate,Bowmer & Kirkland Ltd,D-PINV052137,"1,041,567.43",Capital grants - Academy Trust
Department for Education,Core,08/02/2023,Grants Expenditure,Capital Directorate,Kier Construction Central,D-PINV052138,"43,739.20",Capital grants - Academy Trust
Department for Education,Core,09/02/2023,Grants Expenditure,Capital Directorate,Kier Construction Southern,D-PINV052211,"942,958.57",Capital grants - Academy Trust
Department for Education,Core,09/02/2023,Grants Expenditure,Capital Directorate,Kier Construction Southern,D-PINV052226,"313,846.32",Capital grants - Academy Trust
Department for Education,Core,23/02/2023,Grants Expenditure,Capital Directorate,Wates Construction Ltd,D-PINV052214,"302,330.56",Capital grants - Academy Trust
Department for Education,Core,09/02/2023,Grants Expenditure,Capital Directorate,Tilbury Douglas Construction Limited,D-PINV052212,"66,270.53",Capital grants - Academy Trust
Department for Education,Core,09/02/2023,Grants Expenditure,Capital Directorate,ISG DEVELOPMENTS LIMITED,D-PINV052255,"68,744.88",Capital grants - Academy Trust
Department for Education,Core,15/02/2023,Grants Expenditure,Capital Directorate,ISG DEVELOPMENTS LIMITED,D-PINV052338,"549,061.32",Capital grants - Academy Trust
Department for Education,Core,27/02/2023,Grants Expenditure,Capital Directorate,Morgan Sindall Construction & Infrastructure Ltd,D-PINV052392,"534,696.68",Capital grants - Academy Trust
Department for Education,Core,22/02/2023,Grants Expenditure,Capital Directorate,Wates Construction Ltd,D-PINV052408,"1,650,968.26",Capital grants - Academy Trust
Department for Education,Core,20/02/2023,Grants Expenditure,Capital Directorate,Wates Construction Ltd,D-PINV052413,"862,949.33",Capital grants - Academy Trust
Department for Education,Core,17/02/2023,Grants Expenditure,Capital Directorate,Galliford Try Building Ltd,D-PINV052410,"1,117,014.16",Capital grants - Academy Trust
Department for Education,Core,23/02/2023,Grants Expenditure,Capital Directorate,Bowmer & Kirkland Ltd,D-PINV052466,"333,773.78",Capital grants - Academy Trust
Department for Education,Core,22/02/2023,Grants Expenditure,Capital Directorate,Kier Construction Eastern,D-PINV052507,"148,089.86",Capital grants - Academy Trust
Department for Education,Core,22/02/2023,Grants Expenditure,Capital Directorate,Kier Construction Eastern,D-PINV052504,"796,839.37",Capital grants - Academy Trust
Department for Education,Core,22/02/2023,Grants Expenditure,Capital Directorate,Algeco UK Limited,D-PINV052496,"53,746.14",Capital grants - Academy Trust
Department for Education,Core,22/02/2023,Grants Expenditure,Capital Directorate,BAM Construction Ltd,D-PINV052544,"364,119.60",Capital grants - Academy Trust
Department for Education,Core,02/02/2023,Grants Expenditure,Capital Directorate,Mott MacDonald Ltd,D-PINV051866,"29,809.20",Capital grants - Academy Trust
Department for Education,Core,02/02/2023,Grants Expenditure,Capital Directorate,Wood Group UK Limited,D-PINV051898,"27,668.57",Capital grants - Academy Trust
Department for Education,Core,01/02/2023,Grants Expenditure,Capital Directorate,REDS10 UK Limited,D-PINV051959,"400,304.40",Capital grants - Academy Trust
Department for Education,Core,02/02/2023,Grants Expenditure,Capital Directorate,Wood Group UK Limited,D-PINV051982,"26,084.71",Capital grants - Academy Trust
Department for Education,Core,02/02/2023,Grants Expenditure,Capital Directorate,Wood Group UK Limited,D-PINV051983,"34,039.73",Capital grants - Academy Trust
Department for Education,Core,02/02/2023,Grants Expenditure,Capital Directorate,REDS10 UK Limited,D-PINV052008,"27,778.13",Capital grants - Academy Trust
Department for Education,Core,03/02/2023,Grants Expenditure,Capital Directorate,Turner & Townsend,D-PINV052037,"31,070.27",Capital grants - Academy Trust
Department for Education,Core,03/02/2023,Grants Expenditure,Capital Directorate,Turner & Townsend,D-PINV052039,"26,862.58",Capital grants - Academy Trust
Department for Education,Core,03/02/2023,Grants Expenditure,Capital Directorate,Turner & Townsend,D-PINV052038,"26,862.58",Capital grants - Academy Trust
Department for Education,Core,03/02/2023,Grants Expenditure,Capital Directorate,Turner & Townsend,D-PINV052041,"45,575.94",Capital grants - Academy Trust
Department for Education,Core,07/02/2023,Grants Expenditure,Capital Directorate,Mott MacDonald Ltd,D-PINV052103,"33,000.00",Capital grants - Academy Trust
Department for Education,Core,06/02/2023,Grants Expenditure,Capital Directorate,Mace Ltd,D-PINV051752,"32,028.96",Capital grants - Academy Trust
Department for Education,Core,06/02/2023,Grants Expenditure,Capital Directorate,Faithful & Gould,D-PINV052012,"46,878.16",Capital grants - Academy Trust
Department for Education,Core,07/02/2023,Grants Expenditure,Capital Directorate,Faithful & Gould,D-PINV052108,"25,672.44",Capital grants - Academy Trust
Department for Education,Core,06/02/2023,Grants Expenditure,Capital Directorate,RM PLC,D-PINV052043,"37,200.00",Capital grants - Academy Trust
Department for Education,Core,07/02/2023,Grants Expenditure,Capital Directorate,Eco Modular Buildings Limited,D-PINV052136,"127,615.20",Capital grants - Academy Trust
Department for Education,Core,07/02/2023,Grants Expenditure,Capital Directorate,Mace Ltd,D-PINV052058,"27,379.87",Capital grants - Academy Trust
Department for Education,Core,07/02/2023,Grants Expenditure,Capital Directorate,Arcadis LLP,D-PINV052081,"64,360.13",Capital grants - Academy Trust
Department for Education,Core,07/02/2023,Grants Expenditure,Capital Directorate,Arcadis LLP,D-PINV052080,"31,479.00",Capital grants - Academy Trust
Department for Education,Core,07/02/2023,Grants Expenditure,Capital Directorate,Arcadis LLP,D-PINV052083,"31,060.96",Capital grants - Academy Trust
Department for Education,Core,17/02/2023,Grants Expenditure,Capital Directorate,Faithful & Gould,D-PINV052209,"67,981.20",Capital grants - Academy Trust
Department for Education,Core,17/02/2023,Grants Expenditure,Capital Directorate,ARCADIS CONSULTING (UK) LIMITED,D-PINV052178,"53,067.42",Capital grants - Academy Trust
Department for Education,Core,10/02/2023,Grants Expenditure,Capital Directorate,GLEEDS MANAGEMENT SERVICES LIMITED,D-PINV052208,"31,697.69",Capital grants - Academy Trust
Department for Education,Core,17/02/2023,Grants Expenditure,Capital Directorate,GLEEDS MANAGEMENT SERVICES LIMITED,D-PINV052193,"69,197.40",Capital grants - Academy Trust
Department for Education,Core,17/02/2023,Grants Expenditure,Capital Directorate,GLEEDS MANAGEMENT SERVICES LIMITED,D-PINV052196,"36,750.00",Capital grants - Academy Trust
Department for Education,Core,09/02/2023,Grants Expenditure,Capital Directorate,Kier Construction Scotland,D-PINV052256,"1,509,472.75",Capital grants - Academy Trust
Department for Education,Core,13/02/2023,Grants Expenditure,Capital Directorate,Wates Construction Ltd,D-PINV052297,"1,662,495.60",Capital grants - Academy Trust
Department for Education,Core,17/02/2023,Grants Expenditure,Capital Directorate,Mace Ltd,D-PINV052299,"37,497.00",Capital grants - Academy Trust
Department for Education,Core,17/02/2023,Grants Expenditure,Capital Directorate,Faithful & Gould,D-PINV052302,"138,175.20",Capital grants - Academy Trust
Department for Education,Core,10/02/2023,Grants Expenditure,Capital Directorate,Baxall Construction Limited,D-PINV052279,"45,454.24",Capital grants - Academy Trust
Department for Education,Core,10/02/2023,Grants Expenditure,Capital Directorate,Mace Ltd,D-PINV052235,"26,909.96",Capital grants - Academy Trust
Department for Education,Core,10/02/2023,Grants Expenditure,Capital Directorate,Mace Ltd,D-PINV052249,"32,451.30",Capital grants - Academy Trust
Department for Education,Core,13/02/2023,Grants Expenditure,Capital Directorate,Bowmer & Kirkland Ltd,D-PINV052324,"78,736.92",Capital grants - Academy Trust
Department for Education,Core,14/02/2023,Grants Expenditure,Capital Directorate,Morgan Sindall Construction & Infrastructure Ltd,D-PINV052337,"134,646.34",Capital grants - Academy Trust
Department for Education,Core,13/02/2023,Grants Expenditure,Capital Directorate,BAM Construction Ltd,D-PINV051885,"1,658,247.14",Capital grants - Academy Trust
Department for Education,Core,13/02/2023,Grants Expenditure,Capital Directorate,Portakabin Ltd,D-PINV051962,"55,660.80",Capital grants - Academy Trust
Department for Education,Core,14/02/2023,Grants Expenditure,Capital Directorate,Bowmer & Kirkland Ltd,D-PINV052342,"284,743.20",Capital grants - Academy Trust
Department for Education,Core,15/02/2023,Grants Expenditure,Capital Directorate,Bowmer & Kirkland Ltd,D-PINV052341,"352,173.05",Capital grants - Academy Trust
Department for Education,Core,16/02/2023,Grants Expenditure,Capital Directorate,Kier Construction Scotland,D-PINV052393,"415,410.62",Capital grants - Academy Trust
Department for Education,Core,16/02/2023,Grants Expenditure,Capital Directorate,Kier Construction Scotland,D-PINV052394,"519,263.28",Capital grants - Academy Trust
Department for Education,Core,16/02/2023,Grants Expenditure,Capital Directorate,Tilbury Douglas Construction Limited,D-PINV052390,"360,427.14",Capital grants - Academy Trust
Department for Education,Core,16/02/2023,Grants Expenditure,Capital Directorate,G.F.Tomlinson Building Ltd,D-PINV052377,"200,520.00",Capital grants - Academy Trust
Department for Education,Core,17/02/2023,Grants Expenditure,Capital Directorate,Rayner Rowen Construction Limited,D-PINV052409,"111,190.52",Capital grants - Academy Trust
Department for Education,Core,20/02/2023,Grants Expenditure,Capital Directorate,Mott MacDonald Ltd,D-PINV052418,"46,638.00",Capital grants - Academy Trust
Department for Education,Core,20/02/2023,Grants Expenditure,Capital Directorate,Wates Construction Ltd,D-PINV052412,"561,650.70",Capital grants - Academy Trust
Department for Education,Core,20/02/2023,Grants Expenditure,Capital Directorate,Wates Construction Ltd,D-PINV052416,"785,776.08",Capital grants - Academy Trust
Department for Education,Core,20/02/2023,Grants Expenditure,Capital Directorate,Wates Construction Ltd,D-PINV052417,"1,808,430.46",Capital grants - Academy Trust
Department for Education,Core,17/02/2023,Grants Expenditure,Capital Directorate,Mace Ltd,D-PINV052238,"41,791.60",Capital grants - Academy Trust
Department for Education,Core,17/02/2023,Grants Expenditure,Capital Directorate,Mace Ltd,D-PINV052220,"27,379.87",Capital grants - Academy Trust
Department for Education,Core,17/02/2023,Grants Expenditure,Capital Directorate,Mace Ltd,D-PINV052290,"29,040.00",Capital grants - Academy Trust
Department for Education,Core,20/02/2023,Grants Expenditure,Capital Directorate,Tilbury Douglas Construction Limited,D-PINV052439,"533,862.92",Capital grants - Academy Trust
Department for Education,Core,20/02/2023,Grants Expenditure,Capital Directorate,Galliford Try Building Ltd,D-PINV052415,"1,121,353.55",Capital grants - Academy Trust
Department for Education,Core,20/02/2023,Grants Expenditure,Capital Directorate,Wood Group UK Limited,D-PINV052437,"33,490.80",Capital grants - Academy Trust
Department for Education,Core,22/02/2023,Grants Expenditure,Capital Directorate,Bowmer & Kirkland Ltd,D-PINV052443,"683,790.00",Capital grants - Academy Trust
Department for Education,Core,20/02/2023,Grants Expenditure,Capital Directorate,Wates Construction Ltd,D-PINV052467,"866,656.03",Capital grants - Academy Trust
Department for Education,Core,20/02/2023,Grants Expenditure,Capital Directorate,BAM Construction Ltd,D-PINV052492,"887,811.53",Capital grants - Academy Trust
Department for Education,Core,22/02/2023,Grants Expenditure,Capital Directorate,Kier Western & Wales,D-PINV052502,"752,222.40",Capital grants - Academy Trust
Department for Education,Core,20/02/2023,Grants Expenditure,Capital Directorate,Wates Construction Ltd,D-PINV052498,"1,407,974.40",Capital grants - Academy Trust
Department for Education,Core,23/02/2023,Grants Expenditure,Capital Directorate,Wood Group UK Limited,D-PINV052516,"47,236.06",Capital grants - Academy Trust
Department for Education,Core,27/02/2023,Grants Expenditure,Capital Directorate,G.F.Tomlinson Building Ltd,D-PCR001210,"-200,520.00",Capital grants - Academy Trust
Department for Education,Core,27/02/2023,Grants Expenditure,Capital Directorate,G.F.Tomlinson Building Ltd,D-PINV052499,"200,520.00",Capital grants - Academy Trust
Department for Education,Core,20/02/2023,Grants Expenditure,Capital Directorate,Bowmer & Kirkland Ltd,D-PINV052503,"1,948,812.53",Capital grants - Academy Trust
Department for Education,Core,24/02/2023,Grants Expenditure,Capital Directorate,BAM Construction Ltd,D-PINV052550,"2,206,403.65",Capital grants - Academy Trust
Department for Education,Core,27/02/2023,Grants Expenditure,Capital Directorate,Morgan Sindall Construction & Infrastructure Ltd,D-PINV052643,"197,569.20",Capital grants - Academy Trust
Department for Education,Core,01/02/2023,IS/IT,Capital Directorate,Nexus Multi Academy Trust,D-CINV003780,"13,143.66",VAT Reclaim
Department for Education,Core,01/02/2023,Grants Expenditure,Capital Directorate,Nexus Multi Academy Trust,D-CINV003780,"65,718.33",Capital grants - Academy Trust
Department for Education,Core,01/02/2023,IS/IT,Capital Directorate,Treetops Learning Community,D-CINV003842,"19,971.85",VAT Reclaim
Department for Education,Core,01/02/2023,Grants Expenditure,Capital Directorate,Treetops Learning Community,D-CINV003842,"99,859.25",Capital grants - Academy Trust
Department for Education,Core,01/02/2023,Grants Expenditure,Capital Directorate,Youth Engagement Schools Trust,D-CINV003848,"28,611.91",Capital grants - Academy Trust
Department for Education,Core,02/02/2023,Grants Expenditure,Capital Directorate,Mott MacDonald Ltd,D-PINV051865,"89,839.20",Capital grants - Academy Trust
Department for Education,Core,02/02/2023,Grants Expenditure,Capital Directorate,Mott MacDonald Ltd,D-PINV051896,"27,544.26",Capital grants - Academy Trust
Department for Education,Core,02/02/2023,Grants Expenditure,Capital Directorate,BAM Construction Ltd,D-PINV051870,"1,399,999.30",Capital grants - Academy Trust
Department for Education,Core,02/02/2023,Grants Expenditure,Capital Directorate,Willmott Dixon Construction Limited,D-PINV051929,"304,315.97",Capital grants - Academy Trust
Department for Education,Core,01/02/2023,Grants Expenditure,Capital Directorate,Royal Wharf Primary School,D-CINV003865,"115,620.99",Capital grants - Academy Trust
Department for Education,Core,01/02/2023,Grants Expenditure,Capital Directorate,Willmott Dixon Construction Limited,D-PINV051948,"2,622,818.29",Capital grants - Academy Trust
Department for Education,Core,01/02/2023,Grants Expenditure,Capital Directorate,CURRIE & BROWN UK LTD,D-PINV051965,"30,392.18",Capital grants - Academy Trust
Department for Education,Core,03/02/2023,Grants Expenditure,Capital Directorate,Kier London,D-PINV052024,"312,815.94",Capital grants - Academy Trust
Department for Education,Core,03/02/2023,Grants Expenditure,Capital Directorate,Eco Modular Buildings Limited,D-PINV052028,"303,169.20",Capital grants - Academy Trust
Department for Education,Core,02/02/2023,Grants Expenditure,Capital Directorate,BAM Construction Ltd,D-PINV052025,"372,965.17",Capital grants - Academy Trust
Department for Education,Core,03/02/2023,Grants Expenditure,Capital Directorate,Turner & Townsend,D-PINV052032,"41,551.58",Capital grants - Academy Trust
Department for Education,Core,06/02/2023,Grants Expenditure,Capital Directorate,Kier Construction Southern,D-PINV052065,"450,165.60",Capital grants - Academy Trust
Department for Education,Core,06/02/2023,Grants Expenditure,Capital Directorate,Eco Modular Buildings Limited,D-PINV052122,"1,145,542.45",Capital grants - Academy Trust
Department for Education,Core,07/02/2023,Grants Expenditure,Capital Directorate,Tilbury Douglas Construction Limited,D-PINV052101,"60,000.00",Capital grants - Academy Trust
Department for Education,Core,06/02/2023,Grants Expenditure,Capital Directorate,Morgan Sindall Construction & Infrastructure Ltd,D-PINV052066,"154,083.60",Capital grants - Academy Trust
Department for Education,Core,06/02/2023,Grants Expenditure,Capital Directorate,BONSERS RESTORATION LIMITED,D-PINV051017,"170,583.86",Capital grants - Academy Trust
Department for Education,Core,13/02/2023,Grants Expenditure,Capital Directorate,Algeco UK Limited,D-PINV052127,"754,581.14",Capital grants - Academy Trust
Department for Education,Core,06/02/2023,Grants Expenditure,Capital Directorate,ISG DEVELOPMENTS LIMITED,D-PINV051993,"747,267.47",Capital grants - Academy Trust
Department for Education,Core,03/02/2023,Other Costs,Capital Directorate,Star Academies,D-CINV003860,"35,377.20",VAT Reclaim
Department for Education,Core,03/02/2023,Grants Expenditure,Capital Directorate,Star Academies,D-CINV003860,"176,886.00",Capital grants - Academy Trust
Department for Education,Core,03/02/2023,Grants Expenditure,Capital Directorate,Barton Court Grammar School ,D-CINV003867,"116,926.80",Capital grants - Academy Trust
Department for Education,Core,03/02/2023,Grants Expenditure,Capital Directorate,Cranmer Education Trust,D-CINV003887,"86,592.29",Capital grants - Academy Trust
Department for Education,Core,08/02/2023,Grants Expenditure,Capital Directorate,LONDON DIOCESE BOARD SCHOOLS,D-CINV003904,"152,490.62",Capital grants - Academy Trust
Department for Education,Core,08/02/2023,IS/IT,Capital Directorate,Hatchlands Primary School,D-CINV003905,"4,732.55",VAT Reclaim
Department for Education,Core,08/02/2023,Grants Expenditure,Capital Directorate,Hatchlands Primary School,D-CINV003905,"23,662.75",Capital grants - Academy Trust
Department for Education,Core,08/02/2023,Grants Expenditure,Capital Directorate,Oasis Academy Byron,D-CINV003909,"49,583.30",Capital grants - Academy Trust
Department for Education,Core,08/02/2023,Grants Expenditure,Capital Directorate,Tilbury Douglas Construction Limited,D-PINV052135,"955,766.81",Capital grants - Academy Trust
Department for Education,Core,07/02/2023,Grants Expenditure,Capital Directorate,WSP UK Limited,D-PINV051035,"29,878.25",Capital grants - Academy Trust
Department for Education,Core,17/02/2023,IS/IT,Capital Directorate,LANCASTER UNIVERSITY SCHOOL OF MATHEMATICS,D-CINV003934,"17,326.54",VAT Reclaim
Department for Education,Core,17/02/2023,Grants Expenditure,Capital Directorate,LANCASTER UNIVERSITY SCHOOL OF MATHEMATICS,D-CINV003934,"86,632.72",Capital grants - Academy Trust
Department for Education,Core,17/02/2023,Grants Expenditure,Capital Directorate,Star Academies,D-CINV003936,"45,000.00",Capital grants - Academy Trust
Department for Education,Core,08/02/2023,IS/IT,Capital Directorate,Wootton Park School,D-CINV003939,"5,690.08",VAT Reclaim
Department for Education,Core,08/02/2023,Grants Expenditure,Capital Directorate,Wootton Park School,D-CINV003939,"28,450.40",Capital grants - Academy Trust
Department for Education,Core,08/02/2023,Grants Expenditure,Capital Directorate,BAM Construction Ltd,D-PINV052173,"1,512,194.68",Capital grants - Academy Trust
Department for Education,Core,27/02/2023,Grants Expenditure,Capital Directorate,ISG DEVELOPMENTS LIMITED,D-PINV052172,"308,278.48",Capital grants - Academy Trust
Department for Education,Core,10/02/2023,Grants Expenditure,Capital Directorate,GLEEDS MANAGEMENT SERVICES LIMITED,D-PINV052199,"29,825.42",Capital grants - Academy Trust
Department for Education,Core,20/02/2023,Grants Expenditure,Capital Directorate,Mace Ltd,D-PINV052451,"25,742.05",Capital grants - Academy Trust
Department for Education,Core,10/02/2023,Grants Expenditure,Capital Directorate,Morgan Sindall Construction & Infrastructure Ltd,D-PINV052254,"132,352.26",Capital grants - Academy Trust
Department for Education,Core,08/02/2023,Grants Expenditure,Capital Directorate,Mosaic Jewish Primary School,D-CINV003897,"265,114.77",Capital grants - Academy Trust
Department for Education,Core,10/02/2023,Grants Expenditure,Capital Directorate,The Avenue School,D-CINV003944,"98,770.85",Capital grants - Academy Trust
Department for Education,Core,13/02/2023,Grants Expenditure,Capital Directorate,Tilbury Douglas Construction Limited,D-PINV052260,"87,499.76",Capital grants - Academy Trust
Department for Education,Core,13/02/2023,Grants Expenditure,Capital Directorate,BAM Construction Ltd,D-PINV052258,"919,247.35",Capital grants - Academy Trust
Department for Education,Core,15/02/2023,Grants Expenditure,Capital Directorate,Algeco UK Limited,D-PINV052262,"1,336,185.54",Capital grants - Academy Trust
Department for Education,Core,13/02/2023,Grants Expenditure,Capital Directorate,REDS10 UK Limited,D-PINV052322,"571,848.89",Capital grants - Academy Trust
Department for Education,Core,13/02/2023,Grants Expenditure,Capital Directorate,REDS10 UK Limited,D-PINV052326,"708,764.39",Capital grants - Academy Trust
Department for Education,Core,13/02/2023,Grants Expenditure,Capital Directorate,ISG DEVELOPMENTS LIMITED,D-PINV052332,"1,674,789.35",Capital grants - Academy Trust
Department for Education,Core,10/02/2023,Grants Expenditure,Capital Directorate,Victoria Academies Trust,D-CINV003884,"28,429.79",Capital grants - Academy Trust
Department for Education,Core,13/02/2023,Grants Expenditure,Capital Directorate,Bowmer & Kirkland Ltd,D-PINV052312,"919,174.74",Capital grants - Academy Trust
Department for Education,Core,14/02/2023,Grants Expenditure,Capital Directorate,Bowmer & Kirkland Ltd,D-PINV052328,"62,425.32",Capital grants - Academy Trust
Department for Education,Core,16/02/2023,Grants Expenditure,Capital Directorate,Kier Construction Southern,D-PINV052354,"813,268.80",Capital grants - Academy Trust
Department for Education,Core,13/02/2023,Grants Expenditure,Capital Directorate,Mace Ltd,D-PINV051743,"42,892.20",Capital grants - Academy Trust
Department for Education,Core,16/02/2023,Grants Expenditure,Capital Directorate,Tilbury Douglas Construction Limited,D-PINV052353,"1,060,194.60",Capital grants - Academy Trust
Department for Education,Core,14/02/2023,Grants Expenditure,Capital Directorate,Galliford Try Building Ltd,D-PINV052340,"605,499.64",Capital grants - Academy Trust
Department for Education,Core,13/02/2023,Grants Expenditure,Capital Directorate,ISG DEVELOPMENTS LIMITED,D-PINV052060,"399,455.70",Capital grants - Academy Trust
Department for Education,Core,15/02/2023,Grants Expenditure,Capital Directorate,Star Academies,D-CINV003965,"45,000.00",Capital grants - Academy Trust
Department for Education,Core,14/02/2023,Grants Expenditure,Capital Directorate,Bowmer & Kirkland Ltd,D-PINV052358,"479,633.96",Capital grants - Academy Trust
Department for Education,Core,14/02/2023,Grants Expenditure,Capital Directorate,Bowmer & Kirkland Ltd,D-PINV052357,"646,857.47",Capital grants - Academy Trust
Department for Education,Core,28/02/2023,Grants Expenditure,Capital Directorate,Galliford Try Building Ltd,D-PINV052386,"1,945,412.10",Capital grants - Academy Trust
Department for Education,Core,16/02/2023,Grants Expenditure,Capital Directorate,BONSERS RESTORATION LIMITED,D-PINV052382,"182,133.18",Capital grants - Academy Trust
Department for Education,Core,24/02/2023,Grants Expenditure,Capital Directorate,CityAxis Ltd,D-PINV052381,"413,838.56",Capital grants - Academy Trust
Department for Education,Core,17/02/2023,Other Costs,Capital Directorate,North East Futures UTC,D-CINV003979,"7,999.00",VAT Reclaim
Department for Education,Core,17/02/2023,Grants Expenditure,Capital Directorate,North East Futures UTC,D-CINV003979,"39,995.00",Capital grants - Academy Trust
Department for Education,Core,15/02/2023,Grants Expenditure,Capital Directorate,Bowmer & Kirkland Ltd,D-PINV052374,"1,191,145.06",Capital grants - Academy Trust
Department for Education,Core,16/02/2023,Grants Expenditure,Capital Directorate,Bowmer & Kirkland Ltd,D-PINV052380,"1,541,664.31",Capital grants - Academy Trust
Department for Education,Core,17/02/2023,Grants Expenditure,Capital Directorate,Tilbury Douglas Construction Limited,D-PINV052405,"705,230.23",Capital grants - Academy Trust
Department for Education,Core,17/02/2023,Grants Expenditure,Capital Directorate,Morgan Sindall Construction & Infrastructure Ltd,D-PINV052407,"820,758.38",Capital grants - Academy Trust
Department for Education,Core,16/02/2023,Grants Expenditure,Capital Directorate,Spatial Initiative Ltd,D-PINV052404,"804,721.64",Capital grants - Academy Trust
Department for Education,Core,24/02/2023,Grants Expenditure,Capital Directorate,ISG DEVELOPMENTS LIMITED,D-PINV052406,"408,779.41",Capital grants - Academy Trust
Department for Education,Core,17/02/2023,Other Costs,Capital Directorate,North East Futures UTC,D-CINV003984,"9,027.20",VAT Reclaim
Department for Education,Core,17/02/2023,Grants Expenditure,Capital Directorate,North East Futures UTC,D-CINV003984,"45,136.00",Capital grants - Academy Trust
Department for Education,Core,17/02/2023,Grants Expenditure,Capital Directorate,Tilbury Douglas Construction Limited,D-PINV052421,"769,222.55",Capital grants - Academy Trust
Department for Education,Core,24/02/2023,Grants Expenditure,Capital Directorate,REDS10 UK Limited,D-PINV052411,"758,740.82",Capital grants - Academy Trust
Department for Education,Core,17/02/2023,IS/IT,Capital Directorate,Bolder Academy,D-CINV003990,"10,320.06",VAT Reclaim
Department for Education,Core,17/02/2023,Grants Expenditure,Capital Directorate,Bolder Academy,D-CINV003990,"38,902.90",Capital grants - Academy Trust
Department for Education,Core,17/02/2023,Grants Expenditure,Capital Directorate,Bolder Academy,D-CINV003990,"12,697.39",Current Grants - Academy Trusts
Department for Education,Core,22/02/2023,Other Costs,Capital Directorate,Bolder Academy,D-CINV003991,"16,218.47",VAT Reclaim
Department for Education,Core,22/02/2023,Grants Expenditure,Capital Directorate,Bolder Academy,D-CINV003991,"82,587.37",Capital grants - Academy Trust
Department for Education,Core,24/02/2023,Other Costs,Capital Directorate,Star Academies,D-CINV003992,"297,938.80",VAT Reclaim
Department for Education,Core,24/02/2023,Grants Expenditure,Capital Directorate,Star Academies,D-CINV003992,"1,489,693.99",Capital grants - Academy Trust
Department for Education,Core,17/02/2023,Grants Expenditure,Capital Directorate,Bowmer & Kirkland Ltd,D-PINV052419,"1,047,820.44",Capital grants - Academy Trust
Department for Education,Core,20/02/2023,Grants Expenditure,Capital Directorate,Bowmer & Kirkland Ltd,D-PINV052449,"50,937.60",Capital grants - Academy Trust
Department for Education,Core,20/02/2023,Grants Expenditure,Capital Directorate,Bowmer & Kirkland Ltd,D-PINV052463,"861,685.20",Capital grants - Academy Trust
Department for Education,Core,20/02/2023,Grants Expenditure,Capital Directorate,Eco Modular Buildings Limited,D-PINV052465,"88,851.86",Capital grants - Academy Trust
Department for Education,Core,20/02/2023,Grants Expenditure,Capital Directorate,Eco Modular Buildings Limited,D-PINV052491,"940,866.34",Capital grants - Academy Trust
Department for Education,Core,20/02/2023,Grants Expenditure,Capital Directorate,Morgan Sindall Construction & Infrastructure Ltd,D-PINV052488,"810,127.58",Capital grants - Academy Trust
Department for Education,Core,20/02/2023,Grants Expenditure,Capital Directorate,BAM Construction Ltd,D-PINV052490,"795,094.16",Capital grants - Academy Trust
Department for Education,Core,17/02/2023,IS/IT,Capital Directorate,The Flagship School,D-CINV003900,"6,530.76",VAT Reclaim
Department for Education,Core,17/02/2023,Grants Expenditure,Capital Directorate,The Flagship School,D-CINV003900,"32,653.79",Capital grants - Academy Trust
Department for Education,Core,21/02/2023,Grants Expenditure,Capital Directorate,Kier Construction Southern,D-PINV052506,"341,312.94",Capital grants - Academy Trust
Department for Education,Core,21/02/2023,Grants Expenditure,Capital Directorate,Kier Construction Southern,D-PINV052541,"25,079.96",Capital grants - Academy Trust
Department for Education,Core,20/02/2023,Grants Expenditure,Capital Directorate,VINCI CONSTRUCTION UK LIMITED,D-PINV052505,"1,640,350.73",Capital grants - Academy Trust
Department for Education,Core,22/02/2023,Grants Expenditure,Capital Directorate,Birmingham Ormiston Academy,D-CINV004001,"46,718.07",Capital grants - Academy Trust
Department for Education,Core,27/02/2023,Grants Expenditure,Capital Directorate,G.F.Tomlinson Building Ltd,D-PINV052543,"57,391.70",Capital grants - Academy Trust
Department for Education,Core,22/02/2023,Grants Expenditure,Capital Directorate,Bowmer & Kirkland Ltd,D-PINV052501,"989,929.75",Capital grants - Academy Trust
Department for Education,Core,22/02/2023,Grants Expenditure,Capital Directorate,Bowmer & Kirkland Ltd,D-PINV052508,"129,488.52",Capital grants - Academy Trust
Department for Education,Core,21/02/2023,Grants Expenditure,Capital Directorate,Turner & Townsend,D-PINV052500,"59,385.65",Capital grants - Academy Trust
Department for Education,Core,22/02/2023,Grants Expenditure,Capital Directorate,Galliford Try Building Ltd,D-PINV052546,"421,176.89",Capital grants - Academy Trust
Department for Education,Core,27/02/2023,Grants Expenditure,Capital Directorate,BAM Construction Ltd,D-PINV052545,"60,069.40",Capital grants - Academy Trust
Department for Education,Core,22/02/2023,Grants Expenditure,Capital Directorate,BAM Construction Ltd,D-PINV052547,"2,560,331.11",Capital grants - Academy Trust
Department for Education,Core,24/02/2023,Grants Expenditure,Capital Directorate,GLEEDS MANAGEMENT SERVICES LIMITED,D-PINV052548,"40,060.22",Capital grants - Academy Trust
Department for Education,Core,24/02/2023,Grants Expenditure,Capital Directorate,King's Leadership Academy Warrington,D-CINV004023,"39,445.59",Capital grants - Academy Trust
Department for Education,Core,27/02/2023,Grants Expenditure,Capital Directorate,Willmott Dixon Construction Limited,D-PINV052552,"215,324.33",Capital grants - Academy Trust
Department for Education,Core,27/02/2023,Grants Expenditure,Capital Directorate,Portakabin Ltd,D-PINV052633,"254,985.61",Capital grants - Academy Trust
Department for Education,Core,27/02/2023,Grants Expenditure,Capital Directorate,Willmott Dixon Construction Limited,D-PINV052057,"238,724.33",Capital grants - Academy Trust
Department for Education,Core,27/02/2023,Grants Expenditure,Capital Directorate,Kier Construction Central,D-PINV052644,"46,332.54",Capital grants - Academy Trust
Department for Education,Core,28/02/2023,Grants Expenditure,Capital Directorate,Kier Construction Eastern,D-PINV052677,"381,479.72",Capital grants - Academy Trust
Department for Education,Core,28/02/2023,Grants Expenditure,Capital Directorate,Eco Modular Buildings Limited,D-PINV052675,"231,650.40",Capital grants - Academy Trust
Department for Education,Core,28/02/2023,Grants Expenditure,Capital Directorate,Eco Modular Buildings Limited,D-PINV052676,"152,958.00",Capital grants - Academy Trust
Department for Education,Core,28/02/2023,Grants Expenditure,Capital Directorate,R&R CONTRACTS-RENOVATION & REFURBISHMENT SPECIALISTS LIMITED,D-PINV052688,"38,739.72",Capital grants - Academy Trust
Department for Education,Core,28/02/2023,Grants Expenditure,Capital Directorate,Womble Bond Dickinson (UK) LLP (Client Account) ,D-PINV052700,"160,411.10",Capital grants - Academy Trust
Department for Education,Core,01/02/2023,Grants Expenditure,Capital Directorate,Portakabin Ltd,D-PINV051947,"304,964.22",Current grants - Academy Trust
Department for Education,Core,06/02/2023,Grants Expenditure,Capital Directorate,SIBCAS LTD,D-PINV051961,"28,516.80",Current grants - Academy Trust
Department for Education,Core,07/02/2023,Grants Expenditure,Capital Directorate,ISG DEVELOPMENTS LIMITED,D-PINV052133,"184,396.26",Capital grants - Academy Trust
Department for Education,Core,13/02/2023,Grants Expenditure,Capital Directorate,Portakabin Ltd,D-PINV052327,"456,219.48",Capital grants - Academy Trust
Department for Education,Core,16/02/2023,Grants Expenditure,Capital Directorate,Kier Construction Eastern,D-PINV052356,"40,446.56",Current grants - Academy Trust
Department for Education,Core,22/02/2023,Grants Expenditure,Capital Directorate,Eric Wright Construction Ltd,D-PINV052423,"141,910.31",Current grants - Academy Trust
Department for Education,Core,01/02/2023,Grants Expenditure,Capital Directorate,Compass School Southwark,DU00098905,"42,332.62",Current grants - Academy Trust
Department for Education,Core,01/02/2023,Grants Expenditure,Capital Directorate,XP Gateshead,DU00098911,"80,027.00",Current grants - Academy Trust
Department for Education,Core,01/02/2023,Grants Expenditure,Capital Directorate,Canary Wharf College 3,DU00098914,"35,000.00",Current grants - Academy Trust
Department for Education,Core,20/02/2023,Grants Expenditure,Capital Directorate,Newquay Primary Academy,DU00099049,"26,895.01",Current grants - Academy Trust
Department for Education,Core,20/02/2023,Grants Expenditure,Capital Directorate,ABACUS BELSIZE PRIMARY SCHOOL,DU00099050,"180,500.00",Current grants - Academy Trust
Department for Education,Core,20/02/2023,Grants Expenditure,Capital Directorate,Trinity Academy St Edwards,DU00099052,"35,060.00",Current grants - Academy Trust
Department for Education,Core,13/02/2023,Other Goods & Services,Capital Directorate,Arcadis LLP,D-PINV052263,"142,162.78",Professional Services
Department for Education,Core,20/02/2023,Grants Expenditure,Capital Directorate,Denbigh School,CAY142714,"67,673.00",Capital grants - Academy Trust
Department for Education,Core,20/02/2023,Grants Expenditure,Capital Directorate,Clitheroe Royal Grammar School,CAY142715,"28,523.00",Capital grants - Academy Trust
Department for Education,Core,20/02/2023,Grants Expenditure,Capital Directorate,Sunbury Manor School,CAY142716,"55,786.00",Capital grants - Academy Trust
Department for Education,Core,20/02/2023,Grants Expenditure,Capital Directorate,Carlton Le Willows Academy,CAY142717,"53,213.00",Capital grants - Academy Trust
Department for Education,Core,20/02/2023,Grants Expenditure,Capital Directorate,Wallington High School for Girls,CAY142719,"28,657.00",Capital grants - Academy Trust
Department for Education,Core,20/02/2023,Grants Expenditure,Capital Directorate,Carshalton High School for Girls,CAY142720,"62,884.00",Capital grants - Academy Trust
Department for Education,Core,20/02/2023,Grants Expenditure,Capital Directorate,Poole Grammar School ,CAY142721,"462,737.00",Capital grants - Academy Trust
Department for Education,Core,20/02/2023,Grants Expenditure,Capital Directorate,Notley High School and Braintree Sixth Form,CAY142722,"78,419.00",Capital grants - Academy Trust
Department for Education,Core,20/02/2023,Grants Expenditure,Capital Directorate,Rookery School,CAY142723,"120,491.00",Capital grants - Academy Trust
Department for Education,Core,20/02/2023,Grants Expenditure,Capital Directorate,Harrow High School,CAY142724,"75,000.00",Capital grants - Academy Trust
Department for Education,Core,20/02/2023,Grants Expenditure,Capital Directorate,Ranelagh School,CAY142725,"25,993.00",Capital grants - Academy Trust
Department for Education,Core,20/02/2023,Grants Expenditure,Capital Directorate,St Anne's Catholic School,CAY142726,"197,502.00",Capital grants - Academy Trust
Department for Education,Core,20/02/2023,Grants Expenditure,Capital Directorate,Horbury Primary Academy,CAY142729,"67,095.00",Capital grants - Academy Trust
Department for Education,Core,20/02/2023,Grants Expenditure,Capital Directorate,The Rise Partnership Trust T/A Manor School,CAY142730,"165,230.00",Capital grants - Academy Trust
Department for Education,Core,20/02/2023,Grants Expenditure,Capital Directorate,Sir Thomas Boughey Academy,CAY142731,"46,941.00",Capital grants - Academy Trust
Department for Education,Core,20/02/2023,Grants Expenditure,Capital Directorate,Hungerford School,CAY142732,"74,799.00",Capital grants - Academy Trust
Department for Education,Core,20/02/2023,Grants Expenditure,Capital Directorate,North Beckton Primary School,CAY142733,"59,045.00",Capital grants - Academy Trust
Department for Education,Core,20/02/2023,Grants Expenditure,Capital Directorate,Long Sutton County Primary School,CAY142734,"49,281.00",Capital grants - Academy Trust
Department for Education,Core,20/02/2023,Grants Expenditure,Capital Directorate,St Monica's RC High School ,CAY142735,"87,661.00",Capital grants - Academy Trust
Department for Education,Core,20/02/2023,Grants Expenditure,Capital Directorate,Highsted Grammar School ,CAY142736,"50,191.00",Capital grants - Academy Trust
Department for Education,Core,20/02/2023,Grants Expenditure,Capital Directorate,Newquay Tretherras,CAY142737,"148,049.00",Capital grants - Academy Trust
Department for Education,Core,20/02/2023,Grants Expenditure,Capital Directorate,St Wilfrid's RC College,CAY142738,"267,869.00",Capital grants - Academy Trust
Department for Education,Core,20/02/2023,Grants Expenditure,Capital Directorate,Desborough College ,CAY142743,"136,881.00",Capital grants - Academy Trust
Department for Education,Core,20/02/2023,Grants Expenditure,Capital Directorate,Woodseats Primary,CAY142745,"104,783.00",Capital grants - Academy Trust
Department for Education,Core,20/02/2023,Grants Expenditure,Capital Directorate,Greig City Academy,CAY142746,"92,285.00",Capital grants - Academy Trust
Department for Education,Core,20/02/2023,Grants Expenditure,Capital Directorate,Dr Challoner's High School,CAY142747,"150,219.00",Capital grants - Academy Trust
Department for Education,Core,20/02/2023,Grants Expenditure,Capital Directorate,New Bridge School,CAY142749,"74,293.00",Capital grants - Academy Trust
Department for Education,Core,20/02/2023,Grants Expenditure,Capital Directorate,Langham CofE (Controlled) Primary School,CAY142750,"92,893.00",Capital grants - Academy Trust
Department for Education,Core,20/02/2023,Grants Expenditure,Capital Directorate,Dovedale Primary School,CAY142751,"53,840.00",Capital grants - Academy Trust
Department for Education,Core,20/02/2023,Grants Expenditure,Capital Directorate,Middlestown Primary Academy,CAY142752,"55,473.00",Capital grants - Academy Trust
Department for Education,Core,20/02/2023,Grants Expenditure,Capital Directorate,Cauldwell School,CAY142753,"56,126.00",Capital grants - Academy Trust
Department for Education,Core,20/02/2023,Grants Expenditure,Capital Directorate,Shackleton Primary School,CAY142754,"36,583.00",Capital grants - Academy Trust
Department for Education,Core,20/02/2023,Grants Expenditure,Capital Directorate,Houndsfield Primary School,CAY142755,"62,155.00",Capital grants - Academy Trust
Department for Education,Core,20/02/2023,Grants Expenditure,Capital Directorate,The Thomas Adams School,CAY142756,"99,464.00",Capital grants - Academy Trust
Department for Education,Core,20/02/2023,Grants Expenditure,Capital Directorate,Onslow St Audreys School,CAY142757,"79,041.00",Capital grants - Academy Trust
Department for Education,Core,20/02/2023,Grants Expenditure,Capital Directorate,Grafham Grange School,CAY142758,"30,347.00",Capital grants - Academy Trust
Department for Education,Core,20/02/2023,Grants Expenditure,Capital Directorate,Sutton Coldfield Grammar School for Girls,CAY142760,"66,038.00",Capital grants - Academy Trust
Department for Education,Core,20/02/2023,Grants Expenditure,Capital Directorate,Higham Lane School,CAY142761,"96,213.00",Capital grants - Academy Trust
Department for Education,Core,20/02/2023,Grants Expenditure,Capital Directorate,Oldham Sixth Form College,CAY142762,"88,079.00",Capital grants - Academy Trust
Department for Education,Core,20/02/2023,Grants Expenditure,Capital Directorate,Stuart Bathurst Catholic High School,CAY142763,"83,518.00",Capital grants - Academy Trust
Department for Education,Core,20/02/2023,Grants Expenditure,Capital Directorate,The Belvedere Academy,CAY142766,"102,287.00",Capital grants - Academy Trust
Department for Education,Core,20/02/2023,Grants Expenditure,Capital Directorate,Kingsdale Foundation School,CAY142767,"35,255.00",Capital grants - Academy Trust
Department for Education,Core,20/02/2023,Grants Expenditure,Capital Directorate,Pate's Grammar School,CAY142768,"88,701.00",Capital grants - Academy Trust
Department for Education,Core,20/02/2023,Grants Expenditure,Capital Directorate,King Ethelbert School,CAY142769,"64,694.00",Capital grants - Academy Trust
Department for Education,Core,20/02/2023,Grants Expenditure,Capital Directorate,Uppingham Community College,CAY142770,"76,132.00",Capital grants - Academy Trust
Department for Education,Core,20/02/2023,Grants Expenditure,Capital Directorate,Alderman Jacobs School,CAY142771,"125,929.00",Capital grants - Academy Trust
Department for Education,Core,20/02/2023,Grants Expenditure,Capital Directorate,GABLE HALL SCHOOL,CAY142773,"29,469.00",Capital grants - Academy Trust
Department for Education,Core,20/02/2023,Grants Expenditure,Capital Directorate,Bentley Wood High School,CAY142775,"89,979.00",Capital grants - Academy Trust
Department for Education,Core,20/02/2023,Grants Expenditure,Capital Directorate,Kingston School,CAY142776,"136,439.00",Capital grants - Academy Trust
Department for Education,Core,20/02/2023,Grants Expenditure,Capital Directorate,Mount Grace School,CAY142777,"97,745.00",Capital grants - Academy Trust
Department for Education,Core,20/02/2023,Grants Expenditure,Capital Directorate,Thurstable School Sports College and Sixth Form Ce,CAY142778,"92,802.00",Capital grants - Academy Trust
Department for Education,Core,20/02/2023,Grants Expenditure,Capital Directorate,John Colet School,CAY142779,"49,151.00",Capital grants - Academy Trust
Department for Education,Core,20/02/2023,Grants Expenditure,Capital Directorate,Hazelwick School,CAY142780,"76,284.00",Capital grants - Academy Trust
Department for Education,Core,20/02/2023,Grants Expenditure,Capital Directorate,Auckley School,CAY142781,"86,809.00",Capital grants - Academy Trust
Department for Education,Core,20/02/2023,Grants Expenditure,Capital Directorate,Waddesdon Church of England School,CAY142782,"233,924.00",Capital grants - Academy Trust
Department for Education,Core,20/02/2023,Grants Expenditure,Capital Directorate,Waddesdon Church of England School,CAY142783,"97,748.00",Capital grants - Academy Trust
Department for Education,Core,20/02/2023,Grants Expenditure,Capital Directorate,Redden Court School,CAY142785,"155,000.00",Capital grants - Academy Trust
Department for Education,Core,20/02/2023,Grants Expenditure,Capital Directorate,St John's School,CAY142787,"53,530.00",Capital grants - Academy Trust
Department for Education,Core,20/02/2023,Grants Expenditure,Capital Directorate,St John's School,CAY142788,"48,905.00",Capital grants - Academy Trust
Department for Education,Core,20/02/2023,Grants Expenditure,Capital Directorate,Wirral Grammar School for Boys,CAY142789,"138,987.00",Capital grants - Academy Trust
Department for Education,Core,20/02/2023,Grants Expenditure,Capital Directorate,Homewood School and Sixth Form Centre,CAY142790,"115,567.00",Capital grants - Academy Trust
Department for Education,Core,20/02/2023,Grants Expenditure,Capital Directorate,Hadrian Academy,CAY142791,"38,716.00",Capital grants - Academy Trust
Department for Education,Core,20/02/2023,Grants Expenditure,Capital Directorate,Cranfield Church of England Academy,CAY142792,"67,170.00",Capital grants - Academy Trust
Department for Education,Core,20/02/2023,Grants Expenditure,Capital Directorate,St James' Roman Catholic Primary School,CAY142793,"75,754.00",Capital grants - Academy Trust
Department for Education,Core,20/02/2023,Grants Expenditure,Capital Directorate,The Marlborough Science Academy,CAY142794,"109,964.00",Capital grants - Academy Trust
Department for Education,Core,20/02/2023,Grants Expenditure,Capital Directorate,Robert May's School,CAY142795,"212,175.00",Capital grants - Academy Trust
Department for Education,Core,20/02/2023,Grants Expenditure,Capital Directorate,Seaford Head School,CAY142796,"53,804.00",Capital grants - Academy Trust
Department for Education,Core,20/02/2023,Grants Expenditure,Capital Directorate,Tarporley High School and Sixth Form College,CAY142797,"91,759.00",Capital grants - Academy Trust
Department for Education,Core,20/02/2023,Grants Expenditure,Capital Directorate,BALSALL COMMON PRIMARY SCHOOL,CAY142798,"83,550.00",Capital grants - Academy Trust
Department for Education,Core,20/02/2023,Grants Expenditure,Capital Directorate,Bramcote College,CAY142799,"47,348.00",Capital grants - Academy Trust
Department for Education,Core,20/02/2023,Grants Expenditure,Capital Directorate,Broom Leys Primary School,CAY142800,"48,929.00",Capital grants - Academy Trust
Department for Education,Core,20/02/2023,Grants Expenditure,Capital Directorate,Hitchin Boys' School,CAY142803,"38,812.00",Capital grants - Academy Trust
Department for Education,Core,20/02/2023,Grants Expenditure,Capital Directorate,Greys Education Centre,CAY142805,"30,564.00",Capital grants - Academy Trust
Department for Education,Core,20/02/2023,Grants Expenditure,Capital Directorate,Wellesley Park Primary School,CAY142807,"80,261.00",Capital grants - Academy Trust
Department for Education,Core,20/02/2023,Grants Expenditure,Capital Directorate,Brentside Primary Academy,CAY142808,"32,598.00",Capital grants - Academy Trust
Department for Education,Core,20/02/2023,Grants Expenditure,Capital Directorate,Lewannick Community Primary School,CAY142812,"51,237.00",Capital grants - Academy Trust
Department for Education,Core,20/02/2023,Grants Expenditure,Capital Directorate,St Helen's Catholic Primary School,CAY142813,"41,948.00",Capital grants - Academy Trust
Department for Education,Core,20/02/2023,Grants Expenditure,Capital Directorate,Manor Community Primary School ,CAY142814,"46,947.00",Capital grants - Academy Trust
Department for Education,Core,20/02/2023,Grants Expenditure,Capital Directorate,Bedonwell Junior School,CAY142815,"130,420.00",Capital grants - Academy Trust
Department for Education,Core,20/02/2023,Grants Expenditure,Capital Directorate,St Mary's Catholic Primary School ,CAY142817,"46,152.00",Capital grants - Academy Trust
Department for Education,Core,20/02/2023,Grants Expenditure,Capital Directorate,Dartford Grammar School for Girls,CAY142818,"43,326.00",Capital grants - Academy Trust
Department for Education,Core,20/02/2023,Grants Expenditure,Capital Directorate,Ixworth Church of England Primary School,CAY142823,"27,683.00",Capital grants - Academy Trust
Department for Education,Core,20/02/2023,Grants Expenditure,Capital Directorate,LUBAVITCH GIRLS PRIMARY SCHOOL,CAY142825,"72,646.00",Capital grants - Academy Trust
Department for Education,Core,20/02/2023,Grants Expenditure,Capital Directorate,LUBAVITCH GIRLS PRIMARY SCHOOL,CAY142826,"100,468.00",Capital grants - Academy Trust
Department for Education,Core,20/02/2023,Grants Expenditure,Capital Directorate,St Peter's CofE Primary School,CAY142827,"60,250.00",Capital grants - Academy Trust
Department for Education,Core,20/02/2023,Grants Expenditure,Capital Directorate,Worcesters Primary School,CAY142831,"51,166.00",Capital grants - Academy Trust
Department for Education,Core,20/02/2023,Grants Expenditure,Capital Directorate,Firwood High School,CAY142832,"80,410.00",Capital grants - Academy Trust
Department for Education,Core,20/02/2023,Grants Expenditure,Capital Directorate,Stanley Road Primary School,CAY142833,"29,421.00",Capital grants - Academy Trust
Department for Education,Core,20/02/2023,Grants Expenditure,Capital Directorate,Elmhurst School,CAY142835,"88,603.00",Capital grants - Academy Trust
Department for Education,Core,20/02/2023,Grants Expenditure,Capital Directorate,Gillshill Primary School,CAY142836,"57,878.00",Capital grants - Academy Trust
Department for Education,Core,20/02/2023,Grants Expenditure,Capital Directorate,Knaphill School,CAY142837,"76,563.00",Capital grants - Academy Trust
Department for Education,Core,20/02/2023,Grants Expenditure,Capital Directorate,St Mary's CofE Primary School,CAY142838,"30,739.00",Capital grants - Academy Trust
Department for Education,Core,20/02/2023,Grants Expenditure,Capital Directorate,Bredbury St Marks CE Primary School,CAY142839,"57,798.00",Capital grants - Academy Trust
Department for Education,Core,20/02/2023,Grants Expenditure,Capital Directorate,Lyngford Park Primary School,CAY142841,"46,507.00",Capital grants - Academy Trust
Department for Education,Core,20/02/2023,Grants Expenditure,Capital Directorate,The Giles Academy,CAY142842,"207,503.00",Capital grants - Academy Trust
Department for Education,Core,20/02/2023,Grants Expenditure,Capital Directorate,John Clifford Primary and Nursery School,CAY142843,"107,062.00",Capital grants - Academy Trust
Department for Education,Core,20/02/2023,Grants Expenditure,Capital Directorate,SIXTH FORM COLLEGE COLCHESTER,CAY142844,"96,220.00",Capital grants - Academy Trust
Department for Education,Core,20/02/2023,Grants Expenditure,Capital Directorate,Kingstone High School,CAY142847,"51,030.00",Capital grants - Academy Trust
Department for Education,Core,20/02/2023,Grants Expenditure,Capital Directorate,Thomas Estley Community College,CAY142849,"36,066.00",Capital grants - Academy Trust
Department for Education,Core,20/02/2023,Grants Expenditure,Capital Directorate,Carew academy,CAY142850,"44,965.00",Capital grants - Academy Trust
Department for Education,Core,20/02/2023,Grants Expenditure,Capital Directorate,"St John Fisher Catholic Primary School, A Voluntar",CAY142851,"25,835.00",Capital grants - Academy Trust
Department for Education,Core,20/02/2023,Grants Expenditure,Capital Directorate,THE LINK SECONDARY SCHOOL,CAY142853,"27,242.00",Capital grants - Academy Trust
Department for Education,Core,20/02/2023,Grants Expenditure,Capital Directorate,Grafham Grange School,CAY142854,"66,822.00",Capital grants - Academy Trust
Department for Education,Core,20/02/2023,Grants Expenditure,Capital Directorate,Chancellor's School,CAY142855,"70,545.00",Capital grants - Academy Trust
Department for Education,Core,20/02/2023,Grants Expenditure,Capital Directorate,Dosthill Primary Academy,CAY142856,"34,339.00",Capital grants - Academy Trust
Department for Education,Core,20/02/2023,Grants Expenditure,Capital Directorate,St Wilfrid's Church of England Academy ,CAY142865,"117,703.00",Capital grants - Academy Trust
Department for Education,Core,20/02/2023,Grants Expenditure,Capital Directorate,Denholme Primary School,CAY142866,"90,274.00",Capital grants - Academy Trust
Department for Education,Core,20/02/2023,Grants Expenditure,Capital Directorate,Halam CofE Primary School,CAY142867,"32,685.00",Capital grants - Academy Trust
Department for Education,Core,20/02/2023,Grants Expenditure,Capital Directorate,Little Heath School,CAY142868,"169,535.00",Capital grants - Academy Trust
Department for Education,Core,20/02/2023,Grants Expenditure,Capital Directorate,Parkstone Grammar School,CAY142869,"90,361.00",Capital grants - Academy Trust
Department for Education,Core,20/02/2023,Grants Expenditure,Capital Directorate,HIGHWORTH GRAMMAR SCHOOL,CAY142870,"61,571.00",Capital grants - Academy Trust
Department for Education,Core,20/02/2023,Grants Expenditure,Capital Directorate,Altrincham Grammar School for Boys,CAY142871,"86,182.00",Capital grants - Academy Trust
Department for Education,Core,20/02/2023,Grants Expenditure,Capital Directorate,"The Royal Grammar School, High Wycombe",CAY142872,"250,686.00",Capital grants - Academy Trust
Department for Education,Core,20/02/2023,Grants Expenditure,Capital Directorate,Towers School and Sixth Form Centre,CAY142873,"36,723.00",Capital grants - Academy Trust
Department for Education,Core,20/02/2023,Grants Expenditure,Capital Directorate,Carlton Le Willows Academy,CAY142875,"32,893.00",Capital grants - Academy Trust
Department for Education,Core,20/02/2023,Grants Expenditure,Capital Directorate,Carlton Le Willows Academy,CAY142876,"25,520.00",Capital grants - Academy Trust
Department for Education,Core,20/02/2023,Grants Expenditure,Capital Directorate,ARNOLD ACADEMY,CAY142877,"117,633.00",Capital grants - Academy Trust
Department for Education,Core,20/02/2023,Grants Expenditure,Capital Directorate,Lostock Hall Academy Trust,CAY142878,"34,553.00",Capital grants - Academy Trust
Department for Education,Core,20/02/2023,Grants Expenditure,Capital Directorate,Trinity High School and Sixth Form Centre,CAY142879,"303,662.00",Capital grants - Academy Trust
Department for Education,Core,20/02/2023,Grants Expenditure,Capital Directorate,Rookery School,CAY142880,"57,176.00",Capital grants - Academy Trust
Department for Education,Core,20/02/2023,Grants Expenditure,Capital Directorate,Dallam School,CAY142882,"34,819.00",Capital grants - Academy Trust
Department for Education,Core,20/02/2023,Grants Expenditure,Capital Directorate,Mill Hill County High School,CAY142883,"111,765.00",Capital grants - Academy Trust
Department for Education,Core,20/02/2023,Grants Expenditure,Capital Directorate,Christ's College Finchley,CAY142884,"128,458.00",Capital grants - Academy Trust
Department for Education,Core,20/02/2023,Grants Expenditure,Capital Directorate,THE CHASE ,CAY142885,"81,926.00",Capital grants - Academy Trust
Department for Education,Core,20/02/2023,Grants Expenditure,Capital Directorate,Tubbenden Primary School,CAY142886,"64,643.00",Capital grants - Academy Trust
Department for Education,Core,20/02/2023,Grants Expenditure,Capital Directorate,Langtree School ,CAY142887,"70,830.00",Capital grants - Academy Trust
Department for Education,Core,20/02/2023,Grants Expenditure,Capital Directorate,WESTMINSTER CITY SCHOOL,CAY142888,"25,377.00",Capital grants - Academy Trust
Department for Education,Core,20/02/2023,Grants Expenditure,Capital Directorate,Northgate Primary School ,CAY142889,"123,677.00",Capital grants - Academy Trust
Department for Education,Core,20/02/2023,Grants Expenditure,Capital Directorate,Queens Park Community School ,CAY142890,"84,975.00",Capital grants - Academy Trust
Department for Education,Core,20/02/2023,Grants Expenditure,Capital Directorate,KING JAMES'S SCHOOL,CAY142891,"36,876.00",Capital grants - Academy Trust
Department for Education,Core,20/02/2023,Grants Expenditure,Capital Directorate,Westwoodside Church of England Academy,CAY142893,"74,547.00",Capital grants - Academy Trust
Department for Education,Core,20/02/2023,Grants Expenditure,Capital Directorate,Holywell Primary School,CAY142894,"70,000.00",Capital grants - Academy Trust
Department for Education,Core,20/02/2023,Grants Expenditure,Capital Directorate,THE LINCOLN MANOR LEAS JUNIOR SCHOOL,CAY142895,"207,404.00",Capital grants - Academy Trust
Department for Education,Core,20/02/2023,Grants Expenditure,Capital Directorate,MOORSIDE COMMUNITY PRIMARY ACADEMY SCHOOL,CAY142896,"43,076.00",Capital grants - Academy Trust
Department for Education,Core,20/02/2023,Grants Expenditure,Capital Directorate,Goldington Green Academy,CAY142897,"100,099.00",Capital grants - Academy Trust
Department for Education,Core,20/02/2023,Grants Expenditure,Capital Directorate,Thomson House School,CAY142898,"71,791.00",Capital grants - Academy Trust
Department for Education,Core,20/02/2023,Grants Expenditure,Capital Directorate,St Mary's Catholic Primary School,CAY142899,"63,598.00",Capital grants - Academy Trust
Department for Education,Core,20/02/2023,Grants Expenditure,Capital Directorate,Glascote Academy,CAY142901,"237,867.00",Capital grants - Academy Trust
Department for Education,Core,20/02/2023,Grants Expenditure,Capital Directorate,Drapers' Pyrgo Priory School,CAY142903,"47,060.00",Capital grants - Academy Trust
Department for Education,Core,20/02/2023,Grants Expenditure,Capital Directorate,Leasowes Primary School,CAY142906,"29,304.00",Capital grants - Academy Trust
Department for Education,Core,20/02/2023,Grants Expenditure,Capital Directorate,Temple Hill Primary Academy,CAY142907,"32,000.00",Capital grants - Academy Trust
Department for Education,Core,20/02/2023,Grants Expenditure,Capital Directorate,Thomas Alleynes High School,CAY142909,"26,445.00",Capital grants - Academy Trust
Department for Education,Core,20/02/2023,Grants Expenditure,Capital Directorate,Thomas Alleynes High School,CAY142910,"422,364.00",Capital grants - Academy Trust
Department for Education,Core,20/02/2023,Grants Expenditure,Capital Directorate,Duloe CofE VA Primary Academy,CAY142911,"25,801.00",Capital grants - Academy Trust
Department for Education,Core,20/02/2023,Grants Expenditure,Capital Directorate,West Hill Primary Academy,CAY142912,"47,435.00",Capital grants - Academy Trust
Department for Education,Core,20/02/2023,Grants Expenditure,Capital Directorate,The Oaks Community Infant School,CAY142913,"86,509.00",Capital grants - Academy Trust
Department for Education,Core,20/02/2023,Grants Expenditure,Capital Directorate,Marshbrook First School,CAY142914,"35,056.00",Capital grants - Academy Trust
Department for Education,Core,20/02/2023,Grants Expenditure,Capital Directorate,Dormers Wells Junior School,CAY142916,"59,541.00",Capital grants - Academy Trust
Department for Education,Core,20/02/2023,Grants Expenditure,Capital Directorate,Springfield School,CAY142917,"44,850.00",Capital grants - Academy Trust
Department for Education,Core,20/02/2023,Grants Expenditure,Capital Directorate,St Mary & St Chad CE (VC) First School,CAY142918,"34,684.00",Capital grants - Academy Trust
Department for Education,Core,20/02/2023,Grants Expenditure,Capital Directorate,Gorse Covert Community Primary School,CAY142920,"50,984.00",Capital grants - Academy Trust
Department for Education,Core,20/02/2023,Grants Expenditure,Capital Directorate,Monkwearmouth Academy ,CAY142921,"128,874.00",Capital grants - Academy Trust
Department for Education,Core,20/02/2023,Grants Expenditure,Capital Directorate,Byfleet Primary School,CAY142922,"31,656.00",Capital grants - Academy Trust
Department for Education,Core,20/02/2023,Grants Expenditure,Capital Directorate,Sunny Bank Primary School,CAY142923,"47,448.00",Capital grants - Academy Trust
Department for Education,Core,20/02/2023,Grants Expenditure,Capital Directorate,De Montfort School,CAY142925,"74,064.00",Capital grants - Academy Trust
Department for Education,Core,20/02/2023,Grants Expenditure,Capital Directorate,Moorside High School,CAY142926,"116,956.00",Capital grants - Academy Trust
Department for Education,Core,20/02/2023,Grants Expenditure,Capital Directorate,Fleetdown Primary Academy,CAY142927,"142,841.00",Capital grants - Academy Trust
Department for Education,Core,20/02/2023,Grants Expenditure,Capital Directorate,Clayton Hall Academy,CAY142929,"38,776.00",Capital grants - Academy Trust
Department for Education,Core,20/02/2023,Grants Expenditure,Capital Directorate,St Mary's Church of England High School (VA),CAY142932,"37,280.00",Capital grants - Academy Trust
Department for Education,Core,20/02/2023,Grants Expenditure,Capital Directorate,Wimbledon College,CAY142934,"58,592.00",Capital grants - Academy Trust
Department for Education,Core,20/02/2023,Grants Expenditure,Capital Directorate,Sir Roger Manwood's School,CAY142935,"38,789.00",Capital grants - Academy Trust
Department for Education,Core,20/02/2023,Grants Expenditure,Capital Directorate,Park View School,CAY142936,"33,588.00",Capital grants - Academy Trust
Department for Education,Core,20/02/2023,Grants Expenditure,Capital Directorate,West Hill School,CAY142937,"100,381.00",Capital grants - Academy Trust
Department for Education,Core,20/02/2023,Grants Expenditure,Capital Directorate,Chesham Grammar School,CAY142938,"91,516.00",Capital grants - Academy Trust
Department for Education,Core,20/02/2023,Grants Expenditure,Capital Directorate,The London Oratory School,CAY142939,"156,957.00",Capital grants - Academy Trust
Department for Education,Core,20/02/2023,Grants Expenditure,Capital Directorate,Trinity High School and Sixth Form Centre,CAY142940,"79,420.00",Capital grants - Academy Trust
Department for Education,Core,20/02/2023,Grants Expenditure,Capital Directorate,Brooke Hill Academy ,CAY142941,"51,581.00",Capital grants - Academy Trust
Department for Education,Core,20/02/2023,Grants Expenditure,Capital Directorate,"Queen Elizabeth's Grammar School, Horncastle",CAY142943,"60,000.00",Capital grants - Academy Trust
Department for Education,Core,20/02/2023,Grants Expenditure,Capital Directorate,The Bromfords School And Sixth Form College,CAY142944,"27,341.00",Capital grants - Academy Trust
Department for Education,Core,20/02/2023,Grants Expenditure,Capital Directorate,Monkwearmouth Academy ,CAY142946,"120,275.00",Capital grants - Academy Trust
Department for Education,Core,20/02/2023,Grants Expenditure,Capital Directorate,Uppingham Community College,CAY142949,"758,603.00",Capital grants - Academy Trust
Department for Education,Core,20/02/2023,Grants Expenditure,Capital Directorate,ARNOLD ACADEMY,CAY142950,"48,319.00",Capital grants - Academy Trust
Department for Education,Core,20/02/2023,Grants Expenditure,Capital Directorate,Sacred Heart of Mary Girls' School,CAY142951,"76,516.00",Capital grants - Academy Trust
Department for Education,Core,20/02/2023,Grants Expenditure,Capital Directorate,St Barnabas CofE Primary Academy,CAY142953,"29,840.00",Capital grants - Academy Trust
Department for Education,Core,20/02/2023,Grants Expenditure,Capital Directorate,Langtree School ,CAY142954,"83,268.00",Capital grants - Academy Trust
Department for Education,Core,20/02/2023,Grants Expenditure,Capital Directorate,THE HENRIETTA BARNETT SCHOOL,CAY142956,"71,351.00",Capital grants - Academy Trust
Department for Education,Core,20/02/2023,Grants Expenditure,Capital Directorate,THE LINCOLN MANOR LEAS JUNIOR SCHOOL,CAY142957,"145,738.00",Capital grants - Academy Trust
Department for Education,Core,20/02/2023,Grants Expenditure,Capital Directorate,Burnt Ash Primary School,CAY142959,"52,927.00",Capital grants - Academy Trust
Department for Education,Core,20/02/2023,Grants Expenditure,Capital Directorate,Ryedene Primary & Nursery School,CAY142960,"42,884.00",Capital grants - Academy Trust
Department for Education,Core,20/02/2023,Grants Expenditure,Capital Directorate,South Witham Community Primary School,CAY142961,"35,503.00",Capital grants - Academy Trust
Department for Education,Core,20/02/2023,Grants Expenditure,Capital Directorate,Royal Rise Primary School ,CAY142963,"40,618.00",Capital grants - Academy Trust
Department for Education,Core,20/02/2023,Grants Expenditure,Capital Directorate,Richard Taunton Sixth Form College,CAY142964,"257,680.00",Capital grants - Academy Trust
Department for Education,Core,20/02/2023,Grants Expenditure,Capital Directorate,Greensted Infant School and Nursery,CAY142965,"47,540.00",Capital grants - Academy Trust
Department for Education,Core,20/02/2023,Grants Expenditure,Capital Directorate,Colne Park High School,CAY142966,"50,647.00",Capital grants - Academy Trust
Department for Education,Core,20/02/2023,Grants Expenditure,Capital Directorate,Morecambe Bay Academy ,CAY142967,"75,138.00",Capital grants - Academy Trust
Department for Education,Core,20/02/2023,Grants Expenditure,Capital Directorate,Arlecdon Primary School,CAY142968,"124,926.00",Capital grants - Academy Trust
Department for Education,Core,20/02/2023,Grants Expenditure,Capital Directorate,Woodhouse West Primary School,CAY142969,"54,968.00",Capital grants - Academy Trust
Department for Education,Core,20/02/2023,Grants Expenditure,Capital Directorate,Woodhouse West Primary School,CAY142970,"70,546.00",Capital grants - Academy Trust
Department for Education,Core,20/02/2023,Grants Expenditure,Capital Directorate,Middlewich High School,CAY142971,"92,663.00",Capital grants - Academy Trust
Department for Education,Core,20/02/2023,Grants Expenditure,Capital Directorate,Van Gogh Academy,CAY142974,"134,384.00",Capital grants - Academy Trust
Department for Education,Core,20/02/2023,Grants Expenditure,Capital Directorate,Greig City Academy,CAY142975,"78,417.00",Capital grants - Academy Trust
Department for Education,Core,20/02/2023,Grants Expenditure,Capital Directorate,The Compton School,CAY142976,"55,550.00",Capital grants - Academy Trust
Department for Education,Core,20/02/2023,Grants Expenditure,Capital Directorate,The Compton School,CAY142977,"54,959.00",Capital grants - Academy Trust
Department for Education,Core,20/02/2023,Grants Expenditure,Capital Directorate,Ashlawn School,CAY142978,"56,755.00",Capital grants - Academy Trust
Department for Education,Core,20/02/2023,Grants Expenditure,Capital Directorate,Nonsuch High School for Girls,CAY142979,"74,961.00",Capital grants - Academy Trust
Department for Education,Core,20/02/2023,Grants Expenditure,Capital Directorate,The Magna Carta School,CAY142980,"63,841.00",Capital grants - Academy Trust
Department for Education,Core,20/02/2023,Grants Expenditure,Capital Directorate,The London Oratory School,CAY142981,"82,863.00",Capital grants - Academy Trust
Department for Education,Core,20/02/2023,Grants Expenditure,Capital Directorate,Warden Park School,CAY142983,"122,625.00",Capital grants - Academy Trust
Department for Education,Core,20/02/2023,Grants Expenditure,Capital Directorate,The Dorcan Academy,CAY142984,"106,640.00",Capital grants - Academy Trust
Department for Education,Core,20/02/2023,Grants Expenditure,Capital Directorate,Featherstone High School,CAY142985,"103,493.00",Capital grants - Academy Trust
Department for Education,Core,20/02/2023,Grants Expenditure,Capital Directorate,"St Mary's Church of England Primary School, Barnsl",CAY142986,"51,608.00",Capital grants - Academy Trust
Department for Education,Core,20/02/2023,Grants Expenditure,Capital Directorate,Beacon Academy,CAY142987,"106,322.00",Capital grants - Academy Trust
Department for Education,Core,20/02/2023,Grants Expenditure,Capital Directorate,Beacon Academy,CAY142988,"101,761.00",Capital grants - Academy Trust
Department for Education,Core,20/02/2023,Grants Expenditure,Capital Directorate,Hailsham Community College ,CAY142989,"94,336.00",Capital grants - Academy Trust
Department for Education,Core,20/02/2023,Grants Expenditure,Capital Directorate,Hailsham Community College ,CAY142990,"92,926.00",Capital grants - Academy Trust
Department for Education,Core,20/02/2023,Grants Expenditure,Capital Directorate,Liverpool College ,CAY142991,"61,212.00",Capital grants - Academy Trust
Department for Education,Core,20/02/2023,Grants Expenditure,Capital Directorate,Simon Balle All-Through School,CAY142992,"62,279.00",Capital grants - Academy Trust
Department for Education,Core,20/02/2023,Grants Expenditure,Capital Directorate,Castle Hill Primary School,CAY142993,"38,008.00",Capital grants - Academy Trust
Department for Education,Core,20/02/2023,Grants Expenditure,Capital Directorate,The Windsor Boys' School,CAY142994,"42,047.00",Capital grants - Academy Trust
Department for Education,Core,20/02/2023,Grants Expenditure,Capital Directorate,Windsor Girls' School,CAY142995,"90,895.00",Capital grants - Academy Trust
Department for Education,Core,20/02/2023,Grants Expenditure,Capital Directorate,Victoria Primary School,CAY142996,"74,573.00",Capital grants - Academy Trust
Department for Education,Core,20/02/2023,Grants Expenditure,Capital Directorate,St Stephens CofE Primary School,CAY142997,"39,174.00",Capital grants - Academy Trust
Department for Education,Core,20/02/2023,Grants Expenditure,Capital Directorate,Houghton on the Hill CE Primary School,CAY142998,"66,137.00",Capital grants - Academy Trust
Department for Education,Core,20/02/2023,Grants Expenditure,Capital Directorate,FLIMBY PRIMARY SCHOOL,CAY142999,"45,344.00",Capital grants - Academy Trust
Department for Education,Core,20/02/2023,Grants Expenditure,Capital Directorate,Moorland Primary School,CAY143001,"65,946.00",Capital grants - Academy Trust
Department for Education,Core,20/02/2023,Grants Expenditure,Capital Directorate,The Coopers' Company and Coborn School,CAY143031,"53,528.00",Capital grants - Academy Trust
Department for Education,Core,20/02/2023,Grants Expenditure,Capital Directorate,Shenley Brook End School,CAY143032,"62,102.00",Capital grants - Academy Trust
Department for Education,Core,20/02/2023,Grants Expenditure,Capital Directorate,The Meadow Community Primary School,CAY143033,"65,000.00",Capital grants - Academy Trust
Department for Education,Core,20/02/2023,Grants Expenditure,Capital Directorate,Colston's Primary School,CAY143034,"56,649.00",Capital grants - Academy Trust
Department for Education,Core,20/02/2023,Grants Expenditure,Capital Directorate,Temple Grove Academy ,CAY143036,"118,208.00",Capital grants - Academy Trust
Department for Education,Core,20/02/2023,Grants Expenditure,Capital Directorate,CARMEL COLLEGE,CAY143038,"117,745.00",Capital grants - Academy Trust
Department for Education,Core,20/02/2023,Grants Expenditure,Capital Directorate,Iqra Slough Islamic Primary School,CAY143039,"111,146.00",Capital grants - Academy Trust
Department for Education,Core,20/02/2023,Grants Expenditure,Capital Directorate,St Joseph�s Catholic College,CAY143040,"37,683.00",Capital grants - Academy Trust
Department for Education,Core,20/02/2023,Grants Expenditure,Capital Directorate,GRAVESEND GRAMMAR SCHOOL ,CAY143041,"134,374.00",Capital grants - Academy Trust
Department for Education,Core,20/02/2023,Grants Expenditure,Capital Directorate,GRAVESEND GRAMMAR SCHOOL ,CAY143042,"72,702.00",Capital grants - Academy Trust
Department for Education,Core,20/02/2023,Grants Expenditure,Capital Directorate,Wandle Valley School,CAY143043,"100,700.00",Capital grants - Academy Trust
Department for Education,Core,20/02/2023,Grants Expenditure,Capital Directorate,Kingsbury High School,CAY143044,"187,485.00",Capital grants - Academy Trust
Department for Education,Core,20/02/2023,Grants Expenditure,Capital Directorate,Sir Harry Smith Community College,CAY143045,"50,117.00",Capital grants - Academy Trust
Department for Education,Core,20/02/2023,Grants Expenditure,Capital Directorate,Scawby Academy,CAY143046,"57,397.00",Capital grants - Academy Trust
Department for Education,Core,20/02/2023,Grants Expenditure,Capital Directorate,Newbridge High School  ,CAY143047,"56,856.00",Capital grants - Academy Trust
Department for Education,Core,20/02/2023,Grants Expenditure,Capital Directorate,Newbridge High School  ,CAY143048,"62,988.00",Capital grants - Academy Trust
Department for Education,Core,20/02/2023,Grants Expenditure,Capital Directorate,Warren Farm Primary School,CAY143049,"262,054.00",Capital grants - Academy Trust
Department for Education,Core,20/02/2023,Grants Expenditure,Capital Directorate,Seaford Head School,CAY143050,"122,960.00",Capital grants - Academy Trust
Department for Education,Core,20/02/2023,Grants Expenditure,Capital Directorate,The Bishop Wand Church of England School,CAY143051,"58,280.00",Capital grants - Academy Trust
Department for Education,Core,20/02/2023,Grants Expenditure,Capital Directorate,Skelmanthorpe Academy,CAY143052,"49,516.00",Capital grants - Academy Trust
Department for Education,Core,20/02/2023,Grants Expenditure,Capital Directorate,HALIFAX PRIMARY SCHOOL,CAY143053,"41,881.00",Capital grants - Academy Trust
Department for Education,Core,20/02/2023,Grants Expenditure,Capital Directorate,Alma Primary School,CAY143054,"72,067.00",Capital grants - Academy Trust
Department for Education,Core,20/02/2023,Grants Expenditure,Capital Directorate,Greenside Primary School,CAY143055,"34,399.00",Capital grants - Academy Trust
Department for Education,Core,20/02/2023,Grants Expenditure,Capital Directorate,St Annes RC School,CAY143057,"119,959.00",Capital grants - Academy Trust
Department for Education,Core,20/02/2023,Grants Expenditure,Capital Directorate,Ashcombe Primary School ,CAY143058,"688,242.00",Capital grants - Academy Trust
Department for Education,Core,20/02/2023,Other Costs,Capital Directorate,Diptford Parochial Church of England Primary Schoo,CAY143069,"172,136.00",Condition Improvement Funding
Department for Education,Core,20/02/2023,Grants Expenditure,Capital Directorate,"Tudor Church of England Primary School, Sudbury",CAY143082,"40,826.00",Capital grants - Academy Trust
Department for Education,Core,20/02/2023,Grants Expenditure,Capital Directorate,St Mary's Church of England Voluntary Aided Primar,CAY143083,"52,068.00",Capital grants - Academy Trust
Department for Education,Core,20/02/2023,Grants Expenditure,Capital Directorate,Eyke C of E Voluntary Controlled Primary Sch,CAY143086,"57,880.00",Capital grants - Academy Trust
Department for Education,Core,20/02/2023,Grants Expenditure,Capital Directorate,Newquay Tretherras,CAY143089,"43,181.00",Capital grants - Academy Trust
Department for Education,Core,20/02/2023,Grants Expenditure,Capital Directorate,Overfields Primary School,CAY143090,"77,378.00",Capital grants - Academy Trust
Department for Education,Core,20/02/2023,Grants Expenditure,Capital Directorate,Alameda Middle School,CAY143091,"45,168.00",Capital grants - Academy Trust
Department for Education,Core,20/02/2023,Grants Expenditure,Capital Directorate,St Dominic's School,CAY143092,"59,459.00",Capital grants - Academy Trust
Department for Education,Core,20/02/2023,Grants Expenditure,Capital Directorate,Netherthorpe School,CAY143093,"74,173.00",Capital grants - Academy Trust
Department for Education,Core,20/02/2023,Grants Expenditure,Capital Directorate,Netherthorpe School,CAY143094,"135,582.00",Capital grants - Academy Trust
Department for Education,Core,20/02/2023,Grants Expenditure,Capital Directorate,BBG ACADEMY,CAY143095,"145,684.00",Capital grants - Academy Trust
Department for Education,Core,20/02/2023,Grants Expenditure,Capital Directorate,Robert May's School,CAY143096,"103,339.00",Capital grants - Academy Trust
Department for Education,Core,20/02/2023,Grants Expenditure,Capital Directorate,The Featherstone Academy,CAY143097,"99,195.00",Capital grants - Academy Trust
Department for Education,Core,20/02/2023,Grants Expenditure,Capital Directorate,Lady Jane Grey Primary School,CAY143098,"28,717.00",Capital grants - Academy Trust
Department for Education,Core,20/02/2023,Grants Expenditure,Capital Directorate,Lady Jane Grey Primary School,CAY143099,"37,666.00",Capital grants - Academy Trust
Department for Education,Core,20/02/2023,Grants Expenditure,Capital Directorate,Ridgeway Academy,CAY143100,"34,153.00",Capital grants - Academy Trust
Department for Education,Core,20/02/2023,Grants Expenditure,Capital Directorate,Gordon's School,CAY143101,"98,007.00",Capital grants - Academy Trust
Department for Education,Core,20/02/2023,Grants Expenditure,Capital Directorate,Northwold Primary School,CAY143102,"63,571.00",Capital grants - Academy Trust
Department for Education,Core,20/02/2023,Grants Expenditure,Capital Directorate,The PRIDE Academy,CAY143103,"86,912.00",Capital grants - Academy Trust
Department for Education,Core,20/02/2023,Grants Expenditure,Capital Directorate,DYSART SCHOOL,CAY143107,"40,549.00",Capital grants - Academy Trust
Department for Education,Core,20/02/2023,Grants Expenditure,Capital Directorate,Temple Hill Primary Academy,CAY143109,"56,550.00",Capital grants - Academy Trust
Department for Education,Core,20/02/2023,Grants Expenditure,Capital Directorate,FRIARS PRIMARY SCHOOL AND NURSERY,CAY143110,"43,683.00",Capital grants - Academy Trust
Department for Education,Core,20/02/2023,Grants Expenditure,Capital Directorate,Manor Lodge Community Primary and Nursery School,CAY143111,"26,955.00",Capital grants - Academy Trust
Department for Education,Core,20/02/2023,Grants Expenditure,Capital Directorate,Bromet Primary School,CAY143114,"30,842.00",Capital grants - Academy Trust
Department for Education,Core,20/02/2023,Grants Expenditure,Capital Directorate,Grafham Grange School,CAY143116,"33,631.00",Capital grants - Academy Trust
Department for Education,Core,20/02/2023,Grants Expenditure,Capital Directorate,Brantridge School,CAY143117,"41,433.00",Capital grants - Academy Trust
Department for Education,Core,20/02/2023,Grants Expenditure,Capital Directorate,Ian Mikardo High School,CAY143119,"77,273.00",Capital grants - Academy Trust
Department for Education,Core,20/02/2023,Grants Expenditure,Capital Directorate,Bingley Grammar School,CAY143121,"49,936.00",Capital grants - Academy Trust
Department for Education,Core,20/02/2023,Grants Expenditure,Capital Directorate,The Charter School ,CAY143123,"55,757.00",Capital grants - Academy Trust
Department for Education,Core,20/02/2023,Grants Expenditure,Capital Directorate,Hartwell Primary School,CAY143124,"33,166.00",Capital grants - Academy Trust
Department for Education,Core,20/02/2023,Grants Expenditure,Capital Directorate,Rickmansworth School,CAY143125,"30,139.00",Capital grants - Academy Trust
Department for Education,Core,20/02/2023,Grants Expenditure,Capital Directorate,East Barnet School,CAY143126,"70,864.00",Capital grants - Academy Trust
Department for Education,Core,20/02/2023,Grants Expenditure,Capital Directorate,Park House School Newbury,CAY143127,"90,604.00",Capital grants - Academy Trust
Department for Education,Core,20/02/2023,Grants Expenditure,Capital Directorate,Haybridge High School and Sixth Form,CAY143130,"53,249.00",Capital grants - Academy Trust
Department for Education,Core,20/02/2023,Grants Expenditure,Capital Directorate,Brunel Primary & Nursery Academy,CAY143131,"65,080.00",Capital grants - Academy Trust
Department for Education,Core,20/02/2023,Grants Expenditure,Capital Directorate,Kesgrave High School,CAY143132,"53,916.00",Capital grants - Academy Trust
Department for Education,Core,20/02/2023,Grants Expenditure,Capital Directorate,Glen Hills Primary School,CAY143134,"46,496.00",Capital grants - Academy Trust
Department for Education,Core,20/02/2023,Grants Expenditure,Capital Directorate,Stramongate Primary School,CAY143135,"172,846.00",Capital grants - Academy Trust
Department for Education,Core,20/02/2023,Grants Expenditure,Capital Directorate,Lutterworth College,CAY143136,"42,981.00",Capital grants - Academy Trust
Department for Education,Core,20/02/2023,Grants Expenditure,Capital Directorate,Woolwich Polytechnic School,CAY143140,"172,544.00",Capital grants - Academy Trust
Department for Education,Core,20/02/2023,Grants Expenditure,Capital Directorate,The Skipton Academy,CAY143141,"73,025.00",Capital grants - Academy Trust
Department for Education,Core,20/02/2023,Grants Expenditure,Capital Directorate,Broadstone Middle School,CAY143142,"27,120.00",Capital grants - Academy Trust
Department for Education,Core,20/02/2023,Grants Expenditure,Capital Directorate,Godinton Primary School,CAY143144,"56,081.00",Capital grants - Academy Trust
Department for Education,Core,20/02/2023,Grants Expenditure,Capital Directorate,St Joachim's RC Primary School,CAY143146,"39,457.00",Capital grants - Academy Trust
Department for Education,Core,20/02/2023,Grants Expenditure,Capital Directorate,Stottesdon CofE Primary School,CAY143148,"54,112.00",Capital grants - Academy Trust
Department for Education,Core,20/02/2023,Grants Expenditure,Capital Directorate,Mytchett Primary School,CAY143150,"51,506.00",Capital grants - Academy Trust
Department for Education,Core,20/02/2023,Grants Expenditure,Capital Directorate,Portway Primary School,CAY143151,"58,334.00",Capital grants - Academy Trust
Department for Education,Core,20/02/2023,Grants Expenditure,Capital Directorate,Portway Primary School,CAY143152,"73,571.00",Capital grants - Academy Trust
Department for Education,Core,20/02/2023,Grants Expenditure,Capital Directorate,Selwyn Primary School,CAY143153,"46,346.00",Capital grants - Academy Trust
Department for Education,Core,20/02/2023,Grants Expenditure,Capital Directorate,Selwyn Primary School,CAY143154,"38,018.00",Capital grants - Academy Trust
Department for Education,Core,20/02/2023,Grants Expenditure,Capital Directorate,Bedonwell Junior School,CAY143155,"125,104.00",Capital grants - Academy Trust
Department for Education,Core,20/02/2023,Grants Expenditure,Capital Directorate,Cauldwell School,CAY143157,"52,326.00",Capital grants - Academy Trust
Department for Education,Core,20/02/2023,Grants Expenditure,Capital Directorate,West Hill Primary Academy,CAY143158,"114,725.00",Capital grants - Academy Trust
Department for Education,Core,20/02/2023,Grants Expenditure,Capital Directorate,Woodlands,CAY143159,"88,000.00",Capital grants - Academy Trust
Department for Education,Core,20/02/2023,Grants Expenditure,Capital Directorate,Archbishop Tenison's School,CAY143162,"94,999.00",Capital grants - Academy Trust
Department for Education,Core,20/02/2023,Grants Expenditure,Capital Directorate,Theale Green School,CAY143163,"27,701.00",Capital grants - Academy Trust
Department for Education,Core,20/02/2023,Grants Expenditure,Capital Directorate,Poynton High School ,CAY143164,"92,540.00",Capital grants - Academy Trust
Department for Education,Core,20/02/2023,Grants Expenditure,Capital Directorate,Poynton High School ,CAY143165,"164,183.00",Capital grants - Academy Trust
Department for Education,Core,20/02/2023,Grants Expenditure,Capital Directorate,Mary Webb School and Science College,CAY143166,"35,145.00",Capital grants - Academy Trust
Department for Education,Core,20/02/2023,Grants Expenditure,Capital Directorate,Halling Primary School,CAY143167,"106,219.00",Capital grants - Academy Trust
Department for Education,Core,20/02/2023,Grants Expenditure,Capital Directorate,Elms Bank,CAY143168,"61,784.00",Capital grants - Academy Trust
Department for Education,Core,20/02/2023,Grants Expenditure,Capital Directorate,Charles Dickens Primary School,CAY143169,"80,520.00",Capital grants - Academy Trust
Department for Education,Core,20/02/2023,Grants Expenditure,Capital Directorate,Charles Dickens Primary School,CAY143170,"49,844.00",Capital grants - Academy Trust
Department for Education,Core,20/02/2023,Grants Expenditure,Capital Directorate,Polebrook CE Primary School,CAY143171,"26,275.00",Capital grants - Academy Trust
Department for Education,Core,20/02/2023,Grants Expenditure,Capital Directorate,Highsted Grammar School ,CAY143172,"45,471.00",Capital grants - Academy Trust
Department for Education,Core,20/02/2023,Grants Expenditure,Capital Directorate,Kennet School,CAY143174,"91,121.00",Capital grants - Academy Trust
Department for Education,Core,20/02/2023,Grants Expenditure,Capital Directorate,The Romsey School,CAY143175,"70,343.00",Capital grants - Academy Trust
Department for Education,Core,20/02/2023,Grants Expenditure,Capital Directorate,KENTS HILL INFANT SCHOOL,CAY143176,"53,794.00",Capital grants - Academy Trust
Department for Education,Core,20/02/2023,Grants Expenditure,Capital Directorate,Lincoln Christ's Hospital School,CAY143177,"69,923.00",Capital grants - Academy Trust
Department for Education,Core,20/02/2023,Grants Expenditure,Capital Directorate,BROCKHILL PARK PERFORMING ARTS COLLEGE,CAY143178,"62,893.00",Capital grants - Academy Trust
Department for Education,Core,20/02/2023,Grants Expenditure,Capital Directorate,NORBURY MANOR BUSINESS & ENTERPRISE COLLEGE FOR GI,CAY143179,"94,978.00",Capital grants - Academy Trust
Department for Education,Core,20/02/2023,Grants Expenditure,Capital Directorate,Mulberry Academy Shoreditch,CAY143180,"114,417.00",Capital grants - Academy Trust
Department for Education,Core,20/02/2023,Grants Expenditure,Capital Directorate,CHENDERIT SCHOOL,CAY143181,"48,731.00",Capital grants - Academy Trust
Department for Education,Core,20/02/2023,Grants Expenditure,Capital Directorate,Bartholomew School,CAY143182,"79,643.00",Capital grants - Academy Trust
Department for Education,Core,20/02/2023,Grants Expenditure,Capital Directorate,Hamilton Academy,CAY143184,"140,534.00",Capital grants - Academy Trust
Department for Education,Core,20/02/2023,Grants Expenditure,Capital Directorate,Webheath First School Academy,CAY143185,"52,394.00",Capital grants - Academy Trust
Department for Education,Core,20/02/2023,Grants Expenditure,Capital Directorate,COWPLAIN COMMUNITY SCHOOL,CAY143186,"122,014.00",Capital grants - Academy Trust
Department for Education,Core,20/02/2023,Grants Expenditure,Capital Directorate,Southmoor Academy,CAY143187,"77,612.00",Capital grants - Academy Trust
Department for Education,Core,20/02/2023,Grants Expenditure,Capital Directorate,Lutterworth College,CAY143188,"191,271.00",Capital grants - Academy Trust
Department for Education,Core,20/02/2023,Grants Expenditure,Capital Directorate,St Mary's Church of England Voluntary Aided Primar,CAY143189,"89,273.00",Capital grants - Academy Trust
Department for Education,Core,20/02/2023,Grants Expenditure,Capital Directorate,Townfield Primary School,CAY143190,"90,721.00",Capital grants - Academy Trust
Department for Education,Core,20/02/2023,Grants Expenditure,Capital Directorate,Leigh Beck Infant School and Nursery Academy,CAY143191,"48,191.00",Capital grants - Academy Trust
Department for Education,Core,20/02/2023,Grants Expenditure,Capital Directorate,Dinnington High School,CAY143192,"76,315.00",Capital grants - Academy Trust
Department for Education,Core,20/02/2023,Grants Expenditure,Capital Directorate,Ivingswood Academy,CAY143193,"74,784.00",Capital grants - Academy Trust
Department for Education,Core,20/02/2023,Grants Expenditure,Capital Directorate,Holy Trinity Lamorbey Church of England School,CAY143195,"225,450.00",Capital grants - Academy Trust
Department for Education,Core,20/02/2023,Grants Expenditure,Capital Directorate,Manifold Church of England Primary School,CAY143196,"84,958.00",Capital grants - Academy Trust
Department for Education,Core,20/02/2023,Grants Expenditure,Capital Directorate,Newall Green Primary School ,CAY143197,"211,658.00",Capital grants - Academy Trust
Department for Education,Core,20/02/2023,Grants Expenditure,Capital Directorate,Chiltern Way Academy,CAY143198,"92,883.00",Capital grants - Academy Trust
Department for Education,Core,20/02/2023,Grants Expenditure,Capital Directorate,Edmonton County School,CAY143199,"74,849.00",Capital grants - Academy Trust
Department for Education,Core,20/02/2023,Grants Expenditure,Capital Directorate,QUEEN'S MANOR PRIMARY SCHOOL,CAY143200,"84,658.00",Capital grants - Academy Trust
Department for Education,Core,20/02/2023,Grants Expenditure,Capital Directorate,FULHAM PRIMARY SCHOOL,CAY143201,"126,868.00",Capital grants - Academy Trust
Department for Education,Core,20/02/2023,Grants Expenditure,Capital Directorate,SPRINGFIELD INFANT SCHOOL AND NURSERY,CAY143202,"49,445.00",Capital grants - Academy Trust
Department for Education,Core,20/02/2023,Grants Expenditure,Capital Directorate,Griffin Primary School,CAY143203,"534,009.00",Capital grants - Academy Trust
Department for Education,Core,20/02/2023,Grants Expenditure,Capital Directorate,Goffs Churchgate Academy,CAY143204,"72,129.00",Capital grants - Academy Trust
Department for Education,Core,20/02/2023,Grants Expenditure,Capital Directorate,Goffs Churchgate Academy,CAY143205,"91,048.00",Capital grants - Academy Trust
Department for Education,Core,20/02/2023,Grants Expenditure,Capital Directorate,Melbourne Community Primary School,CAY143206,"73,236.00",Capital grants - Academy Trust
Department for Education,Core,20/02/2023,Grants Expenditure,Capital Directorate,Holy Trinity Primary School,CAY143207,"42,105.00",Capital grants - Academy Trust
Department for Education,Core,20/02/2023,Grants Expenditure,Capital Directorate,Aldercar Infant School,CAY143208,"31,814.00",Capital grants - Academy Trust
Department for Education,Core,20/02/2023,Grants Expenditure,Capital Directorate,Grange Community Primary School,CAY143209,"53,010.00",Capital grants - Academy Trust
Department for Education,Core,20/02/2023,Grants Expenditure,Capital Directorate,Grange Community Nursery and Primary School,CAY143210,"111,466.00",Capital grants - Academy Trust
Department for Education,Core,20/02/2023,Grants Expenditure,Capital Directorate,Birchensale Middle School,CAY143211,"59,585.00",Capital grants - Academy Trust
Department for Education,Core,20/02/2023,Grants Expenditure,Capital Directorate,Brooke Primary Academy,CAY143212,"695,396.00",Capital grants - Academy Trust
Department for Education,Core,20/02/2023,Grants Expenditure,Capital Directorate,Oakfield Primary School,CAY143213,"50,823.00",Capital grants - Academy Trust
Department for Education,Core,20/02/2023,Grants Expenditure,Capital Directorate,Central Lancaster High School,CAY143214,"152,996.00",Capital grants - Academy Trust
Department for Education,Core,20/02/2023,Grants Expenditure,Capital Directorate,Central Lancaster High School,CAY143215,"74,650.00",Capital grants - Academy Trust
Department for Education,Core,20/02/2023,Grants Expenditure,Capital Directorate,Darley Dene Primary School,CAY143216,"27,236.00",Capital grants - Academy Trust
Department for Education,Core,20/02/2023,Grants Expenditure,Capital Directorate,Chaucer Infant School,CAY143217,"59,206.00",Capital grants - Academy Trust
Department for Education,Core,20/02/2023,Grants Expenditure,Capital Directorate,Hawthorn Primary,CAY143218,"75,902.00",Capital grants - Academy Trust
Department for Education,Core,20/02/2023,Grants Expenditure,Capital Directorate,WILD BANK COMMUNITY PRIMARY SCHOOL,CAY143219,"75,946.00",Capital grants - Academy Trust
Department for Education,Core,20/02/2023,Grants Expenditure,Capital Directorate,Ferndown First School,CAY143220,"39,311.00",Capital grants - Academy Trust
Department for Education,Core,20/02/2023,Grants Expenditure,Capital Directorate,Hawksmoor Primary,CAY143221,"80,339.00",Capital grants - Academy Trust
Department for Education,Core,20/02/2023,Grants Expenditure,Capital Directorate,Grove Park Primary School,CAY143223,"184,010.00",Capital grants - Academy Trust
Department for Education,Core,20/02/2023,Grants Expenditure,Capital Directorate,Worcestershire County Council,CL058692,"170,646.00",Capital grants - Local Government
Department for Education,Core,20/02/2023,Grants Expenditure,Capital Directorate,Wolverhampton Girls' High School,CAY143081,"77,235.00",Capital grants - Academy Trust
Department for Education,Core,20/02/2023,Grants Expenditure,Capital Directorate,Robin Hood Multi Academy Trust,CAY139494,"120,200.17",Capital grants - Academy Trust
Department for Education,Core,21/02/2023,Grants Expenditure,Capital Directorate,REDS10 UK Limited,D-PINV052464,"408,931.54",Capital grants - Academy Trust
Department for Education,Core,20/02/2023,Grants Expenditure,Capital Directorate,The Mead Educational Trust,CAY142712,"30,000.42",Capital grants - Academy Trust
Department for Education,Core,20/02/2023,Grants Expenditure,Capital Directorate,Impact Education Multi Academy Trust,CAY142713,"120,120.00",Capital grants - Academy Trust
Department for Education,Core,20/02/2023,Grants Expenditure,Capital Directorate,London South East Academies Trust,CAY142857,"259,606.00",Capital grants - Academy Trust
Department for Education,Core,20/02/2023,Grants Expenditure,Capital Directorate,St Teresa of Calcutta Academy Trust,CAY142858,"175,488.00",Capital grants - Academy Trust
Department for Education,Core,20/02/2023,Grants Expenditure,Capital Directorate,The Roseland Multi Academy Trust,CAY142859,"790,377.00",Capital grants - Academy Trust
Department for Education,Core,20/02/2023,Grants Expenditure,Capital Directorate,Outwood Grange Academies Trust,CAY142930,"251,057.50",Capital grants - Academy Trust
Department for Education,Core,20/02/2023,Grants Expenditure,Capital Directorate,South East Essex Academy Trust,CAY142947,"27,500.00",Capital grants - Academy Trust
Department for Education,Core,20/02/2023,Grants Expenditure,Capital Directorate,Ethos Academy Trust,CAY142973,"36,050.00",Capital grants - Academy Trust
Department for Education,Core,20/02/2023,Grants Expenditure,Capital Directorate,Olive Academies,CAY143037,"69,977.00",Capital grants - Academy Trust
Department for Education,Core,20/02/2023,Grants Expenditure,Capital Directorate,West Lakes Multi Academy Trust,CAY143222,"48,058.00",Capital grants - Academy Trust
Department for Education,Core,20/02/2023,Grants Expenditure,Capital Directorate,Excelsior Multi Academy Trust,CAY143224,"35,369.00",Capital grants - Academy Trust
Department for Education,Core,01/02/2023,Consultancy,Legal Adviser's Office,THE GOVERNMENT LEGAL DEPARTMENT,CORE-PINV-050695,"1,927,000.00",Consultancy - Legal
Department for Education,Core,01/02/2023,Consultancy,Legal Adviser's Office,THE GOVERNMENT LEGAL DEPARTMENT,CORE-PINV-050626,"31,250.00",Consultancy - Legal
Department for Education,Core,01/02/2023,Other Goods & Services,Curriculum and General Qualifications,UCL CONSULTANTS LTD,CORE-PINV-051312,"32,811.00",Professional Services
Department for Education,Core,03/02/2023,Other Goods & Services,Curriculum and General Qualifications,UNIVERSITY OF YORK,CORE-PINV-050180,"82,501.00",Professional Services
Department for Education,Core,03/02/2023,Other Goods & Services,Curriculum and General Qualifications,UNIVERSITY OF YORK,CORE-PINV-050181,"87,024.00",Professional Services
Department for Education,Core,10/02/2023,Other Goods & Services,Curriculum and General Qualifications,UCL CONSULTANTS LTD,CORE-PINV-052040,"137,019.60",Professional Services
Department for Education,Core,03/02/2023,Grants Expenditure,Curriculum and General Qualifications,Ramsbury English Hub,CORE-MAIN-043138,"140,794.96",Current grants - Local Government
Department for Education,Core,03/02/2023,Grants Expenditure,Curriculum and General Qualifications,Whiteknights Primary School,CORE-MAIN-043139,"146,552.73",Current grants - Academy Trust
Department for Education,Core,28/02/2023,Grants Expenditure,Curriculum and General Qualifications,UCL INSTITUTE OF EDUCATION,CORE-MAIN-043254,"132,200.51",Current grants - Private Sector
Department for Education,Core,13/02/2023,Grants Expenditure,Curriculum and General Qualifications,Trinity Laban Conservatoire of Music and Dance,CORE-MAIN-043179,"86,835.45",Current grants - Private Sector
Department for Education,Core,13/02/2023,Grants Expenditure,Curriculum and General Qualifications,TRING PARK SCHOOL FOR THE PERFORMING ARTS,CORE-MAIN-043182,"881,078.15",Current grants - Private Sector
Department for Education,Core,13/02/2023,Grants Expenditure,Curriculum and General Qualifications,The Lowry Centre Trust,CORE-MAIN-043184,"45,102.00",Current grants - Private Sector
Department for Education,Core,09/02/2023,Other Goods & Services,Curriculum and General Qualifications,DORLING KINDERSLEY LIMITED,CORE-PINV-052070,"30,366.79",Professional Services
Department for Education,Core,22/02/2023,Learning & Development,Curriculum and General Qualifications,EASTERN SHIRES PURCHASING ORGANISATION,CORE-PINV-052488,"178,200.00",Training costs
Department for Education,Core,02/02/2023,Other Goods & Services,Teaching Workforce and National Tutoring Programme,Red Havas Limited,CORE-PINV-049215,"29,086.99",Professional Services
Department for Education,Core,01/02/2023,Other Goods & Services,Teaching Workforce and National Tutoring Programme,ARVATO LIMITED,CORE-PINV-051313,"31,988.53",Professional Services
Department for Education,Core,02/02/2023,Other Goods & Services,Teaching Workforce and National Tutoring Programme,EDUCATION DEVELOPMENT TRUST,CORE-PINV-050944,"216,245.00",Professional Services
Department for Education,Core,02/02/2023,Other Goods & Services,Teaching Workforce and National Tutoring Programme,COGNITION EDUCATION,CORE-PINV-050968,"231,074.00",Professional Services
Department for Education,Core,16/02/2023,Other Goods & Services,Teaching Workforce and National Tutoring Programme,COGNITION EDUCATION,CORE-PINV-052347,"231,074.00",Professional Services
Department for Education,Core,20/02/2023,Other Goods & Services,Teaching Workforce and National Tutoring Programme,ARVATO LIMITED,CORE-PINV-052595,"35,014.63",Professional Services
Department for Education,Core,24/02/2023,Learning & Development,Curriculum and General Qualifications,STEM LEARNING LTD,CORE-PINV-052958,"1,024,098.29",Training costs
Department for Education,Core,24/02/2023,Learning & Development,Curriculum and General Qualifications,STEM LEARNING LTD,CORE-PINV-052956,"77,690.00",Training costs
Department for Education,Core,24/02/2023,Learning & Development,Curriculum and General Qualifications,STEM LEARNING LTD,CORE-PINV-052956,"426,152.85",Training costs
Department for Education,Core,24/02/2023,Learning & Development,Curriculum and General Qualifications,STEM LEARNING LTD,CORE-PINV-052957,"96,717.53",Training costs
Department for Education,Core,03/02/2023,Learning & Development,Curriculum and General Qualifications,Tribal Education Limited,CORE-PINV-051537,"357,250.47",Training & Development - Coaching
Department for Education,Core,14/02/2023,Other Goods & Services,Curriculum and General Qualifications,MATHEMATICS IN EDUCATION & INDUSTRY,CORE-PINV-052361,"796,728.00",Professional Services - Education Services
Department for Education,Core,06/02/2023,Grants Expenditure,Curriculum and General Qualifications,UNIVERSITY OF CAMBRIDGE,CORE-PINV-051586,"266,384.51",Current grants - Private Sector
Department for Education,Core,13/02/2023,Grants Expenditure,Curriculum and General Qualifications,UNIVERSITY OF CAMBRIDGE,CORE-PINV-052292,"61,884.48",Current grants - Private Sector
Department for Education,Core,27/02/2023,Other Goods & Services,Curriculum and General Qualifications,STEM LEARNING LTD,CORE-PINV-053060,"150,285.71",Professional Services - Education Services
Department for Education,Core,27/02/2023,Other Goods & Services,Curriculum and General Qualifications,STEM LEARNING LTD,CORE-PINV-053062,"240,000.00",Professional Services - Education Services
Department for Education,Core,27/02/2023,Other Goods & Services,Curriculum and General Qualifications,STEM LEARNING LTD,CORE-PINV-053063,"82,278.13",Professional Services - Education Services
Department for Education,Core,20/02/2023,Other Goods & Services,Children's Social Care - Safeguarding and Workforce,MUTUAL VENTURES LTD,CORE-PINV-052619,"144,000.00",Professional Services
Department for Education,Core,01/02/2023,Grants Expenditure,Children's Social Care - Safeguarding and Workforce,THE FRONTLINE ORGANISATION,CORE-PINV-051413,"586,205.01",Current grants - Private Sector
Department for Education,Core,02/02/2023,Other Goods & Services,Children's Social Care - Safeguarding and Workforce,THE FRONTLINE ORGANISATION,CORE-PINV-051479,"292,887.34",Professional Services - Education Services
Department for Education,Core,07/02/2023,Other Goods & Services,Children's Social Care - Safeguarding and Workforce,THE FRONTLINE ORGANISATION,CORE-PINV-051750,"971,460.45",Professional Services - Education Services
Department for Education,Core,07/02/2023,IS/IT,Children's Social Care - Safeguarding and Workforce,THE FRONTLINE ORGANISATION,CORE-PINV-051750,"143,780.98",Professional Services - Grants and Awards
Department for Education,Core,03/02/2023,Grants Expenditure,Children's Social Care - Safeguarding and Workforce,BROMLEY LONDON BOROUGH COUNCIL,CORE-MAIN-043140,"133,000.20",Current grants - Local Government
Department for Education,Core,10/02/2023,Other Goods & Services,Children's Social Care - Safeguarding and Workforce,VSC PLUS LIMITED,CORE-PINV-051973,"101,182.80",Professional Services
Department for Education,Core,10/02/2023,IS/IT,Children's Social Care - Safeguarding and Workforce,SKILLS FOR CARE LTD,CORE-PINV-052124,"35,106.67",Professional Services - Grants and Awards
Department for Education,Core,13/02/2023,Other Goods & Services,Children's Social Care - Safeguarding and Workforce,Talent International (UK) Ltd,CORE-PINV-052280,"83,059.20",Professional Services
Department for Education,Core,13/02/2023,Grants Expenditure,Children's Social Care - Safeguarding and Workforce,HAVERING LONDON BOROUGH COUNCIL,CORE-MAIN-043185,"46,550.07",Current grants - Local Government
Department for Education,Core,28/02/2023,Grants Expenditure,Children's Social Care - Safeguarding and Workforce,LEEDS CITY COUNCIL,CORE-MAIN-043186,"68,716.77",Current grants - Local Government
Department for Education,Core,28/02/2023,Grants Expenditure,Children's Social Care - Safeguarding and Workforce,ISLINGTON LONDON BOROUGH COUNCIL,CORE-MAIN-043187,"66,500.10",Current grants - Local Government
Department for Education,Core,13/02/2023,Grants Expenditure,Children's Social Care - Safeguarding and Workforce,BROMLEY LONDON BOROUGH COUNCIL,CORE-MAIN-043188,"66,500.10",Current grants - Local Government
Department for Education,Core,13/02/2023,Grants Expenditure,Children's Social Care - Safeguarding and Workforce,EARLY INTERVENTION FOUNDATION,CORE-MAIN-043189,"155,988.00",Current grants - Private Sector
Department for Education,Core,13/02/2023,Grants Expenditure,Children's Social Care - Safeguarding and Workforce,WHAT WORKS FOR CHILDREN'S SOCIAL CARE,CORE-MAIN-043190,"465,805.98",Current grants - Private Sector
Department for Education,Core,24/02/2023,Other Goods & Services,Children's Social Care - Safeguarding and Workforce,FARSIGHT CONSULTING LIMITED,CORE-PINV-052888,"51,492.00",Professional Services
Department for Education,Core,28/02/2023,Grants Expenditure,Children's Social Care - Safeguarding and Workforce,ESSEX COUNTY COUNCIL,CORE-MAIN-043264,"84,233.46",Current grants - Local Government
Department for Education,Core,28/02/2023,Grants Expenditure,Children's Social Care - Safeguarding and Workforce,HAMMERSMITH & FULHAM LONDON BOROUGH COUNCIL,CORE-MAIN-043265,"75,366.78",Current grants - Local Government
Department for Education,Core,28/02/2023,Grants Expenditure,Children's Social Care - Safeguarding and Workforce,HAVERING LONDON BOROUGH COUNCIL,CORE-MAIN-043266,"46,550.07",Current grants - Local Government
Department for Education,Core,28/02/2023,Grants Expenditure,Children's Social Care - Safeguarding and Workforce,BRACKNELL FOREST BOROUGH COUNCIL,CORE-MAIN-043267,"31,033.38",Current grants - Local Government
Department for Education,Core,28/02/2023,Grants Expenditure,Children's Social Care - Safeguarding and Workforce,DERBY CITY COUNCIL,CORE-MAIN-043268,"97,533.48",Current grants - Local Government
Department for Education,Core,28/02/2023,Grants Expenditure,Children's Social Care - Safeguarding and Workforce,Lancashire County Council,CORE-MAIN-043269,"35,466.72",Current grants - Local Government
Department for Education,Core,28/02/2023,Grants Expenditure,Children's Social Care - Safeguarding and Workforce,KENT COUNTY COUNCIL,CORE-MAIN-043270,"37,683.39",Current grants - Local Government
Department for Education,Core,28/02/2023,Grants Expenditure,Children's Social Care - Safeguarding and Workforce,NORTH TYNESIDE METRO BOROUGH COUNCIL,CORE-MAIN-043271,"97,533.48",Current grants - Local Government
Department for Education,Core,28/02/2023,Grants Expenditure,Children's Social Care - Safeguarding and Workforce,HAMPSHIRE COUNTY COUNCIL,CORE-MAIN-043272,"57,633.33",Current grants - Local Government
Department for Education,Core,28/02/2023,Grants Expenditure,Children's Social Care - Safeguarding and Workforce,BRIGHTON & HOVE CITY COUNCIL,CORE-MAIN-043273,"33,250.05",Current grants - Local Government
Department for Education,Core,28/02/2023,Grants Expenditure,Children's Social Care - Safeguarding and Workforce,GREENWICH LONDON BOROUGH COUNCIL,CORE-MAIN-043274,"64,283.43",Current grants - Local Government
Department for Education,Core,28/02/2023,Grants Expenditure,Children's Social Care - Safeguarding and Workforce,Buckinghamshire Council,CORE-MAIN-043275,"39,900.06",Current grants - Local Government
Department for Education,Core,28/02/2023,Grants Expenditure,Children's Social Care - Safeguarding and Workforce,Bournemouth Christchurch and Poole Council,CORE-MAIN-043276,"31,033.38",Current grants - Local Government
Department for Education,Core,28/02/2023,Grants Expenditure,Children's Social Care - Safeguarding and Workforce,Somerset County Council,CORE-MAIN-043277,"104,183.49",Current grants - Local Government
Department for Education,Core,28/02/2023,Grants Expenditure,Children's Social Care - Safeguarding and Workforce,STOKE ON TRENT CITY COUNCIL,CORE-MAIN-043278,"113,050.17",Current grants - Local Government
Department for Education,Core,28/02/2023,Grants Expenditure,Children's Social Care - Safeguarding and Workforce,SHEFFIELD CITY COUNCIL,CORE-MAIN-043279,"119,700.18",Current grants - Local Government
Department for Education,Core,28/02/2023,Grants Expenditure,Children's Social Care - Safeguarding and Workforce,ISLINGTON LONDON BOROUGH COUNCIL,CORE-MAIN-043281,"64,283.43",Current grants - Local Government
Department for Education,Core,28/02/2023,Grants Expenditure,Children's Social Care - Safeguarding and Workforce,HERTFORDSHIRE COUNTY COUNCIL,CORE-MAIN-043282,"37,675.40",Current grants - Local Government
Department for Education,Core,28/02/2023,Grants Expenditure,Children's Social Care - Safeguarding and Workforce,BROMLEY LONDON BOROUGH COUNCIL,CORE-MAIN-043283,"66,500.10",Current grants - Local Government
Department for Education,Core,28/02/2023,Grants Expenditure,Children's Social Care - Safeguarding and Workforce,SKILLS FOR CARE LTD,CORE-MAIN-043284,"731,000.00",Current grants - Private Sector
Department for Education,Core,28/02/2023,Grants Expenditure,Children's Social Care - Safeguarding and Workforce,Salford City Council,CORE-MAIN-043285,"66,500.10",Current grants - Local Government
Department for Education,Core,28/02/2023,Grants Expenditure,Children's Social Care - Safeguarding and Workforce,WIRRAL METRO BOROUGH COUNCIL,CORE-MAIN-043286,"68,716.77",Current grants - Local Government
Department for Education,Core,09/02/2023,Consultancy,Children's Social Care - Strategy and Care System,Faithful & Gould,CORE-PINV-051604,"23,580.00",Consultancy - PPM
Department for Education,Core,28/02/2023,Grants Expenditure,Children's Social Care - Strategy and Care System,HAMPSHIRE COUNTY COUNCIL,CORE-MAIN-043287,"83,028.00",Current grants - Local Government
Department for Education,Core,28/02/2023,Grants Expenditure,Children's Social Care - Strategy and Care System,NOTTINGHAMSHIRE COUNTY COUNCIL,CORE-MAIN-043288,"36,400.00",Current grants - Local Government
Department for Education,Core,01/02/2023,Other Goods & Services,Children's Social Care - Strategy and Care System,FAMILY LIVES,CORE-PINV-050889,"89,732.99",Professional Services
Department for Education,Core,06/02/2023,Other Goods & Services,Children's Social Care - Strategy and Care System,FAMILY RIGHTS GROUP LTD,CORE-PINV-051175,"40,000.00",Professional Services
Department for Education,Core,06/02/2023,Other Goods & Services,Children's Social Care - Strategy and Care System,FAMILY RIGHTS GROUP LTD,CORE-PINV-050923,"40,000.00",Professional Services
Department for Education,Core,08/02/2023,Other Goods & Services,Children's Social Care - Strategy and Care System,Mott MacDonald Ltd,CORE-PINV-051608,"313,885.51",Professional Services
Department for Education,Core,03/02/2023,Grants Expenditure,Children's Social Care - Strategy and Care System,CAMBRIDGE EDUCATION,CORE-MAIN-043141,"5,778,753.87",Current grants - Private Sector
Department for Education,Core,16/02/2023,Other Operating Costs,Children's Social Care - Strategy and Care System,CORAM,CORE-PINV-052230,"1,789.66",Miscellaneous expenditure
Department for Education,Core,16/02/2023,Other Operating Costs,Children's Social Care - Strategy and Care System,CORAM,CORE-PINV-052230,"30,475.28",Miscellaneous expenditure
Department for Education,Core,17/02/2023,Other Goods & Services,Children's Social Care - Strategy and Care System,FAMILY RIGHTS GROUP LTD,CORE-PCR-001874,"-40,000.00",Professional Services
Department for Education,Core,13/02/2023,Grants Expenditure,Children's Social Care - Strategy and Care System,Child Migrants Trust,CORE-MAIN-043191,"150,421.52",Current grants - Private Sector
Department for Education,Core,17/02/2023,Other Goods & Services,Children's Social Care - Strategy and Care System,FAMILY RIGHTS GROUP LTD,CORE-PINV-052311,"40,000.00",Professional Services
Department for Education,Core,17/02/2023,Other Goods & Services,Children's Social Care - Strategy and Care System,FAMILY RIGHTS GROUP LTD,CORE-PINV-052291,"40,000.00",Professional Services
Department for Education,Core,17/02/2023,Other Goods & Services,Children's Social Care - Strategy and Care System,FAMILY LIVES,CORE-PINV-052523,"72,732.40",Professional Services
Department for Education,Core,28/02/2023,Grants Expenditure,Children's Social Care - Strategy and Care System,CAMBRIDGE EDUCATION,CORE-MAIN-043289,"5,745,895.34",Current grants - Private Sector
Department for Education,Core,28/02/2023,Grants Expenditure,Children's Social Care - Strategy and Care System,CAMBRIDGE EDUCATION,CORE-MAIN-043290,"3,370,939.76",Current grants - Private Sector
Department for Education,Core,10/02/2023,Other Goods & Services,Children's Social Care - Safeguarding and Workforce,MUTUAL VENTURES LTD,CORE-PINV-052114,"64,156.80",Professional Services
Department for Education,Core,10/02/2023,Other Goods & Services,Children's Social Care - Safeguarding and Workforce,MUTUAL VENTURES LTD,CORE-PINV-052112,"96,548.40",Professional Services
Department for Education,Core,28/02/2023,Other Goods & Services,Children's Social Care - Safeguarding and Workforce,THE DARTINGTON HALL TRUST,CORE-PINV-053072,"221,134.20",Professional Services
Department for Education,Core,13/02/2023,Marketing/Media and Comms,Communications,SCROLL PROJECTS LTD,CORE-PINV-048819,"107,010.00",Marketing and Media costs
Department for Education,Core,13/02/2023,Marketing/Media and Comms,Communications,SCROLL PROJECTS LTD,CORE-PINV-050241,"90,030.00",Marketing and Media costs
Department for Education,Core,14/02/2023,Marketing/Media and Comms,Communications,SCROLL PROJECTS LTD,CORE-PINV-052239,"84,405.00",Marketing and Media costs
Department for Education,Core,03/02/2023,Grants Expenditure,SEND and Alternative Provision,Exceed Academies Trust,CORE-MAIN-043157,"227,102.70",Current grants - Academy Trust
Department for Education,Core,03/02/2023,Grants Expenditure,SEND and Alternative Provision,The Liverpool Joint Catholic CofE Academies Trust,CORE-MAIN-043159,"45,828.44",Current grants - Academy Trust
Department for Education,Core,03/02/2023,Grants Expenditure,SEND and Alternative Provision,HARINGEY LONDON BOROUGH COUNCIL,CORE-MAIN-043143,"110,283.86",Current grants - Local Government
Department for Education,Core,03/02/2023,Grants Expenditure,SEND and Alternative Provision,Everton Free School,CORE-MAIN-043144,"42,486.92",Current grants - Academy Trust
Department for Education,Core,28/02/2023,Grants Expenditure,SEND and Alternative Provision,MANCHESTER CITY COUNCIL,CORE-MAIN-043145,"55,828.29",Current grants - Local Government
Department for Education,Core,28/02/2023,Grants Expenditure,SEND and Alternative Provision,NEWHAM LONDON BOROUGH COUNCIL,CORE-MAIN-043146,"26,218.38",Current grants - Local Government
Department for Education,Core,28/02/2023,Grants Expenditure,SEND and Alternative Provision,CROYDON LONDON BOROUGH COUNCIL,CORE-MAIN-043147,"101,224.67",Current grants - Local Government
Department for Education,Core,03/02/2023,Grants Expenditure,SEND and Alternative Provision,BIRMINGHAM CITY COUNCIL,CORE-MAIN-043148,"141,952.91",Current grants - Local Government
Department for Education,Core,03/02/2023,Grants Expenditure,SEND and Alternative Provision,LEICESTER CITY COUNCIL,CORE-MAIN-043149,"72,136.51",Current grants - Local Government
Department for Education,Core,03/02/2023,Grants Expenditure,SEND and Alternative Provision,Salford City Council,CORE-MAIN-043150,"62,711.92",Current grants - Local Government
Department for Education,Core,03/02/2023,Grants Expenditure,SEND and Alternative Provision,SHEFFIELD CITY COUNCIL,CORE-MAIN-043151,"97,440.81",Current grants - Local Government
Department for Education,Core,03/02/2023,Grants Expenditure,SEND and Alternative Provision,The Stephen Longfellow Academy,CORE-MAIN-043152,"54,607.49",Current grants - Academy Trust
Department for Education,Core,03/02/2023,Grants Expenditure,SEND and Alternative Provision,St Wilfrids Academy,CORE-MAIN-043153,"83,659.65",Current grants - Academy Trust
Department for Education,Core,28/02/2023,Grants Expenditure,SEND and Alternative Provision,HACKNEY LONDON BOROUGH COUNCIL,CORE-MAIN-043154,"54,109.73",Current grants - Local Government
Department for Education,Core,28/02/2023,Grants Expenditure,SEND and Alternative Provision,EALING LONDON BOROUGH COUNCIL,CORE-MAIN-043155,"47,917.90",Current grants - Local Government
Department for Education,Core,03/02/2023,Grants Expenditure,SEND and Alternative Provision,Sandwell Metro Borough Council,CORE-MAIN-043156,"70,374.27",Current grants - Local Government
Department for Education,Core,03/02/2023,Grants Expenditure,SEND and Alternative Provision,Exceed Academies Trust,CORE-MAIN-043158,"56,196.73",Current grants - Academy Trust
Department for Education,Core,03/02/2023,Grants Expenditure,SEND and Alternative Provision,Bristol City Council,CORE-MAIN-043160,"49,115.50",Current grants - Local Government
Department for Education,Core,01/02/2023,Other Goods & Services,SEND and Alternative Provision,NASEN,CORE-PINV-051348,"682,929.84",Professional Services
Department for Education,Core,08/02/2023,Other Goods & Services,SEND and Alternative Provision,The National Development Team for Inclusion,CORE-PINV-051989,"237,953.09",Professional Services
Department for Education,Core,08/02/2023,Other Goods & Services,SEND and Alternative Provision,CONTACT,CORE-PINV-051650,"258,087.01",Professional Services
Department for Education,Core,24/02/2023,Grants Expenditure,SEND and Alternative Provision,THE UNIVERSITY OF MANCHESTER,CORE-PINV-049503,"1,675,244.23",Current grants - Private Sector
Department for Education,Core,27/02/2023,Learning & Development,SEND and Alternative Provision,Inclusive Trading CIC ,CORE-PINV-053025,"30,897.80",Training & Development - Coaching
Department for Education,Core,13/02/2023,Grants Expenditure,National Directorate,Falcon Education Academies Trust,CORE-MAIN-043199,"144,850.00",Current grants - Academy Trust
Department for Education,Core,13/02/2023,Grants Expenditure,National Directorate,St John The Baptist Catholic Multi Academy Trust,CUPS0059958,"65,696.00",Current grants - Academy Trust
Department for Education,Core,13/02/2023,Grants Expenditure,National Directorate,Zenith Multi Academy Trust ,CUPS0059959,"161,056.00",Current grants - Academy Trust
Department for Education,Core,28/02/2023,Grants Expenditure,National Directorate,RISE MULTI ACADEMY TRUST,CORE-MAIN-043299,"51,600.00",Current grants - Academy Trust
Department for Education,Core,28/02/2023,Grants Expenditure,National Directorate,Xavier Catholic Education Trust,CORE-MAIN-043300,"105,925.00",Current grants - Academy Trust
Department for Education,Core,13/02/2023,Grants Expenditure,National Directorate,THE EDEN ACADEMY,CORE-MAIN-043194,"60,000.00",Current grants - Academy Trust
Department for Education,Core,13/02/2023,Grants Expenditure,National Directorate,Oasis Community Learning,CORE-MAIN-043195,"175,000.00",Current grants - Academy Trust
Department for Education,Core,13/02/2023,Grants Expenditure,National Directorate,FORWARD EDUCATION TRUST,CORE-MAIN-043196,"140,000.00",Current grants - Academy Trust
Department for Education,Core,13/02/2023,Grants Expenditure,National Directorate,Shireland Collegiate Academy,CORE-MAIN-043197,"110,000.00",Current grants - Academy Trust
Department for Education,Core,13/02/2023,Grants Expenditure,National Directorate,Ambitious About Autism Schools Trust,CORE-MAIN-043198,"120,000.00",Current grants - Academy Trust
Department for Education,Core,28/02/2023,Grants Expenditure,National Directorate,Star Academies,CUPS0059981,"95,000.00",Current grants - Academy Trust
Department for Education,Core,28/02/2023,Grants Expenditure,National Directorate,Florence MacWilliams Academy,CORE-MAIN-043292,"30,000.00",Current grants - Academy Trust
Department for Education,Core,28/02/2023,Grants Expenditure,National Directorate,East Midlands Education Trust,CORE-MAIN-043293,"25,000.00",Current grants - Academy Trust
Department for Education,Core,28/02/2023,Grants Expenditure,National Directorate,THE GALLERY TRUST,CORE-MAIN-043294,"40,000.00",Current grants - Academy Trust
Department for Education,Core,28/02/2023,Grants Expenditure,National Directorate,Prosper Learning Trust,CORE-MAIN-043295,"100,000.00",Current grants - Academy Trust
Department for Education,Core,28/02/2023,Grants Expenditure,National Directorate,James Marks Academy Trust,CORE-MAIN-043296,"60,000.00",Current grants - Academy Trust
Department for Education,Core,28/02/2023,Grants Expenditure,National Directorate,Reach South Academy Trust,CORE-MAIN-043297,"140,000.00",Current grants - Academy Trust
Department for Education,Core,28/02/2023,Grants Expenditure,National Directorate,SAND ACADEMIES TRUST,CORE-MAIN-043298,"25,000.00",Current grants - Academy Trust
Department for Education,Core,13/02/2023,Grants Expenditure,National Directorate,Ellison Primary Academy,CORE-MAIN-043193,"53,452.67",Current grants - Academy Trust
Department for Education,Core,28/02/2023,Grants Expenditure,National Directorate,Infinity Academies Trust Ltd,CORE-MAIN-043301,"100,000.00",Current grants - Academy Trust
Department for Education,Core,06/02/2023,IS/IT,National Directorate,THE DEXTROUS WEB T/A DXW,CORE-PINV-051671,"29,280.00",ICT Support & Services
Department for Education,Core,06/02/2023,Other Costs,National Directorate,THE DEXTROUS WEB T/A DXW,CORE-PINV-051669,"124,350.00",Software.Development
Department for Education,Core,06/02/2023,Other Costs,National Directorate,THE DEXTROUS WEB T/A DXW,CORE-PINV-051670,"129,600.00",Software.Development
Department for Education,Core,06/02/2023,Other Costs,National Directorate,THE DEXTROUS WEB T/A DXW,CORE-PINV-051662,"99,420.00",Software.Development
Department for Education,Core,06/02/2023,Other Costs,National Directorate,THE DEXTROUS WEB T/A DXW,CORE-PINV-051665,"120,480.00",Software.Development
Department for Education,Core,06/02/2023,Other Costs,National Directorate,THE DEXTROUS WEB T/A DXW,CORE-PINV-051673,"38,490.00",Software.Development
Department for Education,Core,06/02/2023,Other Costs,National Directorate,THE DEXTROUS WEB T/A DXW,CORE-PINV-051663,"81,600.00",Software.Development
Department for Education,Core,28/02/2023,Grants Expenditure,School System and Teaching Regulation,BATH & NORTH EAST SOMERSET COUNCIL,CORE-MAIN-043305,"30,433.00",Current grants - Local Government
Department for Education,Core,28/02/2023,Grants Expenditure,School System and Teaching Regulation,Buckinghamshire Council,CORE-MAIN-043319,"46,650.00",Current grants - Local Government
Department for Education,Core,28/02/2023,Grants Expenditure,School System and Teaching Regulation,CAMBRIDGESHIRE COUNTY COUNCIL,CORE-MAIN-043322,"90,942.00",Current grants - Local Government
Department for Education,Core,28/02/2023,Grants Expenditure,School System and Teaching Regulation,CENTRAL BEDFORDSHIRE COUNCIL,CORE-MAIN-043324,"29,842.00",Current grants - Local Government
Department for Education,Core,28/02/2023,Grants Expenditure,School System and Teaching Regulation,CHESHIRE WEST & CHESTER COUNCIL,CORE-MAIN-043326,"45,708.00",Current grants - Local Government
Department for Education,Core,28/02/2023,Grants Expenditure,School System and Teaching Regulation,CORNWALL COUNCIL,CORE-MAIN-043327,"119,850.00",Current grants - Local Government
Department for Education,Core,28/02/2023,Grants Expenditure,School System and Teaching Regulation,CUMBRIA COUNTY COUNCIL,CORE-MAIN-043330,"52,992.00",Current grants - Local Government
Department for Education,Core,28/02/2023,Grants Expenditure,School System and Teaching Regulation,DERBYSHIRE COUNTY COUNCIL,CORE-MAIN-043333,"134,533.00",Current grants - Local Government
Department for Education,Core,28/02/2023,Grants Expenditure,School System and Teaching Regulation,DEVON COUNTY COUNCIL,CORE-MAIN-043334,"86,717.00",Current grants - Local Government
Department for Education,Core,28/02/2023,Grants Expenditure,School System and Teaching Regulation,DONCASTER METRO BOROUGH COUNCIL,CORE-MAIN-043335,"42,742.00",Current grants - Local Government
Department for Education,Core,28/02/2023,Grants Expenditure,School System and Teaching Regulation,DORSET COUNCIL,CORE-MAIN-043336,"81,075.00",Current grants - Local Government
Department for Education,Core,28/02/2023,Grants Expenditure,School System and Teaching Regulation,DURHAM COUNTY COUNCIL,CORE-MAIN-043338,"161,325.00",Current grants - Local Government
Department for Education,Core,28/02/2023,Grants Expenditure,School System and Teaching Regulation,EAST RIDING OF YORKSHIRE COUNCIL,CORE-MAIN-043340,"30,783.00",Current grants - Local Government
Department for Education,Core,28/02/2023,Grants Expenditure,School System and Teaching Regulation,EAST SUSSEX COUNTY COUNCIL,CORE-MAIN-043341,"71,792.00",Current grants - Local Government
Department for Education,Core,28/02/2023,Grants Expenditure,School System and Teaching Regulation,ESSEX COUNTY COUNCIL,CORE-MAIN-043343,"120,317.00",Current grants - Local Government
Department for Education,Core,28/02/2023,Grants Expenditure,School System and Teaching Regulation,Gloucestershire County Council,CORE-MAIN-043345,"70,500.00",Current grants - Local Government
Department for Education,Core,28/02/2023,Grants Expenditure,School System and Teaching Regulation,HAMPSHIRE COUNTY COUNCIL,CORE-MAIN-043350,"86,833.00",Current grants - Local Government
Department for Education,Core,28/02/2023,Grants Expenditure,School System and Teaching Regulation,HERTFORDSHIRE COUNTY COUNCIL,CORE-MAIN-043356,"41,808.00",Current grants - Local Government
Department for Education,Core,28/02/2023,Grants Expenditure,School System and Teaching Regulation,ISLE OF WIGHT COUNCIL,CORE-MAIN-043359,"29,958.00",Current grants - Local Government
Department for Education,Core,28/02/2023,Grants Expenditure,School System and Teaching Regulation,KENT COUNTY COUNCIL,CORE-MAIN-043362,"251,558.00",Current grants - Local Government
Department for Education,Core,28/02/2023,Grants Expenditure,School System and Teaching Regulation,Lancashire County Council,CORE-MAIN-043368,"124,900.00",Current grants - Local Government
Department for Education,Core,28/02/2023,Grants Expenditure,School System and Teaching Regulation,LEICESTERSHIRE COUNTY COUNCIL,CORE-MAIN-043371,"74,725.00",Current grants - Local Government
Department for Education,Core,28/02/2023,Grants Expenditure,School System and Teaching Regulation,LINCOLNSHIRE COUNTY COUNCIL,CORE-MAIN-043373,"125,250.00",Current grants - Local Government
Department for Education,Core,28/02/2023,Grants Expenditure,School System and Teaching Regulation,NORFOLK COUNTY COUNCIL,CORE-MAIN-043383,"115,617.00",Current grants - Local Government
Department for Education,Core,28/02/2023,Grants Expenditure,School System and Teaching Regulation,NORTH YORKSHIRE COUNTY COUNCIL,CORE-MAIN-043389,"63,100.00",Current grants - Local Government
Department for Education,Core,28/02/2023,Grants Expenditure,School System and Teaching Regulation,NORTHUMBERLAND COUNTY COUNCIL,CORE-MAIN-043390,"42,767.00",Current grants - Local Government
Department for Education,Core,28/02/2023,Grants Expenditure,School System and Teaching Regulation,NOTTINGHAMSHIRE COUNTY COUNCIL,CORE-MAIN-043392,"85,542.00",Current grants - Local Government
Department for Education,Core,28/02/2023,Grants Expenditure,School System and Teaching Regulation,Oxfordshire County Council,CORE-MAIN-043394,"61,100.00",Current grants - Local Government
Department for Education,Core,28/02/2023,Grants Expenditure,School System and Teaching Regulation,SHROPSHIRE COUNCIL,CORE-MAIN-043408,"32,075.00",Current grants - Local Government
Department for Education,Core,28/02/2023,Grants Expenditure,School System and Teaching Regulation,Somerset County Council,CORE-MAIN-043411,"74,967.00",Current grants - Local Government
Department for Education,Core,28/02/2023,Grants Expenditure,School System and Teaching Regulation,Staffordshire County Council,CORE-MAIN-043417,"61,217.00",Current grants - Local Government
Department for Education,Core,28/02/2023,Grants Expenditure,School System and Teaching Regulation,SUFFOLK COUNTY COUNCIL,CORE-MAIN-043421,"102,458.00",Current grants - Local Government
Department for Education,Core,28/02/2023,Grants Expenditure,School System and Teaching Regulation,SURREY COUNTY COUNCIL,CORE-MAIN-043423,"54,233.00",Current grants - Local Government
Department for Education,Core,28/02/2023,Grants Expenditure,School System and Teaching Regulation,Wakefield City Council,CORE-MAIN-043432,"41,708.00",Current grants - Local Government
Department for Education,Core,28/02/2023,Grants Expenditure,School System and Teaching Regulation,WARWICKSHIRE COUNTY COUNCIL,CORE-MAIN-043437,"51,700.00",Current grants - Local Government
Department for Education,Core,28/02/2023,Grants Expenditure,School System and Teaching Regulation,West Northamptonshire Council,CORE-MAIN-043439,"29,842.00",Current grants - Local Government
Department for Education,Core,28/02/2023,Grants Expenditure,School System and Teaching Regulation,West Sussex County Council,CORE-MAIN-043440,"61,800.00",Current grants - Local Government
Department for Education,Core,28/02/2023,Grants Expenditure,School System and Teaching Regulation,WILTSHIRE COUNTY COUNCIL,CORE-MAIN-043443,"52,875.00",Current grants - Local Government
Department for Education,Core,28/02/2023,Grants Expenditure,School System and Teaching Regulation,Worcestershire County Council,CORE-MAIN-043448,"53,108.00",Current grants - Local Government
Department for Education,Core,16/02/2023,Other Goods & Services,School Strategy and System Reform Directorate,EDUCATION AND EMPLOYERS TASKFORCE,CORE-PINV-050888,"49,568.63",Professional Services
Department for Education,Core,06/02/2023,Other Goods & Services,School Strategy and System Reform Directorate,NATIONAL GOVERNANCE ASSOCIATION,CORE-PINV-051599,"19,190.00",Professional Services - Education Services
Department for Education,Core,06/02/2023,Other Goods & Services,School Strategy and System Reform Directorate,NATIONAL GOVERNANCE ASSOCIATION,CORE-PINV-051599,"38,580.00",Professional Services - Education Services
Department for Education,Core,06/02/2023,Other Goods & Services,School Strategy and System Reform Directorate,NATIONAL GOVERNANCE ASSOCIATION,CORE-PINV-051637,"47,207.60",Professional Services
Department for Education,Core,27/02/2023,Other Goods & Services,School Strategy and System Reform Directorate,NATIONAL GOVERNANCE ASSOCIATION,CORE-PCR-001848,"-34,721.00",Professional Services - Education Services
Department for Education,Core,27/02/2023,Other Goods & Services,School Strategy and System Reform Directorate,NATIONAL GOVERNANCE ASSOCIATION,CORE-PINV-053038,"46,495.60",Professional Services
Department for Education,Core,28/02/2023,Grants Expenditure,School Strategy and System Reform Directorate,The St Lawrence Academy,CORE-MAIN-043488,"33,342.00",Current grants - Academy Trust
Department for Education,Core,28/02/2023,Grants Expenditure,School System and Teaching Regulation,CAMBRIDGESHIRE EDUCATIONAL TRUST,CORE-MAIN-043489,"45,000.00",Current grants - Academy Trust
Department for Education,Core,09/02/2023,Other Goods & Services,School System and Teaching Regulation,PREMIER ADVISORY GROUP LIMITED,CORE-PINV-052068,"55,012.01",Professional Services
Department for Education,Core,28/02/2023,Grants Expenditure,School Strategy and System Reform Directorate,THE NATIONAL SOCIETY,CORE-MAIN-043491,"52,325.00",Current grants - Private Sector
Department for Education,Core,02/02/2023,Other Goods & Services,Pupil Wellbeing and Safeguarding,Ofsted,CORE-PINV-051444,"34,375.00",Professional Services
Department for Education,Core,02/02/2023,Other Goods & Services,Early Years and Families,Mott MacDonald Ltd,CORE-PINV-048687,"108,489.60",Professional Services
Department for Education,Core,02/02/2023,Other Goods & Services,Early Years and Families,Mott MacDonald Ltd,CORE-PINV-050323,"88,850.40",Professional Services
Department for Education,Core,09/02/2023,Other Goods & Services,Early Years and Families,Family Action,CORE-PINV-052036,"586,953.35",Professional Services
Department for Education,Core,08/02/2023,Marketing/Media and Comms,Early Years and Families,OMD GROUP TA MANNING GOTTLIEB OMD LTD,CORE-PINV-051814,31.6,Advertising
Department for Education,Core,08/02/2023,Marketing/Media and Comms,Early Years and Families,OMD GROUP TA MANNING GOTTLIEB OMD LTD,CORE-PINV-051814,"31,919.56",Advertising
Department for Education,Core,17/02/2023,Marketing/Media and Comms,Early Years and Families,OMD GROUP TA MANNING GOTTLIEB OMD LTD,CORE-PCR-001728,"-40,386.33",Advertising
Department for Education,Core,17/02/2023,Marketing/Media and Comms,Early Years and Families,OMD GROUP TA MANNING GOTTLIEB OMD LTD,CORE-PCR-001728,-39.99,Advertising
Department for Education,Core,17/02/2023,Marketing/Media and Comms,Early Years and Families,OMD GROUP TA MANNING GOTTLIEB OMD LTD,CORE-PINV-049471,39.91,Advertising
Department for Education,Core,17/02/2023,Marketing/Media and Comms,Early Years and Families,OMD GROUP TA MANNING GOTTLIEB OMD LTD,CORE-PINV-049471,"40,386.41",Advertising
Department for Education,Core,28/02/2023,Grants Expenditure,Early Years and Families,INSTITUTE OF WELLBEING LTD,CORE-MAIN-043492,"26,499.00",Current grants - Private Sector
Department for Education,Core,15/02/2023,Staff - Temporary Staff,Early Years and Families,Talent International (UK) Ltd,CORE-PINV-049198,"211,224.00",Short term & agency staff
Department for Education,Core,15/02/2023,Staff - Temporary Staff,Early Years and Families,Talent International (UK) Ltd,CORE-PINV-052385,"208,744.80",Short term & agency staff
Department for Education,Core,15/02/2023,Staff - Temporary Staff,Early Years and Families,Talent International (UK) Ltd,CORE-PCR-001883,"-211,224.00",Short term & agency staff
Department for Education,Core,15/02/2023,Staff - Temporary Staff,Early Years and Families,Talent International (UK) Ltd,CORE-PINV-050654,"209,926.80",Short term & agency staff
Department for Education,Core,24/02/2023,Staff - Temporary Staff,Early Years and Families,Talent International (UK) Ltd,CORE-PINV-052616,"225,546.00",Short term & agency staff
Department for Education,Core,13/02/2023,Grants Expenditure,Early Years and Families,I CAN,CORE-MAIN-043202,"55,715.88",Current grants - Private Sector
Department for Education,Core,27/02/2023,Marketing/Media and Comms,Early Years and Families,OMD GROUP TA MANNING GOTTLIEB OMD LTD,CORE-PINV-053042,69.98,Marketing and Media costs
Department for Education,Core,27/02/2023,Marketing/Media and Comms,Early Years and Families,OMD GROUP TA MANNING GOTTLIEB OMD LTD,CORE-PINV-053042,"70,681.39",Marketing and Media costs
Department for Education,Core,08/02/2023,Other Goods & Services,Early Years and Families,THE ANNA FREUD CENTRE,CORE-PINV-051950,"28,860.83",Professional Services
Department for Education,Core,24/02/2023,Staff - Temporary Staff,Early Years and Families,Talent International (UK) Ltd,CORE-PINV-052279,"27,610.80",Short term & agency staff
Department for Education,Core,24/02/2023,Staff - Temporary Staff,Early Years and Families,FARSIGHT CONSULTING LIMITED,CORE-PINV-052886,"41,184.00",Short term & agency staff
Department for Education,Core,03/02/2023,Grants Expenditure,Pupil Wellbeing and Safeguarding,DIANA AWARD,CUPS0059313,"74,500.00",Current grants - Private Sector
Department for Education,Core,03/02/2023,Grants Expenditure,Pupil Wellbeing and Safeguarding,NATIONAL CHILDRENS BUREAU,CUPS0059314,"57,456.00",Current grants - Private Sector
Department for Education,Core,03/02/2023,Grants Expenditure,Pupil Wellbeing and Safeguarding,ANNE FRANK TRUST,CUPS0059315,"56,691.00",Current grants - Private Sector
Department for Education,Core,03/02/2023,Grants Expenditure,Pupil Wellbeing and Safeguarding,EQUALITEACH CIC,CUPS0059316,"54,068.30",Current grants - Private Sector
Department for Education,Core,03/02/2023,Grants Expenditure,Pupil Wellbeing and Safeguarding,DIVERSITY ROLE MODELS,CUPS0059317,"42,781.19",Current grants - Private Sector
Department for Education,Core,09/02/2023,IS/IT,Pupil Wellbeing and Safeguarding,Active Partnerships,CORE-PINV-052142,"474,586.32",Professional Services - Grants and Awards
Department for Education,Core,20/02/2023,IS/IT,Pupil Wellbeing and Safeguarding,Active Partnerships,CORE-PINV-052625,"282,714.90",Professional Services - Grants and Awards
Department for Education,Core,28/02/2023,Grants Expenditure,Pupil Wellbeing and Safeguarding,YOUTH SPORT TRUST,CORE-MAIN-043493,"73,979.13",Current grants - Private Sector
Department for Education,Core,07/02/2023,Other Goods & Services,Pupil Wellbeing and Safeguarding,SPORTS LEADERS UK LIMITED,CORE-PINV-051762,"28,811.50",Professional Services - Education Services
Department for Education,Core,06/02/2023,Other Goods & Services,Teaching Workforce and National Tutoring Programme,TELEPERFORMANCE LTD,CORE-PINV-051680,"64,453.11",Professional Services
Department for Education,Core,03/02/2023,IS/IT,Teaching Workforce and National Tutoring Programme,AKHTER COMPUTERS LIMITED,CORE-PINV-049654,"81,810.00",Components & Peripherals
Department for Education,Core,06/02/2023,Marketing/Media and Comms,Teaching Workforce and National Tutoring Programme,OMD GROUP TA MANNING GOTTLIEB OMD LTD,CORE-PINV-051606,25.68,Marketing and Media costs
Department for Education,Core,06/02/2023,Marketing/Media and Comms,Teaching Workforce and National Tutoring Programme,OMD GROUP TA MANNING GOTTLIEB OMD LTD,CORE-PINV-051606,"26,062.45",Marketing and Media costs
Department for Education,Core,13/02/2023,Marketing/Media and Comms,Teaching Workforce and National Tutoring Programme,M INTEGRATED SOLUTIONS,CORE-PINV-052176,"25,000.00",Marketing and Media costs
Department for Education,Core,17/02/2023,Other Costs,Teaching Workforce and National Tutoring Programme,SOFTWIRE TECHNOLOGY LTD,CORE-PINV-052567,"57,300.00",Software.Development
Department for Education,Core,24/02/2023,Marketing/Media and Comms,Teaching Workforce and National Tutoring Programme,OMD GROUP TA MANNING GOTTLIEB OMD LTD,CORE-PINV-052853,102.2,Marketing and Media costs
Department for Education,Core,24/02/2023,Marketing/Media and Comms,Teaching Workforce and National Tutoring Programme,OMD GROUP TA MANNING GOTTLIEB OMD LTD,CORE-PINV-052853,"103,519.39",Marketing and Media costs
Department for Education,Core,13/02/2023,Grants Expenditure,Teaching Workforce and National Tutoring Programme,MID SOMERSET CONSORTIUM FOR TEACHER TRAINING,CORE-MAIN-043204,"25,000.00",Current grants - Private Sector
Department for Education,Core,13/02/2023,Grants Expenditure,Teaching Workforce and National Tutoring Programme,Alpha Trust,CORE-MAIN-043205,"25,000.00",Current grants - Private Sector
Department for Education,Core,13/02/2023,Grants Expenditure,Teaching Workforce and National Tutoring Programme,Coast and Vale Learning Trust,CORE-MAIN-043206,"25,000.00",Current grants - Private Sector
Department for Education,Core,13/02/2023,Grants Expenditure,Teaching Workforce and National Tutoring Programme,BEAL MULTI ACADEMY TRUST,CORE-MAIN-043207,"25,000.00",Current grants - Private Sector
Department for Education,Core,13/02/2023,Grants Expenditure,Teaching Workforce and National Tutoring Programme,TEACH Poole,CORE-MAIN-043208,"25,000.00",Current grants - Private Sector
Department for Education,Core,13/02/2023,Grants Expenditure,Teaching Workforce and National Tutoring Programme,LSJS SCITT,CORE-MAIN-043209,"25,000.00",Current grants - Private Sector
Department for Education,Core,13/02/2023,Grants Expenditure,Teaching Workforce and National Tutoring Programme,The GORSE Academies Trust,CORE-MAIN-043210,"25,000.00",Current grants - Private Sector
Department for Education,Core,13/02/2023,Grants Expenditure,Teaching Workforce and National Tutoring Programme,Education South West,CORE-MAIN-043211,"25,000.00",Current grants - Private Sector
Department for Education,Core,13/02/2023,Grants Expenditure,Teaching Workforce and National Tutoring Programme,NORTHAMPTON TEACHER TRAINING,CORE-MAIN-043212,"25,000.00",Current grants - Private Sector
Department for Education,Core,13/02/2023,Grants Expenditure,Teaching Workforce and National Tutoring Programme,Ambition Institute,CORE-MAIN-043213,"25,000.00",Current grants - Private Sector
Department for Education,Core,13/02/2023,Grants Expenditure,Teaching Workforce and National Tutoring Programme,SUTTON SCITT,CORE-MAIN-043214,"25,000.00",Current grants - Private Sector
Department for Education,Core,13/02/2023,Grants Expenditure,Teaching Workforce and National Tutoring Programme,South Farnham Educational Trust,CORE-MAIN-043215,"25,000.00",Current grants - Private Sector
Department for Education,Core,13/02/2023,Grants Expenditure,Teaching Workforce and National Tutoring Programme,Oakthorpe Primary School,CORE-MAIN-043216,"25,000.00",Current grants - Private Sector
Department for Education,Core,28/02/2023,Grants Expenditure,Teaching Workforce and National Tutoring Programme,AMP SCITT,CORE-MAIN-043495,"25,000.00",Current grants - Private Sector
Department for Education,Core,28/02/2023,Grants Expenditure,Teaching Workforce and National Tutoring Programme,ASTRA SCITT,CORE-MAIN-043496,"25,000.00",Current grants - Private Sector
Department for Education,Core,28/02/2023,Grants Expenditure,Teaching Workforce and National Tutoring Programme,CORNWALL SCITT,CORE-MAIN-043499,"25,000.00",Current grants - Private Sector
Department for Education,Core,28/02/2023,Grants Expenditure,Teaching Workforce and National Tutoring Programme,Notre Dame High School,CORE-MAIN-043500,"25,000.00",Current grants - Private Sector
Department for Education,Core,28/02/2023,Grants Expenditure,Teaching Workforce and National Tutoring Programme,HAYBRIDGE ALLIANCE SCITT,CORE-MAIN-043501,"25,000.00",Current grants - Private Sector
Department for Education,Core,28/02/2023,Grants Expenditure,Teaching Workforce and National Tutoring Programme,TEESIDE UNIVERSITY,CORE-MAIN-043502,"25,000.00",Current grants - Private Sector
Department for Education,Core,28/02/2023,Grants Expenditure,Teaching Workforce and National Tutoring Programme,UNIVERSITY OF CHESTER,CORE-MAIN-043503,"25,000.00",Current grants - Private Sector
Department for Education,Core,28/02/2023,Grants Expenditure,Teaching Workforce and National Tutoring Programme,THE UNIVERSITY OF CHICHESTER,CORE-MAIN-043504,"25,000.00",Current grants - Private Sector
Department for Education,Core,28/02/2023,Grants Expenditure,Teaching Workforce and National Tutoring Programme,River Learning Trust,CORE-MAIN-043505,"25,000.00",Current grants - Private Sector
Department for Education,Core,28/02/2023,Grants Expenditure,Teaching Workforce and National Tutoring Programme,COVENTRY SCITT,CORE-MAIN-043507,"25,000.00",Current grants - Private Sector
Department for Education,Core,28/02/2023,Grants Expenditure,Teaching Workforce and National Tutoring Programme,YORKSHIRE WOLDS TEACHER TRAINING,CORE-MAIN-043508,"25,000.00",Current grants - Private Sector
Department for Education,Core,28/02/2023,Grants Expenditure,Teaching Workforce and National Tutoring Programme,SACRED HEART NEWCASTLE SCITT,CORE-MAIN-043509,"25,000.00",Current grants - Private Sector
Department for Education,Core,28/02/2023,Grants Expenditure,Teaching Workforce and National Tutoring Programme,Exceed Academies Trust,CORE-MAIN-043510,"25,000.00",Current grants - Private Sector
Department for Education,Core,28/02/2023,Grants Expenditure,Teaching Workforce and National Tutoring Programme,MANCHESTER NEXUS SCITT,CORE-MAIN-043511,"25,000.00",Current grants - Private Sector
Department for Education,Core,28/02/2023,Grants Expenditure,Teaching Workforce and National Tutoring Programme,MULBERRY SCHOOLS TRUST,CORE-MAIN-043512,"25,000.00",Current grants - Private Sector
Department for Education,Core,28/02/2023,Grants Expenditure,Teaching Workforce and National Tutoring Programme,THE JOHN TAYLOR SCITT,CORE-MAIN-043513,"25,000.00",Current grants - Private Sector
Department for Education,Core,28/02/2023,Grants Expenditure,Teaching Workforce and National Tutoring Programme,TARKA LEARNING PARTNERSHIP,CORE-MAIN-043514,"25,000.00",Current grants - Private Sector
Department for Education,Core,28/02/2023,Grants Expenditure,Teaching Workforce and National Tutoring Programme,NOTTINGHAMSHIRE TORCH SCITT,CORE-MAIN-043515,"25,000.00",Current grants - Private Sector
Department for Education,Core,24/02/2023,Other Goods & Services,Teaching Workforce and National Tutoring Programme,FARSIGHT CONSULTING LIMITED,CORE-PCR-001494,"-23,200.00",Research & Evaluation
Department for Education,Core,03/02/2023,Grants Expenditure,Teaching Workforce and National Tutoring Programme,Paddington Academy,CUPS0059329,"32,130.00",Current grants - Academy Trust
Department for Education,Core,03/02/2023,Grants Expenditure,Teaching Workforce and National Tutoring Programme,SHOTTON HALL SCITT,CUPS0059409,"37,962.00",Current grants - Private Sector
Department for Education,Core,03/02/2023,Grants Expenditure,Teaching Workforce and National Tutoring Programme,The University of Sheffield,CUPS0059410,"86,850.00",Current grants - Private Sector
Department for Education,Core,03/02/2023,Grants Expenditure,Teaching Workforce and National Tutoring Programme,Paddington Academy,CUPS0059411,"47,880.00",Current grants - Academy Trust
Department for Education,Core,03/02/2023,Grants Expenditure,Teaching Workforce and National Tutoring Programme,AMP SCITT,CUPS0059412,"39,735.00",Current grants - Private Sector
Department for Education,Core,03/02/2023,Grants Expenditure,Teaching Workforce and National Tutoring Programme,MANCHESTER METRO UNIVERSITY,CUPS0059413,"476,970.00",Current grants - Private Sector
Department for Education,Core,03/02/2023,Grants Expenditure,Teaching Workforce and National Tutoring Programme,LIVERPOOL HOPE UNIVERSITY,CUPS0059414,"86,040.00",Current grants - Private Sector
Department for Education,Core,03/02/2023,Grants Expenditure,Teaching Workforce and National Tutoring Programme,University of Reading,CUPS0059415,"138,510.00",Current grants - Private Sector
Department for Education,Core,03/02/2023,Grants Expenditure,Teaching Workforce and National Tutoring Programme,BATH SPA UNIVERSITY,CUPS0059416,"63,360.00",Current grants - Private Sector
Department for Education,Core,03/02/2023,Grants Expenditure,Teaching Workforce and National Tutoring Programme,Brunel University London,CUPS0059418,"82,800.00",Current grants - Private Sector
Department for Education,Core,03/02/2023,Grants Expenditure,Teaching Workforce and National Tutoring Programme,CANTERBURY CHRIST CHURCH UNIVERSITY,CUPS0059419,"89,910.00",Current grants - Private Sector
Department for Education,Core,03/02/2023,Grants Expenditure,Teaching Workforce and National Tutoring Programme,UNIVERSITY OF CHESTER,CUPS0059420,"101,010.00",Current grants - Private Sector
Department for Education,Core,03/02/2023,Grants Expenditure,Teaching Workforce and National Tutoring Programme,UNIVERSITY OF ST MARK & ST JOHN,CUPS0059421,"25,720.00",Current grants - Private Sector
Department for Education,Core,03/02/2023,Grants Expenditure,Teaching Workforce and National Tutoring Programme,EDGE HILL UNIVERSITY,CUPS0059422,"118,305.00",Current grants - Private Sector
Department for Education,Core,03/02/2023,Grants Expenditure,Teaching Workforce and National Tutoring Programme,"Goldsmiths College, University of London",CUPS0059423,"88,650.00",Current grants - Private Sector
Department for Education,Core,03/02/2023,Grants Expenditure,Teaching Workforce and National Tutoring Programme,THE UNIVERSITY OF WINCHESTER,CUPS0059424,"60,210.00",Current grants - Private Sector
Department for Education,Core,03/02/2023,Grants Expenditure,Teaching Workforce and National Tutoring Programme,KINGS COLLEGE GUILDFORD,CUPS0059425,"176,940.00",Current grants - Private Sector
Department for Education,Core,03/02/2023,Grants Expenditure,Teaching Workforce and National Tutoring Programme,Kingston University Higher Education Corporation,CUPS0059426,"38,520.00",Current grants - Private Sector
Department for Education,Core,03/02/2023,Grants Expenditure,Teaching Workforce and National Tutoring Programme,LEEDS BECKETT UNIVERSITY,CUPS0059427,"25,020.00",Current grants - Private Sector
Department for Education,Core,03/02/2023,Grants Expenditure,Teaching Workforce and National Tutoring Programme,LIVERPOOL JOHN MOORES UNIVERSITY,CUPS0059428,"73,880.00",Current grants - Private Sector
Department for Education,Core,03/02/2023,Grants Expenditure,Teaching Workforce and National Tutoring Programme,LONDON METRO UNIVERSITY,CUPS0059429,"42,669.20",Current grants - Private Sector
Department for Education,Core,03/02/2023,Grants Expenditure,Teaching Workforce and National Tutoring Programme,LOUGHBOROUGH UNIVERSITY,CUPS0059430,"47,016.00",Current grants - Private Sector
Department for Education,Core,03/02/2023,Grants Expenditure,Teaching Workforce and National Tutoring Programme,NEWMAN COLLEGE,CUPS0059431,"67,410.00",Current grants - Private Sector
Department for Education,Core,03/02/2023,Grants Expenditure,Teaching Workforce and National Tutoring Programme,NOTTINGHAM TRENT UNIVERSITY,CUPS0059432,"63,610.00",Current grants - Private Sector
Department for Education,Core,03/02/2023,Grants Expenditure,Teaching Workforce and National Tutoring Programme,SHEFFIELD HALLAM UNIVERSITY,CUPS0059434,"163,530.00",Current grants - Private Sector
Department for Education,Core,03/02/2023,Grants Expenditure,Teaching Workforce and National Tutoring Programme,THE UNIVERSITY OF CUMBRIA,CUPS0059435,"109,170.00",Current grants - Private Sector
Department for Education,Core,03/02/2023,Grants Expenditure,Teaching Workforce and National Tutoring Programme,ST MARYS UNIVERSITY COLLEGE,CUPS0059436,"105,900.00",Current grants - Private Sector
Department for Education,Core,03/02/2023,Grants Expenditure,Teaching Workforce and National Tutoring Programme,LEEDS TRINITY UNIVERSITY,CUPS0059438,"70,720.00",Current grants - Private Sector
Department for Education,Core,03/02/2023,Grants Expenditure,Teaching Workforce and National Tutoring Programme,UNIVERSITY OF WORCESTER,CUPS0059440,"82,980.00",Current grants - Private Sector
Department for Education,Core,03/02/2023,Grants Expenditure,Teaching Workforce and National Tutoring Programme,UNIVERSITY OF BIRMINGHAM,CUPS0059441,"117,270.00",Current grants - Private Sector
Department for Education,Core,03/02/2023,Grants Expenditure,Teaching Workforce and National Tutoring Programme,UNIVERSITY OF BRIGHTON,CUPS0059442,"99,540.00",Current grants - Private Sector
Department for Education,Core,03/02/2023,Grants Expenditure,Teaching Workforce and National Tutoring Programme,UNIVERSITY OF BRISTOL,CUPS0059443,"142,130.00",Current grants - Private Sector
Department for Education,Core,03/02/2023,Grants Expenditure,Teaching Workforce and National Tutoring Programme,UNIVERSITY OF CAMBRIDGE,CUPS0059444,"147,350.00",Current grants - Private Sector
Department for Education,Core,03/02/2023,Grants Expenditure,Teaching Workforce and National Tutoring Programme,Birmingham City University,CUPS0059445,"75,390.00",Current grants - Private Sector
Department for Education,Core,03/02/2023,Grants Expenditure,Teaching Workforce and National Tutoring Programme,UNIVERSITY OF DERBY,CUPS0059446,"37,800.00",Current grants - Private Sector
Department for Education,Core,03/02/2023,Grants Expenditure,Teaching Workforce and National Tutoring Programme,UNIVERSITY OF DURHAM,CUPS0059447,"87,840.00",Current grants - Private Sector
Department for Education,Core,03/02/2023,Grants Expenditure,Teaching Workforce and National Tutoring Programme,UNIVERSITY OF EAST ANGLIA,CUPS0059448,"58,550.00",Current grants - Private Sector
Department for Education,Core,03/02/2023,Grants Expenditure,Teaching Workforce and National Tutoring Programme,UNIVERSITY OF EAST LONDON,CUPS0059449,"144,990.00",Current grants - Private Sector
Department for Education,Core,03/02/2023,Grants Expenditure,Teaching Workforce and National Tutoring Programme,UNIVERSITY OF EXETER,CUPS0059450,"75,690.00",Current grants - Private Sector
Department for Education,Core,03/02/2023,Grants Expenditure,Teaching Workforce and National Tutoring Programme,UNIVERSITY OF GREENWICH,CUPS0059452,"64,440.00",Current grants - Private Sector
Department for Education,Core,03/02/2023,Grants Expenditure,Teaching Workforce and National Tutoring Programme,UNIVERSITY OF HERTFORDSHIRE,CUPS0059453,"100,890.00",Current grants - Private Sector
Department for Education,Core,03/02/2023,Grants Expenditure,Teaching Workforce and National Tutoring Programme,UNIVERSITY OF HUDDERSFIELD,CUPS0059454,"28,015.00",Current grants - Private Sector
Department for Education,Core,03/02/2023,Grants Expenditure,Teaching Workforce and National Tutoring Programme,UNIVERSITY OF HULL,CUPS0059455,"91,620.00",Current grants - Private Sector
Department for Education,Core,03/02/2023,Grants Expenditure,Teaching Workforce and National Tutoring Programme,The University of Leicester,CUPS0059456,"56,520.00",Current grants - Private Sector
Department for Education,Core,03/02/2023,Grants Expenditure,Teaching Workforce and National Tutoring Programme,THE UNIVERSITY OF MANCHESTER,CUPS0059457,"163,720.00",Current grants - Private Sector
Department for Education,Core,03/02/2023,Grants Expenditure,Teaching Workforce and National Tutoring Programme,The University of Nottingham,CUPS0059458,"125,550.00",Current grants - Private Sector
Department for Education,Core,03/02/2023,Grants Expenditure,Teaching Workforce and National Tutoring Programme,UNIVERSITY OF OXFORD,CUPS0059459,"152,100.00",Current grants - Private Sector
Department for Education,Core,03/02/2023,Grants Expenditure,Teaching Workforce and National Tutoring Programme,UNIVERSITY OF PLYMOUTH,CUPS0059460,"54,540.00",Current grants - Private Sector
Department for Education,Core,03/02/2023,Grants Expenditure,Teaching Workforce and National Tutoring Programme,UNIVERSITY OF PORTSMOUTH,CUPS0059461,"81,990.00",Current grants - Private Sector
Department for Education,Core,03/02/2023,Grants Expenditure,Teaching Workforce and National Tutoring Programme,University of Southampton,CUPS0059462,"54,990.00",Current grants - Private Sector
Department for Education,Core,03/02/2023,Grants Expenditure,Teaching Workforce and National Tutoring Programme,UNIVERSITY OF SUNDERLAND,CUPS0059463,"51,520.00",Current grants - Private Sector
Department for Education,Core,03/02/2023,Grants Expenditure,Teaching Workforce and National Tutoring Programme,ROEHAMPTON UNIVERSITY,CUPS0059464,"108,300.00",Current grants - Private Sector
Department for Education,Core,03/02/2023,Grants Expenditure,Teaching Workforce and National Tutoring Programme,UNIVERSITY OF SUSSEX,CUPS0059465,"223,710.00",Current grants - Private Sector
Department for Education,Core,03/02/2023,Grants Expenditure,Teaching Workforce and National Tutoring Programme,University of Warwick,CUPS0059467,"115,560.00",Current grants - Private Sector
Department for Education,Core,03/02/2023,Grants Expenditure,Teaching Workforce and National Tutoring Programme,UNIVERSITY OF WOLVERHAMPTON,CUPS0059468,"109,710.00",Current grants - Private Sector
Department for Education,Core,03/02/2023,Grants Expenditure,Teaching Workforce and National Tutoring Programme,UNIVERSITY OF YORK,CUPS0059469,"67,050.00",Current grants - Private Sector
Department for Education,Core,03/02/2023,Grants Expenditure,Teaching Workforce and National Tutoring Programme,MIDDLESEX UNIVERSITY,CUPS0059471,"58,770.00",Current grants - Private Sector
Department for Education,Core,03/02/2023,Grants Expenditure,Teaching Workforce and National Tutoring Programme,UNIVERSITY OF NEWCASTLE UPON TYNE,CUPS0059473,"105,300.00",Current grants - Private Sector
Department for Education,Core,03/02/2023,Grants Expenditure,Teaching Workforce and National Tutoring Programme,UCL INSTITUTE OF EDUCATION,CUPS0059475,"415,980.00",Current grants - Private Sector
Department for Education,Core,03/02/2023,Grants Expenditure,Teaching Workforce and National Tutoring Programme,Compass Education Trust Limited,CUPS0059479,"33,480.00",Current grants - Academy Trust
Department for Education,Core,03/02/2023,Grants Expenditure,Teaching Workforce and National Tutoring Programme,CORNWALL SCITT,CUPS0059483,"30,690.00",Current grants - Private Sector
Department for Education,Core,03/02/2023,Grants Expenditure,Teaching Workforce and National Tutoring Programme,GLOUCESTERSHIRE INITIAL TEACHER EDUCATION PARTNERSHIP,CUPS0059484,"46,980.00",Current grants - Private Sector
Department for Education,Core,03/02/2023,Grants Expenditure,Teaching Workforce and National Tutoring Programme,GRAND UNION TRAINING PARTNERSHIP,CUPS0059485,"30,600.00",Current grants - Private Sector
Department for Education,Core,03/02/2023,Grants Expenditure,Teaching Workforce and National Tutoring Programme,Kent & Medway Training,CUPS0059486,"79,560.00",Current grants - Private Sector
Department for Education,Core,03/02/2023,Grants Expenditure,Teaching Workforce and National Tutoring Programme,SOUTH WEST TEACHER TRAINING,CUPS0059490,"42,570.00",Current grants - Private Sector
Department for Education,Core,03/02/2023,Grants Expenditure,Teaching Workforce and National Tutoring Programme,DURHAM SECONDARY APPLIED SCITT,CUPS0059495,"29,592.00",Current grants - Private Sector
Department for Education,Core,03/02/2023,Grants Expenditure,Teaching Workforce and National Tutoring Programme,BOURNEMOUTH POOLE & DORSET EAST SECONDARY,CUPS0059496,"25,380.00",Current grants - Private Sector
Department for Education,Core,03/02/2023,Grants Expenditure,Teaching Workforce and National Tutoring Programme,The Kemnal Academies Trust,CUPS0059497,"25,740.00",Current grants - Academy Trust
Department for Education,Core,03/02/2023,Grants Expenditure,Teaching Workforce and National Tutoring Programme,LEICESTERSHIRE SECONDARY SCITT,CUPS0059502,"63,000.00",Current grants - Private Sector
Department for Education,Core,03/02/2023,Grants Expenditure,Teaching Workforce and National Tutoring Programme,POOLE SECONDARY SCHOOLS,CUPS0059510,"25,740.00",Current grants - Local Government
Department for Education,Core,03/02/2023,Grants Expenditure,Teaching Workforce and National Tutoring Programme,THE CAMBRIDGE PARTNERSHIP,CUPS0059512,"30,906.00",Current grants - Private Sector
Department for Education,Core,03/02/2023,Grants Expenditure,Teaching Workforce and National Tutoring Programme,ALBAN FEDERATION,CUPS0059515,"26,460.00",Current grants - Private Sector
Department for Education,Core,03/02/2023,Grants Expenditure,Teaching Workforce and National Tutoring Programme,HARRIS CITY ACADEMY,CUPS0059523,"71,713.35",Current grants - Academy Trust
Department for Education,Core,03/02/2023,Grants Expenditure,Teaching Workforce and National Tutoring Programme,Comberton Village College ,CUPS0059528,"36,540.00",Current grants - Academy Trust
Department for Education,Core,03/02/2023,Grants Expenditure,Teaching Workforce and National Tutoring Programme,ARK Schools,CUPS0059533,"62,370.00",Current grants - Academy Trust
Department for Education,Core,03/02/2023,Grants Expenditure,Teaching Workforce and National Tutoring Programme,ST GEORGES ACADEMY SCITT,CUPS0059534,"31,950.00",Current grants - Academy Trust
Department for Education,Core,03/02/2023,Grants Expenditure,Teaching Workforce and National Tutoring Programme,Bluecoat Beechdale Academy,CUPS0059540,"27,810.00",Current grants - Academy Trust
Department for Education,Core,03/02/2023,Grants Expenditure,Teaching Workforce and National Tutoring Programme,THE GREATER MANCHESTER BRIGHT FUTURES TRUST,CUPS0059543,"27,424.64",Current grants - Academy Trust
Department for Education,Core,03/02/2023,Grants Expenditure,Teaching Workforce and National Tutoring Programme,SUTTON SCITT,CUPS0059544,"27,720.00",Current grants - Private Sector
Department for Education,Core,03/02/2023,Grants Expenditure,Teaching Workforce and National Tutoring Programme,EAST LONDON ALLIANCE SCITT,CUPS0059545,"86,940.00",Current grants - Private Sector
Department for Education,Core,03/02/2023,Grants Expenditure,Teaching Workforce and National Tutoring Programme,THE OAKS SCITT,CUPS0059546,"104,670.00",Current grants - Private Sector
Department for Education,Core,03/02/2023,Grants Expenditure,Teaching Workforce and National Tutoring Programme,TRAIN TO TEACH AT SURREY & HANTS,CUPS0059549,"38,880.00",Current grants - Private Sector
Department for Education,Core,03/02/2023,Grants Expenditure,Teaching Workforce and National Tutoring Programme,The Morley Academy,CUPS0059550,"108,630.00",Current grants - Academy Trust
Department for Education,Core,03/02/2023,Grants Expenditure,Teaching Workforce and National Tutoring Programme,NOTTINGHAMSHIRE TORCH SCITT,CUPS0059554,"30,825.00",Current grants - Private Sector
Department for Education,Core,03/02/2023,Grants Expenditure,Teaching Workforce and National Tutoring Programme,THE CHERWELL SCHOOL TS ACCOUNT,CUPS0059556,"61,932.00",Current grants - Academy Trust
Department for Education,Core,03/02/2023,Grants Expenditure,Teaching Workforce and National Tutoring Programme,LINCOLNSHIRE TEACHING SCHOOL ALLIANCE,CUPS0059559,"25,470.00",Current grants - Private Sector
Department for Education,Core,03/02/2023,Grants Expenditure,Teaching Workforce and National Tutoring Programme,PIONEERS PARTNERSHIP SCITT,CUPS0059561,"26,586.00",Current grants - Private Sector
Department for Education,Core,03/02/2023,Grants Expenditure,Teaching Workforce and National Tutoring Programme,Cabot Learning Federation,CUPS0059567,"37,186.00",Current grants - Academy Trust
Department for Education,Core,03/02/2023,Grants Expenditure,Teaching Workforce and National Tutoring Programme,HAYBRIDGE ALLIANCE SCITT,CUPS0059571,"48,555.00",Current grants - Private Sector
Department for Education,Core,03/02/2023,Grants Expenditure,Teaching Workforce and National Tutoring Programme,SACRED HEART NEWCASTLE SCITT,CUPS0059574,"25,380.00",Current grants - Private Sector
Department for Education,Core,03/02/2023,Grants Expenditure,Teaching Workforce and National Tutoring Programme,RED KITE TEACHER TRAINING,CUPS0059575,"75,330.00",Current grants - Private Sector
Department for Education,Core,03/02/2023,Grants Expenditure,Teaching Workforce and National Tutoring Programme,HIBERNIA COLLEGE UK LIMITED,CUPS0059576,"132,430.00",Current grants - Private Sector
Department for Education,Core,03/02/2023,Grants Expenditure,Teaching Workforce and National Tutoring Programme,TEACH SOUTHEAST,CUPS0059577,"45,810.00",Current grants - Private Sector
Department for Education,Core,03/02/2023,Grants Expenditure,Teaching Workforce and National Tutoring Programme,MANCHESTER NEXUS SCITT,CUPS0059578,"26,460.00",Current grants - Private Sector
Department for Education,Core,03/02/2023,Grants Expenditure,Teaching Workforce and National Tutoring Programme,YORKSHIRE WOLDS TEACHER TRAINING,CUPS0059580,"25,200.00",Current grants - Private Sector
Department for Education,Core,03/02/2023,Grants Expenditure,Teaching Workforce and National Tutoring Programme,THE NATIONAL MODERN LANGUAGES SCITT,CUPS0059583,"43,200.00",Current grants - Private Sector
Department for Education,Core,03/02/2023,Grants Expenditure,Teaching Workforce and National Tutoring Programme,Wycombe High School,CUPS0059585,"90,000.00",Current grants - Academy Trust
Department for Education,Core,03/02/2023,Grants Expenditure,Teaching Workforce and National Tutoring Programme,Farlingaye High School,CUPS0059586,"33,390.00",Current grants - Academy Trust
Department for Education,Core,03/02/2023,Grants Expenditure,Teaching Workforce and National Tutoring Programme,TEESIDE UNIVERSITY,CUPS0059632,"41,850.00",Current grants - Private Sector
Department for Education,Core,03/02/2023,Grants Expenditure,Teaching Workforce and National Tutoring Programme,Star Academies,CUPS0059648,"44,010.00",Current grants - Academy Trust
Department for Education,Core,16/02/2023,Other Costs,Teaching Workforce and National Tutoring Programme,HMRC,CUPS0059969,"998,696.04",ITT Financial Incentives
Department for Education,Core,16/02/2023,Other Costs,Teaching Workforce and National Tutoring Programme,HMRC,CUPS0059970,"641,194.36",ITT Financial Incentives
Department for Education,Core,06/02/2023,Other Goods & Services,Teaching Workforce and National Tutoring Programme,TELEPERFORMANCE LTD,CORE-PINV-051682,"29,887.00",Professional Services
Department for Education,Core,17/02/2023,Other Costs,Teaching Workforce and National Tutoring Programme,SOFTWIRE TECHNOLOGY LTD,CORE-PINV-052551,"36,600.00",Software.Development
Department for Education,Core,21/02/2023,Other Goods & Services,Teaching Workforce and National Tutoring Programme,ENGINE PARTNERS UK LLP THE ENGINE GROUP LTD,CORE-PINV-052571,"33,840.00",Research & Evaluation
Department for Education,Core,03/02/2023,Other Costs,Teaching Workforce and National Tutoring Programme,Alexander Mann Solutions Ltd,CORE-PINV-051563,"42,787.50",Software.Development
Department for Education,Core,07/02/2023,Marketing/Media and Comms,Teaching Workforce and National Tutoring Programme,Kindred Agency Limited,CORE-PINV-051853,"23,500.00",Advertising
Department for Education,Core,10/02/2023,Marketing/Media and Comms,Teaching Workforce and National Tutoring Programme,BAM Agency Ltd,CORE-PINV-052245,"275,268.73",Marketing and Media costs
Department for Education,Core,13/02/2023,Other Goods & Services,Teaching Workforce and National Tutoring Programme,Yonder Consulting Limited,CORE-PINV-050317,"43,500.00",Research & Evaluation
Department for Education,Core,13/02/2023,Other Goods & Services,Teaching Workforce and National Tutoring Programme,Yonder Consulting Limited,CORE-PCR-001813,"-43,500.00",Research & Evaluation
Department for Education,Core,02/02/2023,Marketing/Media and Comms,Teaching Workforce and National Tutoring Programme,OMD GROUP TA MANNING GOTTLIEB OMD LTD,CORE-PINV-051453,240.19,Advertising
